Organisation Name,Organisation Code,Unique Ref No,Effective Date,Directorate where expenditure incurred,Supplier Name ,Payment Date,Net Amount,Purpose of spend,Procurement Classification (Higher Level),Procurement Classification (lower level),Capital/Revenue
Walsall Council,http://opendatacommunities.org/id/metropolitan-district-council/walsall,WC112-01,31/01/2020,Economy & Environment,11KBW,28/01/2020,500.00,73014-LEGAL FEES-PRIV CONTRACTOR FEES,CEMETERIES CENTRAL ADMINISTRATION,Third Party Payments,Revenue
Walsall Council,http://opendatacommunities.org/id/metropolitan-district-council/walsall,WC112-02,31/01/2020,Childrens,247 CARS (WILLENHALL) LIMITED,03/01/2020,584.80,52000-WITH DRIVER-HIRE OF VEHICLES,HOME TO SCHOOL TRANSPORT,Transport,Revenue
Walsall Council,http://opendatacommunities.org/id/metropolitan-district-council/walsall,WC112-03,31/01/2020,Childrens,247 CARS (WILLENHALL) LIMITED,03/01/2020,633.20,52000-WITH DRIVER-HIRE OF VEHICLES,HOME TO SCHOOL TRANSPORT,Transport,Revenue
Walsall Council,http://opendatacommunities.org/id/metropolitan-district-council/walsall,WC112-04,31/01/2020,Childrens,247 CARS (WILLENHALL) LIMITED,03/01/2020,633.20,52000-WITH DRIVER-HIRE OF VEHICLES,HOME TO SCHOOL TRANSPORT,Transport,Revenue
Walsall Council,http://opendatacommunities.org/id/metropolitan-district-council/walsall,WC112-05,31/01/2020,Childrens,247 CARS (WILLENHALL) LIMITED,03/01/2020,633.20,52000-WITH DRIVER-HIRE OF VEHICLES,HOME TO SCHOOL TRANSPORT,Transport,Revenue
Walsall Council,http://opendatacommunities.org/id/metropolitan-district-council/walsall,WC112-06,31/01/2020,Childrens,247 CARS (WILLENHALL) LIMITED,03/01/2020,"1,168.80",52000-WITH DRIVER-HIRE OF VEHICLES,HOME TO SCHOOL TRANSPORT,Transport,Revenue
Walsall Council,http://opendatacommunities.org/id/metropolitan-district-council/walsall,WC112-07,31/01/2020,Childrens,247 CARS (WILLENHALL) LIMITED,03/01/2020,"2,520.00",52000-WITH DRIVER-HIRE OF VEHICLES,HOME TO SCHOOL TRANSPORT,Transport,Revenue
Walsall Council,http://opendatacommunities.org/id/metropolitan-district-council/walsall,WC112-08,31/01/2020,Adult Social Care,5 CARE SERVICES LTD,31/01/2020,250.85,73507-DOMICILIARY CARE,PHYSICAL SUPPORT,Third Party Payments,Revenue
Walsall Council,http://opendatacommunities.org/id/metropolitan-district-council/walsall,WC112-09,31/01/2020,Adult Social Care,5 CARE SERVICES LTD,01/01/2020,250.88,73025-PROFESSIONAL SERVICES-PRIV CONTRACTOR & OTHER AGENCIES,INTERMEDIATE CARE SERVICE,Third Party Payments,Revenue
Walsall Council,http://opendatacommunities.org/id/metropolitan-district-council/walsall,WC112-10,31/01/2020,Adult Social Care,5 CARE SERVICES LTD,06/01/2020,258.55,73507-DOMICILIARY CARE,PHYSICAL SUPPORT,Third Party Payments,Revenue
Walsall Council,http://opendatacommunities.org/id/metropolitan-district-council/walsall,WC112-11,31/01/2020,Adult Social Care,5 CARE SERVICES LTD,06/01/2020,260.82,73507-DOMICILIARY CARE,SENSORY SUPPORT,Third Party Payments,Revenue
Walsall Council,http://opendatacommunities.org/id/metropolitan-district-council/walsall,WC112-12,31/01/2020,Adult Social Care,5 CARE SERVICES LTD,31/01/2020,272.09,73507-DOMICILIARY CARE,SENSORY SUPPORT,Third Party Payments,Revenue
Walsall Council,http://opendatacommunities.org/id/metropolitan-district-council/walsall,WC112-13,31/01/2020,Adult Social Care,5 CARE SERVICES LTD,31/01/2020,285.75,73507-DOMICILIARY CARE,PHYSICAL SUPPORT,Third Party Payments,Revenue
Walsall Council,http://opendatacommunities.org/id/metropolitan-district-council/walsall,WC112-14,31/01/2020,Adult Social Care,5 CARE SERVICES LTD,06/01/2020,324.98,73507-DOMICILIARY CARE,MENTAL HEALTH SUPPORT,Third Party Payments,Revenue
Walsall Council,http://opendatacommunities.org/id/metropolitan-district-council/walsall,WC112-15,31/01/2020,Adult Social Care,5 CARE SERVICES LTD,31/01/2020,330.24,73507-DOMICILIARY CARE,MENTAL HEALTH SUPPORT,Third Party Payments,Revenue
Walsall Council,http://opendatacommunities.org/id/metropolitan-district-council/walsall,WC112-16,31/01/2020,Adult Social Care,5 CARE SERVICES LTD,06/01/2020,334.48,73507-DOMICILIARY CARE,PHYSICAL SUPPORT,Third Party Payments,Revenue
Walsall Council,http://opendatacommunities.org/id/metropolitan-district-council/walsall,WC112-17,31/01/2020,Adult Social Care,5 CARE SERVICES LTD,31/01/2020,335.22,73507-DOMICILIARY CARE,PHYSICAL SUPPORT,Third Party Payments,Revenue
Walsall Council,http://opendatacommunities.org/id/metropolitan-district-council/walsall,WC112-18,31/01/2020,Adult Social Care,5 CARE SERVICES LTD,31/01/2020,347.15,73507-DOMICILIARY CARE,PHYSICAL SUPPORT,Third Party Payments,Revenue
Walsall Council,http://opendatacommunities.org/id/metropolitan-district-council/walsall,WC112-19,31/01/2020,Adult Social Care,5 CARE SERVICES LTD,06/01/2020,366.94,73507-DOMICILIARY CARE,PHYSICAL SUPPORT,Third Party Payments,Revenue
Walsall Council,http://opendatacommunities.org/id/metropolitan-district-council/walsall,WC112-20,31/01/2020,Adult Social Care,5 CARE SERVICES LTD,06/01/2020,367.41,73507-DOMICILIARY CARE,PHYSICAL SUPPORT,Third Party Payments,Revenue
Walsall Council,http://opendatacommunities.org/id/metropolitan-district-council/walsall,WC112-21,31/01/2020,Adult Social Care,5 CARE SERVICES LTD,31/01/2020,373.61,73507-DOMICILIARY CARE,PHYSICAL SUPPORT,Third Party Payments,Revenue
Walsall Council,http://opendatacommunities.org/id/metropolitan-district-council/walsall,WC112-22,31/01/2020,Adult Social Care,5 CARE SERVICES LTD,31/01/2020,379.55,73507-DOMICILIARY CARE,PHYSICAL SUPPORT,Third Party Payments,Revenue
Walsall Council,http://opendatacommunities.org/id/metropolitan-district-council/walsall,WC112-23,31/01/2020,Adult Social Care,5 CARE SERVICES LTD,07/01/2020,379.75,73025-PROFESSIONAL SERVICES-PRIV CONTRACTOR & OTHER AGENCIES,RAPID RESPONSE,Third Party Payments,Revenue
Walsall Council,http://opendatacommunities.org/id/metropolitan-district-council/walsall,WC112-24,31/01/2020,Adult Social Care,5 CARE SERVICES LTD,31/01/2020,379.88,73507-DOMICILIARY CARE,PHYSICAL SUPPORT,Third Party Payments,Revenue
Walsall Council,http://opendatacommunities.org/id/metropolitan-district-council/walsall,WC112-25,31/01/2020,Adult Social Care,5 CARE SERVICES LTD,31/01/2020,385.24,73507-DOMICILIARY CARE,PHYSICAL SUPPORT,Third Party Payments,Revenue
Walsall Council,http://opendatacommunities.org/id/metropolitan-district-council/walsall,WC112-26,31/01/2020,Adult Social Care,5 CARE SERVICES LTD,06/01/2020,389.17,73507-DOMICILIARY CARE,PHYSICAL SUPPORT,Third Party Payments,Revenue
Walsall Council,http://opendatacommunities.org/id/metropolitan-district-council/walsall,WC112-27,31/01/2020,Adult Social Care,5 CARE SERVICES LTD,06/01/2020,390.55,73507-DOMICILIARY CARE,PHYSICAL SUPPORT,Third Party Payments,Revenue
Walsall Council,http://opendatacommunities.org/id/metropolitan-district-council/walsall,WC112-28,31/01/2020,Adult Social Care,5 CARE SERVICES LTD,06/01/2020,391.77,73507-DOMICILIARY CARE,PHYSICAL SUPPORT,Third Party Payments,Revenue
Walsall Council,http://opendatacommunities.org/id/metropolitan-district-council/walsall,WC112-29,31/01/2020,Adult Social Care,5 CARE SERVICES LTD,31/01/2020,396.21,73507-DOMICILIARY CARE,SOCIAL SUPPORT,Third Party Payments,Revenue
Walsall Council,http://opendatacommunities.org/id/metropolitan-district-council/walsall,WC112-30,31/01/2020,Adult Social Care,5 CARE SERVICES LTD,31/01/2020,398.34,73507-DOMICILIARY CARE,PHYSICAL SUPPORT,Third Party Payments,Revenue
Walsall Council,http://opendatacommunities.org/id/metropolitan-district-council/walsall,WC112-31,31/01/2020,Adult Social Care,5 CARE SERVICES LTD,06/01/2020,401.48,73507-DOMICILIARY CARE,PHYSICAL SUPPORT,Third Party Payments,Revenue
Walsall Council,http://opendatacommunities.org/id/metropolitan-district-council/walsall,WC112-32,31/01/2020,Adult Social Care,5 CARE SERVICES LTD,06/01/2020,422.18,73507-DOMICILIARY CARE,PHYSICAL SUPPORT,Third Party Payments,Revenue
Walsall Council,http://opendatacommunities.org/id/metropolitan-district-council/walsall,WC112-33,31/01/2020,Adult Social Care,5 CARE SERVICES LTD,31/01/2020,434.03,73507-DOMICILIARY CARE,PHYSICAL SUPPORT,Third Party Payments,Revenue
Walsall Council,http://opendatacommunities.org/id/metropolitan-district-council/walsall,WC112-34,31/01/2020,Adult Social Care,5 CARE SERVICES LTD,06/01/2020,439.26,73507-DOMICILIARY CARE,PHYSICAL SUPPORT,Third Party Payments,Revenue
Walsall Council,http://opendatacommunities.org/id/metropolitan-district-council/walsall,WC112-35,31/01/2020,Adult Social Care,5 CARE SERVICES LTD,06/01/2020,451.31,73507-DOMICILIARY CARE,PHYSICAL SUPPORT,Third Party Payments,Revenue
Walsall Council,http://opendatacommunities.org/id/metropolitan-district-council/walsall,WC112-36,31/01/2020,Adult Social Care,5 CARE SERVICES LTD,29/01/2020,451.64,73025-PROFESSIONAL SERVICES-PRIV CONTRACTOR & OTHER AGENCIES,INTERMEDIATE CARE SERVICE,Third Party Payments,Revenue
Walsall Council,http://opendatacommunities.org/id/metropolitan-district-council/walsall,WC112-37,31/01/2020,Adult Social Care,5 CARE SERVICES LTD,06/01/2020,468.38,73507-DOMICILIARY CARE,SENSORY SUPPORT,Third Party Payments,Revenue
Walsall Council,http://opendatacommunities.org/id/metropolitan-district-council/walsall,WC112-38,31/01/2020,Adult Social Care,5 CARE SERVICES LTD,06/01/2020,475.03,73507-DOMICILIARY CARE,SOCIAL SUPPORT,Third Party Payments,Revenue
Walsall Council,http://opendatacommunities.org/id/metropolitan-district-council/walsall,WC112-39,31/01/2020,Adult Social Care,5 CARE SERVICES LTD,31/01/2020,475.70,73507-DOMICILIARY CARE,SENSORY SUPPORT,Third Party Payments,Revenue
Walsall Council,http://opendatacommunities.org/id/metropolitan-district-council/walsall,WC112-40,31/01/2020,Adult Social Care,5 CARE SERVICES LTD,06/01/2020,477.36,73507-DOMICILIARY CARE,PHYSICAL SUPPORT,Third Party Payments,Revenue
Walsall Council,http://opendatacommunities.org/id/metropolitan-district-council/walsall,WC112-41,31/01/2020,Adult Social Care,5 CARE SERVICES LTD,06/01/2020,478.34,73507-DOMICILIARY CARE,PHYSICAL SUPPORT,Third Party Payments,Revenue
Walsall Council,http://opendatacommunities.org/id/metropolitan-district-council/walsall,WC112-42,31/01/2020,Adult Social Care,5 CARE SERVICES LTD,31/01/2020,480.89,73507-DOMICILIARY CARE,PHYSICAL SUPPORT,Third Party Payments,Revenue
Walsall Council,http://opendatacommunities.org/id/metropolitan-district-council/walsall,WC112-43,31/01/2020,Adult Social Care,5 CARE SERVICES LTD,06/01/2020,498.55,73507-DOMICILIARY CARE,PHYSICAL SUPPORT,Third Party Payments,Revenue
Walsall Council,http://opendatacommunities.org/id/metropolitan-district-council/walsall,WC112-44,31/01/2020,Adult Social Care,5 CARE SERVICES LTD,06/01/2020,511.55,73507-DOMICILIARY CARE,PHYSICAL SUPPORT,Third Party Payments,Revenue
Walsall Council,http://opendatacommunities.org/id/metropolitan-district-council/walsall,WC112-45,31/01/2020,Adult Social Care,5 CARE SERVICES LTD,31/01/2020,515.40,73507-DOMICILIARY CARE,LEARNING DISABILITY SUPPORT,Third Party Payments,Revenue
Walsall Council,http://opendatacommunities.org/id/metropolitan-district-council/walsall,WC112-46,31/01/2020,Adult Social Care,5 CARE SERVICES LTD,06/01/2020,526.67,73507-DOMICILIARY CARE,LEARNING DISABILITY SUPPORT,Third Party Payments,Revenue
Walsall Council,http://opendatacommunities.org/id/metropolitan-district-council/walsall,WC112-47,31/01/2020,Adult Social Care,5 CARE SERVICES LTD,31/01/2020,555.10,73507-DOMICILIARY CARE,LEARNING DISABILITY SUPPORT,Third Party Payments,Revenue
Walsall Council,http://opendatacommunities.org/id/metropolitan-district-council/walsall,WC112-48,31/01/2020,Adult Social Care,5 CARE SERVICES LTD,31/01/2020,564.31,73507-DOMICILIARY CARE,PHYSICAL SUPPORT,Third Party Payments,Revenue
Walsall Council,http://opendatacommunities.org/id/metropolitan-district-council/walsall,WC112-49,31/01/2020,Adult Social Care,5 CARE SERVICES LTD,31/01/2020,580.01,73507-DOMICILIARY CARE,PHYSICAL SUPPORT,Third Party Payments,Revenue
Walsall Council,http://opendatacommunities.org/id/metropolitan-district-council/walsall,WC112-50,31/01/2020,Adult Social Care,5 CARE SERVICES LTD,06/01/2020,583.65,73507-DOMICILIARY CARE,PHYSICAL SUPPORT,Third Party Payments,Revenue
Walsall Council,http://opendatacommunities.org/id/metropolitan-district-council/walsall,WC112-51,31/01/2020,Adult Social Care,5 CARE SERVICES LTD,06/01/2020,591.14,73507-DOMICILIARY CARE,PHYSICAL SUPPORT,Third Party Payments,Revenue
Walsall Council,http://opendatacommunities.org/id/metropolitan-district-council/walsall,WC112-52,31/01/2020,Adult Social Care,5 CARE SERVICES LTD,31/01/2020,602.79,73507-DOMICILIARY CARE,SENSORY SUPPORT,Third Party Payments,Revenue
Walsall Council,http://opendatacommunities.org/id/metropolitan-district-council/walsall,WC112-53,31/01/2020,Adult Social Care,5 CARE SERVICES LTD,31/01/2020,605.51,73507-DOMICILIARY CARE,PHYSICAL SUPPORT,Third Party Payments,Revenue
Walsall Council,http://opendatacommunities.org/id/metropolitan-district-council/walsall,WC112-54,31/01/2020,Adult Social Care,5 CARE SERVICES LTD,06/01/2020,611.48,73507-DOMICILIARY CARE,PHYSICAL SUPPORT,Third Party Payments,Revenue
Walsall Council,http://opendatacommunities.org/id/metropolitan-district-council/walsall,WC112-55,31/01/2020,Adult Social Care,5 CARE SERVICES LTD,31/01/2020,620.57,73507-DOMICILIARY CARE,PHYSICAL SUPPORT,Third Party Payments,Revenue
Walsall Council,http://opendatacommunities.org/id/metropolitan-district-council/walsall,WC112-56,31/01/2020,Adult Social Care,5 CARE SERVICES LTD,31/01/2020,623.10,73507-DOMICILIARY CARE,PHYSICAL SUPPORT,Third Party Payments,Revenue
Walsall Council,http://opendatacommunities.org/id/metropolitan-district-council/walsall,WC112-57,31/01/2020,Adult Social Care,5 CARE SERVICES LTD,06/01/2020,627.19,73507-DOMICILIARY CARE,PHYSICAL SUPPORT,Third Party Payments,Revenue
Walsall Council,http://opendatacommunities.org/id/metropolitan-district-council/walsall,WC112-58,31/01/2020,Adult Social Care,5 CARE SERVICES LTD,06/01/2020,683.64,73507-DOMICILIARY CARE,PHYSICAL SUPPORT,Third Party Payments,Revenue
Walsall Council,http://opendatacommunities.org/id/metropolitan-district-council/walsall,WC112-59,31/01/2020,Adult Social Care,5 CARE SERVICES LTD,31/01/2020,754.02,73507-DOMICILIARY CARE,PHYSICAL SUPPORT,Third Party Payments,Revenue
Walsall Council,http://opendatacommunities.org/id/metropolitan-district-council/walsall,WC112-60,31/01/2020,Adult Social Care,5 CARE SERVICES LTD,06/01/2020,757.84,73507-DOMICILIARY CARE,PHYSICAL SUPPORT,Third Party Payments,Revenue
Walsall Council,http://opendatacommunities.org/id/metropolitan-district-council/walsall,WC112-61,31/01/2020,Adult Social Care,5 CARE SERVICES LTD,31/01/2020,762.81,73507-DOMICILIARY CARE,PHYSICAL SUPPORT,Third Party Payments,Revenue
Walsall Council,http://opendatacommunities.org/id/metropolitan-district-council/walsall,WC112-62,31/01/2020,Adult Social Care,5 CARE SERVICES LTD,31/01/2020,771.35,73507-DOMICILIARY CARE,PHYSICAL SUPPORT,Third Party Payments,Revenue
Walsall Council,http://opendatacommunities.org/id/metropolitan-district-council/walsall,WC112-63,31/01/2020,Adult Social Care,5 CARE SERVICES LTD,06/01/2020,773.82,73507-DOMICILIARY CARE,PHYSICAL SUPPORT,Third Party Payments,Revenue
Walsall Council,http://opendatacommunities.org/id/metropolitan-district-council/walsall,WC112-64,31/01/2020,Adult Social Care,5 CARE SERVICES LTD,31/01/2020,776.94,73507-DOMICILIARY CARE,LEARNING DISABILITY SUPPORT,Third Party Payments,Revenue
Walsall Council,http://opendatacommunities.org/id/metropolitan-district-council/walsall,WC112-65,31/01/2020,Adult Social Care,5 CARE SERVICES LTD,06/01/2020,793.24,73507-DOMICILIARY CARE,LEARNING DISABILITY SUPPORT,Third Party Payments,Revenue
Walsall Council,http://opendatacommunities.org/id/metropolitan-district-council/walsall,WC112-66,31/01/2020,Adult Social Care,5 CARE SERVICES LTD,06/01/2020,800.08,73507-DOMICILIARY CARE,PHYSICAL SUPPORT,Third Party Payments,Revenue
Walsall Council,http://opendatacommunities.org/id/metropolitan-district-council/walsall,WC112-67,31/01/2020,Adult Social Care,5 CARE SERVICES LTD,06/01/2020,838.54,73507-DOMICILIARY CARE,PHYSICAL SUPPORT,Third Party Payments,Revenue
Walsall Council,http://opendatacommunities.org/id/metropolitan-district-council/walsall,WC112-68,31/01/2020,Adult Social Care,5 CARE SERVICES LTD,31/01/2020,846.17,73507-DOMICILIARY CARE,PHYSICAL SUPPORT,Third Party Payments,Revenue
Walsall Council,http://opendatacommunities.org/id/metropolitan-district-council/walsall,WC112-69,31/01/2020,Adult Social Care,5 CARE SERVICES LTD,06/01/2020,853.78,73507-DOMICILIARY CARE,PHYSICAL SUPPORT,Third Party Payments,Revenue
Walsall Council,http://opendatacommunities.org/id/metropolitan-district-council/walsall,WC112-70,31/01/2020,Adult Social Care,5 CARE SERVICES LTD,31/01/2020,868.53,73507-DOMICILIARY CARE,PHYSICAL SUPPORT,Third Party Payments,Revenue
Walsall Council,http://opendatacommunities.org/id/metropolitan-district-council/walsall,WC112-71,31/01/2020,Adult Social Care,5 CARE SERVICES LTD,06/01/2020,880.74,73507-DOMICILIARY CARE,PHYSICAL SUPPORT,Third Party Payments,Revenue
Walsall Council,http://opendatacommunities.org/id/metropolitan-district-council/walsall,WC112-72,31/01/2020,Adult Social Care,5 CARE SERVICES LTD,31/01/2020,885.01,73507-DOMICILIARY CARE,PHYSICAL SUPPORT,Third Party Payments,Revenue
Walsall Council,http://opendatacommunities.org/id/metropolitan-district-council/walsall,WC112-73,31/01/2020,Adult Social Care,5 CARE SERVICES LTD,01/01/2020,903.28,73025-PROFESSIONAL SERVICES-PRIV CONTRACTOR & OTHER AGENCIES,INTERMEDIATE CARE SERVICE,Third Party Payments,Revenue
Walsall Council,http://opendatacommunities.org/id/metropolitan-district-council/walsall,WC112-74,31/01/2020,Adult Social Care,5 CARE SERVICES LTD,03/01/2020,903.28,73025-PROFESSIONAL SERVICES-PRIV CONTRACTOR & OTHER AGENCIES,INTERMEDIATE CARE SERVICE,Third Party Payments,Revenue
Walsall Council,http://opendatacommunities.org/id/metropolitan-district-council/walsall,WC112-75,31/01/2020,Adult Social Care,5 CARE SERVICES LTD,03/01/2020,903.28,73025-PROFESSIONAL SERVICES-PRIV CONTRACTOR & OTHER AGENCIES,INTERMEDIATE CARE SERVICE,Third Party Payments,Revenue
Walsall Council,http://opendatacommunities.org/id/metropolitan-district-council/walsall,WC112-76,31/01/2020,Adult Social Care,5 CARE SERVICES LTD,15/01/2020,903.28,73025-PROFESSIONAL SERVICES-PRIV CONTRACTOR & OTHER AGENCIES,INTERMEDIATE CARE SERVICE,Third Party Payments,Revenue
Walsall Council,http://opendatacommunities.org/id/metropolitan-district-council/walsall,WC112-77,31/01/2020,Adult Social Care,5 CARE SERVICES LTD,15/01/2020,903.28,73025-PROFESSIONAL SERVICES-PRIV CONTRACTOR & OTHER AGENCIES,INTERMEDIATE CARE SERVICE,Third Party Payments,Revenue
Walsall Council,http://opendatacommunities.org/id/metropolitan-district-council/walsall,WC112-78,31/01/2020,Adult Social Care,5 CARE SERVICES LTD,31/01/2020,905.17,73507-DOMICILIARY CARE,PHYSICAL SUPPORT,Third Party Payments,Revenue
Walsall Council,http://opendatacommunities.org/id/metropolitan-district-council/walsall,WC112-79,31/01/2020,Adult Social Care,5 CARE SERVICES LTD,06/01/2020,905.67,73507-DOMICILIARY CARE,PHYSICAL SUPPORT,Third Party Payments,Revenue
Walsall Council,http://opendatacommunities.org/id/metropolitan-district-council/walsall,WC112-80,31/01/2020,Adult Social Care,5 CARE SERVICES LTD,06/01/2020,907.57,73507-DOMICILIARY CARE,PHYSICAL SUPPORT,Third Party Payments,Revenue
Walsall Council,http://opendatacommunities.org/id/metropolitan-district-council/walsall,WC112-81,31/01/2020,Adult Social Care,5 CARE SERVICES LTD,06/01/2020,908.74,73507-DOMICILIARY CARE,PHYSICAL SUPPORT,Third Party Payments,Revenue
Walsall Council,http://opendatacommunities.org/id/metropolitan-district-council/walsall,WC112-82,31/01/2020,Adult Social Care,5 CARE SERVICES LTD,06/01/2020,909.02,73507-DOMICILIARY CARE,PHYSICAL SUPPORT,Third Party Payments,Revenue
Walsall Council,http://opendatacommunities.org/id/metropolitan-district-council/walsall,WC112-83,31/01/2020,Adult Social Care,5 CARE SERVICES LTD,31/01/2020,918.56,73507-DOMICILIARY CARE,PHYSICAL SUPPORT,Third Party Payments,Revenue
Walsall Council,http://opendatacommunities.org/id/metropolitan-district-council/walsall,WC112-84,31/01/2020,Adult Social Care,5 CARE SERVICES LTD,01/01/2020,924.78,73025-PROFESSIONAL SERVICES-PRIV CONTRACTOR & OTHER AGENCIES,INTERMEDIATE CARE SERVICE,Third Party Payments,Revenue
Walsall Council,http://opendatacommunities.org/id/metropolitan-district-council/walsall,WC112-85,31/01/2020,Adult Social Care,5 CARE SERVICES LTD,31/01/2020,929.18,73507-DOMICILIARY CARE,PHYSICAL SUPPORT,Third Party Payments,Revenue
Walsall Council,http://opendatacommunities.org/id/metropolitan-district-council/walsall,WC112-86,31/01/2020,Adult Social Care,5 CARE SERVICES LTD,06/01/2020,940.87,73507-DOMICILIARY CARE,PHYSICAL SUPPORT,Third Party Payments,Revenue
Walsall Council,http://opendatacommunities.org/id/metropolitan-district-council/walsall,WC112-87,31/01/2020,Adult Social Care,5 CARE SERVICES LTD,31/01/2020,950.38,73507-DOMICILIARY CARE,PHYSICAL SUPPORT,Third Party Payments,Revenue
Walsall Council,http://opendatacommunities.org/id/metropolitan-district-council/walsall,WC112-88,31/01/2020,Adult Social Care,5 CARE SERVICES LTD,06/01/2020,958.33,73507-DOMICILIARY CARE,PHYSICAL SUPPORT,Third Party Payments,Revenue
Walsall Council,http://opendatacommunities.org/id/metropolitan-district-council/walsall,WC112-89,31/01/2020,Adult Social Care,5 CARE SERVICES LTD,31/01/2020,"1,017.96",73507-DOMICILIARY CARE,PHYSICAL SUPPORT,Third Party Payments,Revenue
Walsall Council,http://opendatacommunities.org/id/metropolitan-district-council/walsall,WC112-90,31/01/2020,Adult Social Care,5 CARE SERVICES LTD,31/01/2020,"1,020.42",73507-DOMICILIARY CARE,PHYSICAL SUPPORT,Third Party Payments,Revenue
Walsall Council,http://opendatacommunities.org/id/metropolitan-district-council/walsall,WC112-91,31/01/2020,Adult Social Care,5 CARE SERVICES LTD,06/01/2020,"1,040.11",73507-DOMICILIARY CARE,MENTAL HEALTH SUPPORT,Third Party Payments,Revenue
Walsall Council,http://opendatacommunities.org/id/metropolitan-district-council/walsall,WC112-92,31/01/2020,Adult Social Care,5 CARE SERVICES LTD,31/01/2020,"1,055.16",73507-DOMICILIARY CARE,MENTAL HEALTH SUPPORT,Third Party Payments,Revenue
Walsall Council,http://opendatacommunities.org/id/metropolitan-district-council/walsall,WC112-93,31/01/2020,Adult Social Care,5 CARE SERVICES LTD,31/01/2020,"1,096.99",73507-DOMICILIARY CARE,PHYSICAL SUPPORT,Third Party Payments,Revenue
Walsall Council,http://opendatacommunities.org/id/metropolitan-district-council/walsall,WC112-94,31/01/2020,Adult Social Care,5 CARE SERVICES LTD,06/01/2020,"1,130.42",73507-DOMICILIARY CARE,LEARNING DISABILITY SUPPORT,Third Party Payments,Revenue
Walsall Council,http://opendatacommunities.org/id/metropolitan-district-council/walsall,WC112-95,31/01/2020,Adult Social Care,5 CARE SERVICES LTD,31/01/2020,"1,130.88",73507-DOMICILIARY CARE,LEARNING DISABILITY SUPPORT,Third Party Payments,Revenue
Walsall Council,http://opendatacommunities.org/id/metropolitan-district-council/walsall,WC112-96,31/01/2020,Adult Social Care,5 CARE SERVICES LTD,31/01/2020,"1,172.54",73507-DOMICILIARY CARE,PHYSICAL SUPPORT,Third Party Payments,Revenue
Walsall Council,http://opendatacommunities.org/id/metropolitan-district-council/walsall,WC112-97,31/01/2020,Adult Social Care,5 CARE SERVICES LTD,06/01/2020,"1,173.39",73507-DOMICILIARY CARE,PHYSICAL SUPPORT,Third Party Payments,Revenue
Walsall Council,http://opendatacommunities.org/id/metropolitan-district-council/walsall,WC112-98,31/01/2020,Adult Social Care,5 CARE SERVICES LTD,06/01/2020,"1,262.61",73507-DOMICILIARY CARE,PHYSICAL SUPPORT,Third Party Payments,Revenue
Walsall Council,http://opendatacommunities.org/id/metropolitan-district-council/walsall,WC112-99,31/01/2020,Adult Social Care,5 CARE SERVICES LTD,31/01/2020,"1,286.82",73507-DOMICILIARY CARE,PHYSICAL SUPPORT,Third Party Payments,Revenue
Walsall Council,http://opendatacommunities.org/id/metropolitan-district-council/walsall,WC112-100,31/01/2020,Adult Social Care,5 CARE SERVICES LTD,31/01/2020,"1,312.60",73507-DOMICILIARY CARE,PHYSICAL SUPPORT,Third Party Payments,Revenue
Walsall Council,http://opendatacommunities.org/id/metropolitan-district-council/walsall,WC112-101,31/01/2020,Adult Social Care,5 CARE SERVICES LTD,31/01/2020,"1,325.53",73507-DOMICILIARY CARE,PHYSICAL SUPPORT,Third Party Payments,Revenue
Walsall Council,http://opendatacommunities.org/id/metropolitan-district-council/walsall,WC112-102,31/01/2020,Adult Social Care,5 CARE SERVICES LTD,06/01/2020,"1,391.77",73507-DOMICILIARY CARE,PHYSICAL SUPPORT,Third Party Payments,Revenue
Walsall Council,http://opendatacommunities.org/id/metropolitan-district-council/walsall,WC112-103,31/01/2020,Adult Social Care,5 CARE SERVICES LTD,06/01/2020,"1,426.64",73507-DOMICILIARY CARE,PHYSICAL SUPPORT,Third Party Payments,Revenue
Walsall Council,http://opendatacommunities.org/id/metropolitan-district-council/walsall,WC112-104,31/01/2020,Adult Social Care,5 CARE SERVICES LTD,31/01/2020,"1,480.15",73507-DOMICILIARY CARE,PHYSICAL SUPPORT,Third Party Payments,Revenue
Walsall Council,http://opendatacommunities.org/id/metropolitan-district-council/walsall,WC112-105,31/01/2020,Adult Social Care,5 CARE SERVICES LTD,06/01/2020,"1,498.80",73507-DOMICILIARY CARE,PHYSICAL SUPPORT,Third Party Payments,Revenue
Walsall Council,http://opendatacommunities.org/id/metropolitan-district-council/walsall,WC112-106,31/01/2020,Adult Social Care,5 CARE SERVICES LTD,31/01/2020,"1,570.47",73507-DOMICILIARY CARE,PHYSICAL SUPPORT,Third Party Payments,Revenue
Walsall Council,http://opendatacommunities.org/id/metropolitan-district-council/walsall,WC112-107,31/01/2020,Adult Social Care,5 CARE SERVICES LTD,06/01/2020,"1,581.17",73507-DOMICILIARY CARE,PHYSICAL SUPPORT,Third Party Payments,Revenue
Walsall Council,http://opendatacommunities.org/id/metropolitan-district-council/walsall,WC112-108,31/01/2020,Adult Social Care,5 CARE SERVICES LTD,06/01/2020,"1,595.72",73507-DOMICILIARY CARE,PHYSICAL SUPPORT,Third Party Payments,Revenue
Walsall Council,http://opendatacommunities.org/id/metropolitan-district-council/walsall,WC112-109,31/01/2020,Adult Social Care,5 CARE SERVICES LTD,31/01/2020,"1,626.95",73507-DOMICILIARY CARE,PHYSICAL SUPPORT,Third Party Payments,Revenue
Walsall Council,http://opendatacommunities.org/id/metropolitan-district-council/walsall,WC112-110,31/01/2020,Adult Social Care,5 CARE SERVICES LTD,31/01/2020,"1,637.01",73507-DOMICILIARY CARE,PHYSICAL SUPPORT,Third Party Payments,Revenue
Walsall Council,http://opendatacommunities.org/id/metropolitan-district-council/walsall,WC112-111,31/01/2020,Adult Social Care,5 CARE SERVICES LTD,06/01/2020,"1,685.44",73507-DOMICILIARY CARE,PHYSICAL SUPPORT,Third Party Payments,Revenue
Walsall Council,http://opendatacommunities.org/id/metropolitan-district-council/walsall,WC112-112,31/01/2020,Adult Social Care,5 CARE SERVICES LTD,06/01/2020,"1,741.98",73507-DOMICILIARY CARE,PHYSICAL SUPPORT,Third Party Payments,Revenue
Walsall Council,http://opendatacommunities.org/id/metropolitan-district-council/walsall,WC112-113,31/01/2020,Adult Social Care,5 CARE SERVICES LTD,31/01/2020,"1,824.63",73507-DOMICILIARY CARE,MENTAL HEALTH SUPPORT,Third Party Payments,Revenue
Walsall Council,http://opendatacommunities.org/id/metropolitan-district-council/walsall,WC112-114,31/01/2020,Adult Social Care,5 CARE SERVICES LTD,06/01/2020,"1,844.83",73507-DOMICILIARY CARE,PHYSICAL SUPPORT,Third Party Payments,Revenue
Walsall Council,http://opendatacommunities.org/id/metropolitan-district-council/walsall,WC112-115,31/01/2020,Adult Social Care,5 CARE SERVICES LTD,06/01/2020,"1,865.25",73507-DOMICILIARY CARE,MENTAL HEALTH SUPPORT,Third Party Payments,Revenue
Walsall Council,http://opendatacommunities.org/id/metropolitan-district-council/walsall,WC112-116,31/01/2020,Adult Social Care,5 CARE SERVICES LTD,31/01/2020,"1,940.03",73507-DOMICILIARY CARE,PHYSICAL SUPPORT,Third Party Payments,Revenue
Walsall Council,http://opendatacommunities.org/id/metropolitan-district-council/walsall,WC112-117,31/01/2020,Adult Social Care,5 CARE SERVICES LTD,31/01/2020,"1,973.94",73507-DOMICILIARY CARE,PHYSICAL SUPPORT,Third Party Payments,Revenue
Walsall Council,http://opendatacommunities.org/id/metropolitan-district-council/walsall,WC112-118,31/01/2020,Adult Social Care,5 CARE SERVICES LTD,06/01/2020,"2,001.06",73507-DOMICILIARY CARE,PHYSICAL SUPPORT,Third Party Payments,Revenue
Walsall Council,http://opendatacommunities.org/id/metropolitan-district-council/walsall,WC112-119,31/01/2020,Adult Social Care,5 CARE SERVICES LTD,06/01/2020,"2,107.41",73507-DOMICILIARY CARE,PHYSICAL SUPPORT,Third Party Payments,Revenue
Walsall Council,http://opendatacommunities.org/id/metropolitan-district-council/walsall,WC112-120,31/01/2020,Adult Social Care,5 CARE SERVICES LTD,31/01/2020,"2,111.02",73507-DOMICILIARY CARE,PHYSICAL SUPPORT,Third Party Payments,Revenue
Walsall Council,http://opendatacommunities.org/id/metropolitan-district-council/walsall,WC112-121,31/01/2020,Adult Social Care,5 CARE SERVICES LTD,06/01/2020,"2,392.47",73507-DOMICILIARY CARE,PHYSICAL SUPPORT,Third Party Payments,Revenue
Walsall Council,http://opendatacommunities.org/id/metropolitan-district-council/walsall,WC112-122,31/01/2020,Adult Social Care,5 CARE SERVICES LTD,31/01/2020,"2,414.87",73507-DOMICILIARY CARE,PHYSICAL SUPPORT,Third Party Payments,Revenue
Walsall Council,http://opendatacommunities.org/id/metropolitan-district-council/walsall,WC112-123,31/01/2020,Resources and Transformation,A D T FIRE AND SECURITY PLC,21/01/2020,215.72,73002-SECURITY-PRIV CONTRACTOR FEES,CENTRALISED MAINTENANCE,Third Party Payments,Revenue
Walsall Council,http://opendatacommunities.org/id/metropolitan-district-council/walsall,WC112-124,31/01/2020,Resources and Transformation,A D T FIRE AND SECURITY PLC,17/01/2020,240.02,73002-SECURITY-PRIV CONTRACTOR FEES,CENTRALISED MAINTENANCE,Third Party Payments,Revenue
Walsall Council,http://opendatacommunities.org/id/metropolitan-district-council/walsall,WC112-125,31/01/2020,Resources and Transformation,A D T FIRE AND SECURITY PLC,20/01/2020,284.46,73002-SECURITY-PRIV CONTRACTOR FEES,CENTRALISED MAINTENANCE,Third Party Payments,Revenue
Walsall Council,http://opendatacommunities.org/id/metropolitan-district-council/walsall,WC112-126,31/01/2020,Resources and Transformation,A D T FIRE AND SECURITY PLC,01/01/2020,285.07,73002-SECURITY-PRIV CONTRACTOR FEES,CENTRALISED MAINTENANCE,Third Party Payments,Revenue
Walsall Council,http://opendatacommunities.org/id/metropolitan-district-council/walsall,WC112-127,31/01/2020,Resources and Transformation,A D T FIRE AND SECURITY PLC,01/01/2020,491.00,73002-SECURITY-PRIV CONTRACTOR FEES,CENTRALISED MAINTENANCE,Third Party Payments,Revenue
Walsall Council,http://opendatacommunities.org/id/metropolitan-district-council/walsall,WC112-128,31/01/2020,Resources and Transformation,A D T FIRE AND SECURITY PLC,17/01/2020,"1,223.09",73002-SECURITY-PRIV CONTRACTOR FEES,CENTRALISED MAINTENANCE,Third Party Payments,Revenue
Walsall Council,http://opendatacommunities.org/id/metropolitan-district-council/walsall,WC112-129,31/01/2020,Economy & Environment,A F BLAKEMORE & SON LTD,22/01/2020,215.46,61002-DRY FOODS-PROVISIONS,WALSALL GALA CENTRE,Supplies & Services,Revenue
Walsall Council,http://opendatacommunities.org/id/metropolitan-district-council/walsall,WC112-130,31/01/2020,Economy & Environment,A F BLAKEMORE & SON LTD,21/01/2020,261.98,61000-FOOD & DRINK SUPPLIES,OAK PARK,Supplies & Services,Revenue
Walsall Council,http://opendatacommunities.org/id/metropolitan-district-council/walsall,WC112-131,31/01/2020,Economy & Environment,A F BLAKEMORE & SON LTD,22/01/2020,276.30,61000-FOOD & DRINK SUPPLIES,OAK PARK,Supplies & Services,Revenue
Walsall Council,http://opendatacommunities.org/id/metropolitan-district-council/walsall,WC112-132,31/01/2020,Economy & Environment,A F BLAKEMORE & SON LTD,27/01/2020,330.13,61008-CONFECTIONERY/SNACKS-PROVISIONS,DARLASTON LEISURE CENTRE,Supplies & Services,Revenue
Walsall Council,http://opendatacommunities.org/id/metropolitan-district-council/walsall,WC112-133,31/01/2020,Economy & Environment,A F BLAKEMORE & SON LTD,23/01/2020,335.24,61000-FOOD & DRINK SUPPLIES,OAK PARK,Supplies & Services,Revenue
Walsall Council,http://opendatacommunities.org/id/metropolitan-district-council/walsall,WC112-134,31/01/2020,Adult Social Care,A F BLAKEMORE & SON LTD,16/01/2020,388.76,61016-FOOD AND BEVERAGES-PROVISIONS,GOSCOTE,Supplies & Services,Revenue
Walsall Council,http://opendatacommunities.org/id/metropolitan-district-council/walsall,WC112-135,31/01/2020,Adult Social Care,A F BLAKEMORE & SON LTD,14/01/2020,391.17,61016-FOOD AND BEVERAGES-PROVISIONS,GOSCOTE,Supplies & Services,Revenue
Walsall Council,http://opendatacommunities.org/id/metropolitan-district-council/walsall,WC112-136,31/01/2020,Adult Social Care,A F BLAKEMORE & SON LTD,08/01/2020,435.51,61016-FOOD AND BEVERAGES-PROVISIONS,GOSCOTE,Supplies & Services,Revenue
Walsall Council,http://opendatacommunities.org/id/metropolitan-district-council/walsall,WC112-137,31/01/2020,Economy & Environment,A F BLAKEMORE & SON LTD,16/01/2020,540.99,61000-FOOD & DRINK SUPPLIES,OAK PARK,Supplies & Services,Revenue
Walsall Council,http://opendatacommunities.org/id/metropolitan-district-council/walsall,WC112-138,31/01/2020,Economy & Environment,A F BLAKEMORE & SON LTD,17/01/2020,563.20,61016-FOOD AND BEVERAGES-PROVISIONS,BLOXWICH LEISURE CENTRE,Supplies & Services,Revenue
Walsall Council,http://opendatacommunities.org/id/metropolitan-district-council/walsall,WC112-139,31/01/2020,Economy & Environment,A F BLAKEMORE & SON LTD,14/01/2020,678.53,61000-FOOD & DRINK SUPPLIES,BLOXWICH LEISURE CENTRE,Supplies & Services,Revenue
Walsall Council,http://opendatacommunities.org/id/metropolitan-district-council/walsall,WC112-140,31/01/2020,Economy & Environment,A F BLAKEMORE & SON LTD,23/01/2020,763.99,61000-FOOD & DRINK SUPPLIES,OAK PARK,Supplies & Services,Revenue
Walsall Council,http://opendatacommunities.org/id/metropolitan-district-council/walsall,WC112-141,31/01/2020,Resources and Transformation,AAINA COMMUNITY HUB,01/01/2020,"4,725.00",66500-GRANTS TO OTHER ORGS,LET'S TALK ABOUT IT PROJECT,Third Party Payments,Revenue
Walsall Council,http://opendatacommunities.org/id/metropolitan-district-council/walsall,WC112-142,31/01/2020,Childrens,REDACTED,07/01/2020,712.12,73506-DIRECT PAYMENT,FAMILY SUPPORT - DIRECT PAYMENTS,Third Party Payments,Revenue
Walsall Council,http://opendatacommunities.org/id/metropolitan-district-council/walsall,WC112-143,31/01/2020,Adult Social Care,ABBEY COURT NURSING & RESIDEN,02/01/2020,"1,814.96",73500-RESIDENTIAL,PHYSICAL SUPPORT,Third Party Payments,Revenue
Walsall Council,http://opendatacommunities.org/id/metropolitan-district-council/walsall,WC112-144,31/01/2020,Adult Social Care,ABBEY COURT NURSING & RESIDEN,02/01/2020,"1,972.24",73501-RESIDENTIAL EMI,PHYSICAL SUPPORT,Third Party Payments,Revenue
Walsall Council,http://opendatacommunities.org/id/metropolitan-district-council/walsall,WC112-145,31/01/2020,Adult Social Care,ABBEY COURT NURSING & RESIDEN,02/01/2020,"1,972.24",73501-RESIDENTIAL EMI,PHYSICAL SUPPORT,Third Party Payments,Revenue
Walsall Council,http://opendatacommunities.org/id/metropolitan-district-council/walsall,WC112-146,31/01/2020,Adult Social Care,ABBEY COURT NURSING & RESIDEN,02/01/2020,"1,972.24",73501-RESIDENTIAL EMI,SUPPORT WITH MEMORY & COGNITION,Third Party Payments,Revenue
Walsall Council,http://opendatacommunities.org/id/metropolitan-district-council/walsall,WC112-147,31/01/2020,Adult Social Care,ABBEY COURT NURSING & RESIDEN,02/01/2020,"2,143.72",73502-NURSING,PHYSICAL SUPPORT,Third Party Payments,Revenue
Walsall Council,http://opendatacommunities.org/id/metropolitan-district-council/walsall,WC112-148,31/01/2020,Adult Social Care,ABBEY COURT NURSING & RESIDEN,02/01/2020,"2,358.08",73503-NURSING EMI,MENTAL HEALTH SUPPORT,Third Party Payments,Revenue
Walsall Council,http://opendatacommunities.org/id/metropolitan-district-council/walsall,WC112-149,31/01/2020,Adult Social Care,ABBEY COURT NURSING & RESIDEN,02/01/2020,"2,383.72",73502-NURSING,SUPPORT WITH MEMORY & COGNITION,Third Party Payments,Revenue
Walsall Council,http://opendatacommunities.org/id/metropolitan-district-council/walsall,WC112-150,31/01/2020,Adult Social Care,ABBEY HEALTHCARE HOMES LTD,02/01/2020,"2,317.04",73500-RESIDENTIAL,PHYSICAL SUPPORT,Third Party Payments,Revenue
Walsall Council,http://opendatacommunities.org/id/metropolitan-district-council/walsall,WC112-151,31/01/2020,Adult Social Care,ABBEY HEALTHCARE HOMES LTD,02/01/2020,"3,030.00",73500-RESIDENTIAL,LEARNING DISABILITY SUPPORT,Third Party Payments,Revenue
Walsall Council,http://opendatacommunities.org/id/metropolitan-district-council/walsall,WC112-152,31/01/2020,Adult Social Care,ABBEY HEALTHCARE HOMES LTD,02/01/2020,"3,030.00",73500-RESIDENTIAL,PHYSICAL SUPPORT,Third Party Payments,Revenue
Walsall Council,http://opendatacommunities.org/id/metropolitan-district-council/walsall,WC112-153,31/01/2020,Adult Social Care,ABBEY HEALTHCARE HOMES LTD,02/01/2020,"3,434.00",73500-RESIDENTIAL,LEARNING DISABILITY SUPPORT,Third Party Payments,Revenue
Walsall Council,http://opendatacommunities.org/id/metropolitan-district-council/walsall,WC112-154,31/01/2020,Adult Social Care,ABBEY HEALTHCARE HOMES LTD,02/01/2020,"3,514.44",73503-NURSING EMI,PHYSICAL SUPPORT,Third Party Payments,Revenue
Walsall Council,http://opendatacommunities.org/id/metropolitan-district-council/walsall,WC112-155,31/01/2020,Childrens,ABC DAY NURSERY (WILLENHALL) LIMITED,03/01/2020,943.20,66505-OTHER-GRANTS TO OTHER ORGS,EARLY YEARS - 2 YR OLDS,Third Party Payments,Revenue
Walsall Council,http://opendatacommunities.org/id/metropolitan-district-council/walsall,WC112-156,31/01/2020,Childrens,ABC DAY NURSERY (WILLENHALL) LIMITED,02/01/2020,"11,023.65",66505-OTHER-GRANTS TO OTHER ORGS,EARLY YEARS - 2 YR OLDS,Third Party Payments,Revenue
Walsall Council,http://opendatacommunities.org/id/metropolitan-district-council/walsall,WC112-157,31/01/2020,Childrens,ABC DAY NURSERY (WILLENHALL) LIMITED,02/01/2020,"22,609.13",66505-OTHER-GRANTS TO OTHER ORGS,EARLY YEARS - 3 YR OLDS,Third Party Payments,Revenue
Walsall Council,http://opendatacommunities.org/id/metropolitan-district-council/walsall,WC112-158,31/01/2020,Adult Social Care,REDACTED,03/01/2020,"1,999.20",73506-DIRECT PAYMENT,LEARNING DISABILITY SUPPORT,Third Party Payments,Revenue
Walsall Council,http://opendatacommunities.org/id/metropolitan-district-council/walsall,WC112-159,31/01/2020,Resources and Transformation,ABLEWELL ADVICE SERVICES,15/01/2020,"3,750.00",66500-GRANTS TO OTHER ORGS,AREA PARTNERSHIPS,Third Party Payments,Revenue
Walsall Council,http://opendatacommunities.org/id/metropolitan-district-council/walsall,WC112-160,31/01/2020,Childrens,ABLEWELL CARS,03/01/2020,328.00,52000-WITH DRIVER-HIRE OF VEHICLES,HOME TO SCHOOL TRANSPORT,Transport,Revenue
Walsall Council,http://opendatacommunities.org/id/metropolitan-district-council/walsall,WC112-161,31/01/2020,Childrens,ABLEWELL CARS,03/01/2020,528.00,52000-WITH DRIVER-HIRE OF VEHICLES,HOME TO SCHOOL TRANSPORT,Transport,Revenue
Walsall Council,http://opendatacommunities.org/id/metropolitan-district-council/walsall,WC112-162,31/01/2020,Childrens,ABLEWELL CARS,03/01/2020,528.00,52000-WITH DRIVER-HIRE OF VEHICLES,HOME TO SCHOOL TRANSPORT,Transport,Revenue
Walsall Council,http://opendatacommunities.org/id/metropolitan-district-council/walsall,WC112-163,31/01/2020,Childrens,ABLEWELL CARS,03/01/2020,656.00,52000-WITH DRIVER-HIRE OF VEHICLES,HOME TO SCHOOL TRANSPORT,Transport,Revenue
Walsall Council,http://opendatacommunities.org/id/metropolitan-district-council/walsall,WC112-164,31/01/2020,Childrens,ABLEWELL CARS,03/01/2020,"1,266.40",52000-WITH DRIVER-HIRE OF VEHICLES,HOME TO SCHOOL TRANSPORT,Transport,Revenue
Walsall Council,http://opendatacommunities.org/id/metropolitan-district-council/walsall,WC112-165,31/01/2020,Childrens,ABS TAXIS (ALDRIDGE),03/01/2020,378.00,52000-WITH DRIVER-HIRE OF VEHICLES,HOME TO SCHOOL TRANSPORT,Transport,Revenue
Walsall Council,http://opendatacommunities.org/id/metropolitan-district-council/walsall,WC112-166,31/01/2020,Childrens,ABS TAXIS (ALDRIDGE),03/01/2020,378.00,52000-WITH DRIVER-HIRE OF VEHICLES,HOME TO SCHOOL TRANSPORT,Transport,Revenue
Walsall Council,http://opendatacommunities.org/id/metropolitan-district-council/walsall,WC112-167,31/01/2020,Childrens,ABS TAXIS (ALDRIDGE),03/01/2020,378.00,52000-WITH DRIVER-HIRE OF VEHICLES,HOME TO SCHOOL TRANSPORT,Transport,Revenue
Walsall Council,http://opendatacommunities.org/id/metropolitan-district-council/walsall,WC112-168,31/01/2020,Childrens,ABS TAXIS (ALDRIDGE),03/01/2020,378.00,52000-WITH DRIVER-HIRE OF VEHICLES,HOME TO SCHOOL TRANSPORT,Transport,Revenue
Walsall Council,http://opendatacommunities.org/id/metropolitan-district-council/walsall,WC112-169,31/01/2020,Childrens,ABS TAXIS (ALDRIDGE),03/01/2020,402.80,52000-WITH DRIVER-HIRE OF VEHICLES,HOME TO SCHOOL TRANSPORT,Transport,Revenue
Walsall Council,http://opendatacommunities.org/id/metropolitan-district-council/walsall,WC112-170,31/01/2020,Childrens,ABS TAXIS (ALDRIDGE),03/01/2020,403.60,52000-WITH DRIVER-HIRE OF VEHICLES,HOME TO SCHOOL TRANSPORT,Transport,Revenue
Walsall Council,http://opendatacommunities.org/id/metropolitan-district-council/walsall,WC112-171,31/01/2020,Childrens,ABS TAXIS (ALDRIDGE),03/01/2020,403.60,52000-WITH DRIVER-HIRE OF VEHICLES,HOME TO SCHOOL TRANSPORT,Transport,Revenue
Walsall Council,http://opendatacommunities.org/id/metropolitan-district-council/walsall,WC112-172,31/01/2020,Childrens,ABS TAXIS (ALDRIDGE),03/01/2020,490.00,52000-WITH DRIVER-HIRE OF VEHICLES,HOME TO SCHOOL TRANSPORT,Transport,Revenue
Walsall Council,http://opendatacommunities.org/id/metropolitan-district-council/walsall,WC112-173,31/01/2020,Childrens,ABS TAXIS (ALDRIDGE),03/01/2020,490.00,52000-WITH DRIVER-HIRE OF VEHICLES,HOME TO SCHOOL TRANSPORT,Transport,Revenue
Walsall Council,http://opendatacommunities.org/id/metropolitan-district-council/walsall,WC112-174,31/01/2020,Childrens,ABU BAKR NURSERY,03/01/2020,393.00,66505-OTHER-GRANTS TO OTHER ORGS,EARLY YEARS - 2 YR OLDS,Third Party Payments,Revenue
Walsall Council,http://opendatacommunities.org/id/metropolitan-district-council/walsall,WC112-175,31/01/2020,Childrens,ABU BAKR NURSERY,17/01/2020,"1,530.59",66502-TOP UP FUNDING -GRANTS TO SCHOOLS,INDEPENDENT PROVIDERS - SPECIAL & AP,Third Party Payments,Revenue
Walsall Council,http://opendatacommunities.org/id/metropolitan-district-council/walsall,WC112-176,31/01/2020,Childrens,ABU BAKR NURSERY,06/01/2020,"14,265.90",66505-OTHER-GRANTS TO OTHER ORGS,EARLY YEARS - 2 YR OLDS,Third Party Payments,Revenue
Walsall Council,http://opendatacommunities.org/id/metropolitan-district-council/walsall,WC112-177,31/01/2020,Childrens,ABU BAKR NURSERY,06/01/2020,"27,647.89",66505-OTHER-GRANTS TO OTHER ORGS,EARLY YEARS - 3 YR OLDS,Third Party Payments,Revenue
Walsall Council,http://opendatacommunities.org/id/metropolitan-district-council/walsall,WC112-178,31/01/2020,Economy & Environment,AC JADE TRADING LIMITED,07/01/2020,528.25,60514-MATERIALS TO STORES,NAG - NEW ART GALLERY SHOP STOCK,Supplies & Services,Revenue
Walsall Council,http://opendatacommunities.org/id/metropolitan-district-council/walsall,WC112-179,31/01/2020,Economy & Environment,ACCESS INNOVATIONS UK LIMITED,01/01/2020,454.18,60500-GENERAL MATERIALS,ARBORETUM,Supplies & Services,Revenue
Walsall Council,http://opendatacommunities.org/id/metropolitan-district-council/walsall,WC112-180,31/01/2020,Childrens,ACCORD - AGE MATTERS,07/01/2020,778.71,73506-DIRECT PAYMENT,FAMILY SUPPORT - DIRECT PAYMENTS,Third Party Payments,Revenue
Walsall Council,http://opendatacommunities.org/id/metropolitan-district-council/walsall,WC112-181,31/01/2020,Adult Social Care,ACCORD HOUSING ASSOCIATION LIMITED - HOBS MEADOW,02/01/2020,"4,550.44",73500-RESIDENTIAL,LEARNING DISABILITY SUPPORT,Third Party Payments,Revenue
Walsall Council,http://opendatacommunities.org/id/metropolitan-district-council/walsall,WC112-182,31/01/2020,Adult Social Care,ACCORD HOUSING ASSOCIATION LIMITED - HOBS MEADOW,02/01/2020,"4,550.44",73500-RESIDENTIAL,LEARNING DISABILITY SUPPORT,Third Party Payments,Revenue
Walsall Council,http://opendatacommunities.org/id/metropolitan-district-council/walsall,WC112-183,31/01/2020,Adult Social Care,ACCORD HOUSING ASSOCIATION LIMITED - HOBS MEADOW,02/01/2020,"4,550.44",73500-RESIDENTIAL,LEARNING DISABILITY SUPPORT,Third Party Payments,Revenue
Walsall Council,http://opendatacommunities.org/id/metropolitan-district-council/walsall,WC112-184,31/01/2020,Adult Social Care,ACCORD HOUSING ASSOCIATION LIMITED - HOBS MEADOW,02/01/2020,"4,550.44",73500-RESIDENTIAL,LEARNING DISABILITY SUPPORT,Third Party Payments,Revenue
Walsall Council,http://opendatacommunities.org/id/metropolitan-district-council/walsall,WC112-185,31/01/2020,Resources and Transformation,ACCORD HOUSING ASSOCIATION LTD#135,01/01/2020,400.00,43000-RENTS,HOMELESSNESS PREVENTION STRATEGY,Premises,Revenue
Walsall Council,http://opendatacommunities.org/id/metropolitan-district-council/walsall,WC112-186,31/01/2020,Adult Social Care,ACCORD HOUSING ASSOCIATION LTD#135,20/01/2020,604.48,73508-COMMUNITY SUPPORTED LIVING/SUPPORTED ACCOMMODATION,MENTAL HEALTH SUPPORT,Third Party Payments,Revenue
Walsall Council,http://opendatacommunities.org/id/metropolitan-district-council/walsall,WC112-187,31/01/2020,Adult Social Care,ACCORD HOUSING ASSOCIATION LTD#135,20/01/2020,604.48,73508-COMMUNITY SUPPORTED LIVING/SUPPORTED ACCOMMODATION,MENTAL HEALTH SUPPORT,Third Party Payments,Revenue
Walsall Council,http://opendatacommunities.org/id/metropolitan-district-council/walsall,WC112-188,31/01/2020,Adult Social Care,ACCORD HOUSING ASSOCIATION LTD#135,20/01/2020,604.48,73508-COMMUNITY SUPPORTED LIVING/SUPPORTED ACCOMMODATION,MENTAL HEALTH SUPPORT,Third Party Payments,Revenue
Walsall Council,http://opendatacommunities.org/id/metropolitan-district-council/walsall,WC112-189,31/01/2020,Adult Social Care,ACCORD HOUSING ASSOCIATION LTD#135,20/01/2020,604.48,73508-COMMUNITY SUPPORTED LIVING/SUPPORTED ACCOMMODATION,MENTAL HEALTH SUPPORT,Third Party Payments,Revenue
Walsall Council,http://opendatacommunities.org/id/metropolitan-district-council/walsall,WC112-190,31/01/2020,Adult Social Care,ACCORD HOUSING ASSOCIATION LTD#135,20/01/2020,604.48,73508-COMMUNITY SUPPORTED LIVING/SUPPORTED ACCOMMODATION,MENTAL HEALTH SUPPORT,Third Party Payments,Revenue
Walsall Council,http://opendatacommunities.org/id/metropolitan-district-council/walsall,WC112-191,31/01/2020,Adult Social Care,ACCORD HOUSING ASSOCIATION LTD#135,20/01/2020,604.48,73508-COMMUNITY SUPPORTED LIVING/SUPPORTED ACCOMMODATION,MENTAL HEALTH SUPPORT,Third Party Payments,Revenue
Walsall Council,http://opendatacommunities.org/id/metropolitan-district-council/walsall,WC112-192,31/01/2020,Adult Social Care,ACCORD HOUSING ASSOCIATION LTD#135,20/01/2020,604.48,73508-COMMUNITY SUPPORTED LIVING/SUPPORTED ACCOMMODATION,MENTAL HEALTH SUPPORT,Third Party Payments,Revenue
Walsall Council,http://opendatacommunities.org/id/metropolitan-district-council/walsall,WC112-193,31/01/2020,Adult Social Care,ACCORD HOUSING ASSOCIATION LTD#135,20/01/2020,604.48,73508-COMMUNITY SUPPORTED LIVING/SUPPORTED ACCOMMODATION,MENTAL HEALTH SUPPORT,Third Party Payments,Revenue
Walsall Council,http://opendatacommunities.org/id/metropolitan-district-council/walsall,WC112-194,31/01/2020,Resources and Transformation,ACCORD HOUSING ASSOCIATION LTD#135,08/01/2020,"2,500.00",66500-GRANTS TO OTHER ORGS,LET'S TALK ABOUT IT PROJECT,Third Party Payments,Revenue
Walsall Council,http://opendatacommunities.org/id/metropolitan-district-council/walsall,WC112-195,31/01/2020,Adult Social Care,ACCORD HOUSING ASSOCIATION LTD#135,02/01/2020,"5,671.44",73500-RESIDENTIAL,LEARNING DISABILITY SUPPORT,Third Party Payments,Revenue
Walsall Council,http://opendatacommunities.org/id/metropolitan-district-council/walsall,WC112-196,31/01/2020,Adult Social Care,ACCORD HOUSING ASSOCIATION LTD#135,02/01/2020,"6,350.96",73500-RESIDENTIAL,LEARNING DISABILITY SUPPORT,Third Party Payments,Revenue
Walsall Council,http://opendatacommunities.org/id/metropolitan-district-council/walsall,WC112-197,31/01/2020,Adult Social Care,ACCORD HOUSING ASSOCIATION LTD#135,02/01/2020,"6,350.96",73500-RESIDENTIAL,LEARNING DISABILITY SUPPORT,Third Party Payments,Revenue
Walsall Council,http://opendatacommunities.org/id/metropolitan-district-council/walsall,WC112-198,31/01/2020,Adult Social Care,ACCORD HOUSING ASSOCIATION LTD#135,30/01/2020,"6,554.19",70000-SOCIAL SERVICES-FEES TO VOLUNTARY BODIES,COMPLEX NEEDS SLA,Third Party Payments,Revenue
Walsall Council,http://opendatacommunities.org/id/metropolitan-district-council/walsall,WC112-199,31/01/2020,Childrens,ACCORD HOUSING ASSOCIATION LTD#135,01/01/2020,"6,655.50",63102-CONSULTANTS FEES - CORPORATE,EARLY HELP HUB,Supplies & Services,Revenue
Walsall Council,http://opendatacommunities.org/id/metropolitan-district-council/walsall,WC112-200,31/01/2020,Resources and Transformation,ACCORD HOUSING ASSOCIATION LTD#135,21/01/2020,"21,144.92",63000-PROFESSIONAL FEES AND SERVICES,HOUSING FIRST,Supplies & Services,Revenue
Walsall Council,http://opendatacommunities.org/id/metropolitan-district-council/walsall,WC112-201,31/01/2020,Resources and Transformation,ACCORD HOUSING ASSOCIATION LTD#135,16/01/2020,"47,217.50",73365-BLOCK GROSS-SUPPORTING PEOPLE,DOMESTIC VIOLENCE REFUGE,Third Party Payments,Revenue
Walsall Council,http://opendatacommunities.org/id/metropolitan-district-council/walsall,WC112-202,31/01/2020,Childrens,ACE CARS & MINIBUSES LTD,22/01/2020,"-2,080.00",52000-WITH DRIVER-HIRE OF VEHICLES,HOME TO SCHOOL TRANSPORT,Transport,Revenue
Walsall Council,http://opendatacommunities.org/id/metropolitan-district-council/walsall,WC112-203,31/01/2020,Childrens,ACE CARS & MINIBUSES LTD,22/01/2020,"-1,760.00",52000-WITH DRIVER-HIRE OF VEHICLES,HOME TO SCHOOL TRANSPORT,Transport,Revenue
Walsall Council,http://opendatacommunities.org/id/metropolitan-district-council/walsall,WC112-204,31/01/2020,Childrens,ACE CARS & MINIBUSES LTD,22/01/2020,"-1,600.00",52000-WITH DRIVER-HIRE OF VEHICLES,HOME TO SCHOOL TRANSPORT,Transport,Revenue
Walsall Council,http://opendatacommunities.org/id/metropolitan-district-council/walsall,WC112-205,31/01/2020,Childrens,ACE CARS & MINIBUSES LTD,22/01/2020,-896.10,52000-WITH DRIVER-HIRE OF VEHICLES,HOME TO SCHOOL TRANSPORT,Transport,Revenue
Walsall Council,http://opendatacommunities.org/id/metropolitan-district-council/walsall,WC112-206,31/01/2020,Childrens,ACE CARS & MINIBUSES LTD,22/01/2020,-800.00,52000-WITH DRIVER-HIRE OF VEHICLES,HOME TO SCHOOL TRANSPORT,Transport,Revenue
Walsall Council,http://opendatacommunities.org/id/metropolitan-district-council/walsall,WC112-207,31/01/2020,Childrens,ACE CARS & MINIBUSES LTD,22/01/2020,-770.00,52000-WITH DRIVER-HIRE OF VEHICLES,HOME TO SCHOOL TRANSPORT,Transport,Revenue
Walsall Council,http://opendatacommunities.org/id/metropolitan-district-council/walsall,WC112-208,31/01/2020,Childrens,ACE CARS & MINIBUSES LTD,22/01/2020,-350.00,52000-WITH DRIVER-HIRE OF VEHICLES,HOME TO SCHOOL TRANSPORT,Transport,Revenue
Walsall Council,http://opendatacommunities.org/id/metropolitan-district-council/walsall,WC112-209,31/01/2020,Childrens,ACE CARS & MINIBUSES LTD,22/01/2020,-308.00,52000-WITH DRIVER-HIRE OF VEHICLES,HOME TO SCHOOL TRANSPORT,Transport,Revenue
Walsall Council,http://opendatacommunities.org/id/metropolitan-district-council/walsall,WC112-210,31/01/2020,Childrens,ACE CARS & MINIBUSES LTD,03/01/2020,368.00,52000-WITH DRIVER-HIRE OF VEHICLES,HOME TO SCHOOL TRANSPORT,Transport,Revenue
Walsall Council,http://opendatacommunities.org/id/metropolitan-district-council/walsall,WC112-211,31/01/2020,Childrens,ACE CARS & MINIBUSES LTD,03/01/2020,368.00,52000-WITH DRIVER-HIRE OF VEHICLES,HOME TO SCHOOL TRANSPORT,Transport,Revenue
Walsall Council,http://opendatacommunities.org/id/metropolitan-district-council/walsall,WC112-212,31/01/2020,Childrens,ACE CARS & MINIBUSES LTD,03/01/2020,368.00,52000-WITH DRIVER-HIRE OF VEHICLES,HOME TO SCHOOL TRANSPORT,Transport,Revenue
Walsall Council,http://opendatacommunities.org/id/metropolitan-district-council/walsall,WC112-213,31/01/2020,Childrens,ACE CARS & MINIBUSES LTD,03/01/2020,368.00,52000-WITH DRIVER-HIRE OF VEHICLES,HOME TO SCHOOL TRANSPORT,Transport,Revenue
Walsall Council,http://opendatacommunities.org/id/metropolitan-district-council/walsall,WC112-214,31/01/2020,Childrens,ACE CARS & MINIBUSES LTD,03/01/2020,368.00,52000-WITH DRIVER-HIRE OF VEHICLES,HOME TO SCHOOL TRANSPORT,Transport,Revenue
Walsall Council,http://opendatacommunities.org/id/metropolitan-district-council/walsall,WC112-215,31/01/2020,Childrens,ACE CARS & MINIBUSES LTD,03/01/2020,383.60,52000-WITH DRIVER-HIRE OF VEHICLES,HOME TO SCHOOL TRANSPORT,Transport,Revenue
Walsall Council,http://opendatacommunities.org/id/metropolitan-district-council/walsall,WC112-216,31/01/2020,Childrens,ACE CARS & MINIBUSES LTD,03/01/2020,383.60,52000-WITH DRIVER-HIRE OF VEHICLES,HOME TO SCHOOL TRANSPORT,Transport,Revenue
Walsall Council,http://opendatacommunities.org/id/metropolitan-district-council/walsall,WC112-217,31/01/2020,Childrens,ACE CARS & MINIBUSES LTD,03/01/2020,383.60,52000-WITH DRIVER-HIRE OF VEHICLES,HOME TO SCHOOL TRANSPORT,Transport,Revenue
Walsall Council,http://opendatacommunities.org/id/metropolitan-district-council/walsall,WC112-218,31/01/2020,Childrens,ACE CARS & MINIBUSES LTD,03/01/2020,383.60,52000-WITH DRIVER-HIRE OF VEHICLES,HOME TO SCHOOL TRANSPORT,Transport,Revenue
Walsall Council,http://opendatacommunities.org/id/metropolitan-district-council/walsall,WC112-219,31/01/2020,Childrens,ACE CARS & MINIBUSES LTD,03/01/2020,383.60,52000-WITH DRIVER-HIRE OF VEHICLES,HOME TO SCHOOL TRANSPORT,Transport,Revenue
Walsall Council,http://opendatacommunities.org/id/metropolitan-district-council/walsall,WC112-220,31/01/2020,Childrens,ACE CARS & MINIBUSES LTD,03/01/2020,383.60,52000-WITH DRIVER-HIRE OF VEHICLES,HOME TO SCHOOL TRANSPORT,Transport,Revenue
Walsall Council,http://opendatacommunities.org/id/metropolitan-district-council/walsall,WC112-221,31/01/2020,Childrens,ACE CARS & MINIBUSES LTD,03/01/2020,414.00,52000-WITH DRIVER-HIRE OF VEHICLES,HOME TO SCHOOL TRANSPORT,Transport,Revenue
Walsall Council,http://opendatacommunities.org/id/metropolitan-district-council/walsall,WC112-222,31/01/2020,Childrens,ACE CARS & MINIBUSES LTD,03/01/2020,414.00,52000-WITH DRIVER-HIRE OF VEHICLES,HOME TO SCHOOL TRANSPORT,Transport,Revenue
Walsall Council,http://opendatacommunities.org/id/metropolitan-district-council/walsall,WC112-223,31/01/2020,Childrens,ACE CARS & MINIBUSES LTD,03/01/2020,414.00,52000-WITH DRIVER-HIRE OF VEHICLES,HOME TO SCHOOL TRANSPORT,Transport,Revenue
Walsall Council,http://opendatacommunities.org/id/metropolitan-district-council/walsall,WC112-224,31/01/2020,Childrens,ACE CARS & MINIBUSES LTD,03/01/2020,414.00,52000-WITH DRIVER-HIRE OF VEHICLES,HOME TO SCHOOL TRANSPORT,Transport,Revenue
Walsall Council,http://opendatacommunities.org/id/metropolitan-district-council/walsall,WC112-225,31/01/2020,Childrens,ACE CARS & MINIBUSES LTD,03/01/2020,414.00,52000-WITH DRIVER-HIRE OF VEHICLES,HOME TO SCHOOL TRANSPORT,Transport,Revenue
Walsall Council,http://opendatacommunities.org/id/metropolitan-district-council/walsall,WC112-226,31/01/2020,Childrens,ACE CARS & MINIBUSES LTD,03/01/2020,414.00,52000-WITH DRIVER-HIRE OF VEHICLES,HOME TO SCHOOL TRANSPORT,Transport,Revenue
Walsall Council,http://opendatacommunities.org/id/metropolitan-district-council/walsall,WC112-227,31/01/2020,Childrens,ACE CARS & MINIBUSES LTD,03/01/2020,414.00,52000-WITH DRIVER-HIRE OF VEHICLES,HOME TO SCHOOL TRANSPORT,Transport,Revenue
Walsall Council,http://opendatacommunities.org/id/metropolitan-district-council/walsall,WC112-228,31/01/2020,Childrens,ACE CARS & MINIBUSES LTD,03/01/2020,414.00,52000-WITH DRIVER-HIRE OF VEHICLES,HOME TO SCHOOL TRANSPORT,Transport,Revenue
Walsall Council,http://opendatacommunities.org/id/metropolitan-district-council/walsall,WC112-229,31/01/2020,Childrens,ACE CARS & MINIBUSES LTD,03/01/2020,414.00,52000-WITH DRIVER-HIRE OF VEHICLES,HOME TO SCHOOL TRANSPORT,Transport,Revenue
Walsall Council,http://opendatacommunities.org/id/metropolitan-district-council/walsall,WC112-230,31/01/2020,Childrens,ACE CARS & MINIBUSES LTD,03/01/2020,414.00,52000-WITH DRIVER-HIRE OF VEHICLES,HOME TO SCHOOL TRANSPORT,Transport,Revenue
Walsall Council,http://opendatacommunities.org/id/metropolitan-district-council/walsall,WC112-231,31/01/2020,Childrens,ACE CARS & MINIBUSES LTD,03/01/2020,437.00,52000-WITH DRIVER-HIRE OF VEHICLES,HOME TO SCHOOL TRANSPORT,Transport,Revenue
Walsall Council,http://opendatacommunities.org/id/metropolitan-district-council/walsall,WC112-232,31/01/2020,Childrens,ACE CARS & MINIBUSES LTD,03/01/2020,437.20,52000-WITH DRIVER-HIRE OF VEHICLES,HOME TO SCHOOL TRANSPORT,Transport,Revenue
Walsall Council,http://opendatacommunities.org/id/metropolitan-district-council/walsall,WC112-233,31/01/2020,Childrens,ACE CARS & MINIBUSES LTD,03/01/2020,437.20,52000-WITH DRIVER-HIRE OF VEHICLES,HOME TO SCHOOL TRANSPORT,Transport,Revenue
Walsall Council,http://opendatacommunities.org/id/metropolitan-district-council/walsall,WC112-234,31/01/2020,Childrens,ACE CARS & MINIBUSES LTD,03/01/2020,437.20,52000-WITH DRIVER-HIRE OF VEHICLES,HOME TO SCHOOL TRANSPORT,Transport,Revenue
Walsall Council,http://opendatacommunities.org/id/metropolitan-district-council/walsall,WC112-235,31/01/2020,Childrens,ACE CARS & MINIBUSES LTD,03/01/2020,437.20,52000-WITH DRIVER-HIRE OF VEHICLES,HOME TO SCHOOL TRANSPORT,Transport,Revenue
Walsall Council,http://opendatacommunities.org/id/metropolitan-district-council/walsall,WC112-236,31/01/2020,Childrens,ACE CARS & MINIBUSES LTD,03/01/2020,437.20,52000-WITH DRIVER-HIRE OF VEHICLES,HOME TO SCHOOL TRANSPORT,Transport,Revenue
Walsall Council,http://opendatacommunities.org/id/metropolitan-district-council/walsall,WC112-237,31/01/2020,Childrens,ACE CARS & MINIBUSES LTD,03/01/2020,437.20,52000-WITH DRIVER-HIRE OF VEHICLES,HOME TO SCHOOL TRANSPORT,Transport,Revenue
Walsall Council,http://opendatacommunities.org/id/metropolitan-district-council/walsall,WC112-238,31/01/2020,Childrens,ACE CARS & MINIBUSES LTD,03/01/2020,437.20,52000-WITH DRIVER-HIRE OF VEHICLES,HOME TO SCHOOL TRANSPORT,Transport,Revenue
Walsall Council,http://opendatacommunities.org/id/metropolitan-district-council/walsall,WC112-239,31/01/2020,Childrens,ACE CARS & MINIBUSES LTD,03/01/2020,437.20,52000-WITH DRIVER-HIRE OF VEHICLES,HOME TO SCHOOL TRANSPORT,Transport,Revenue
Walsall Council,http://opendatacommunities.org/id/metropolitan-district-council/walsall,WC112-240,31/01/2020,Childrens,ACE CARS & MINIBUSES LTD,03/01/2020,437.20,52000-WITH DRIVER-HIRE OF VEHICLES,HOME TO SCHOOL TRANSPORT,Transport,Revenue
Walsall Council,http://opendatacommunities.org/id/metropolitan-district-council/walsall,WC112-241,31/01/2020,Childrens,ACE CARS & MINIBUSES LTD,03/01/2020,450.00,52000-WITH DRIVER-HIRE OF VEHICLES,HOME TO SCHOOL TRANSPORT,Transport,Revenue
Walsall Council,http://opendatacommunities.org/id/metropolitan-district-council/walsall,WC112-242,31/01/2020,Childrens,ACE CARS & MINIBUSES LTD,03/01/2020,450.00,52000-WITH DRIVER-HIRE OF VEHICLES,HOME TO SCHOOL TRANSPORT,Transport,Revenue
Walsall Council,http://opendatacommunities.org/id/metropolitan-district-council/walsall,WC112-243,31/01/2020,Childrens,ACE CARS & MINIBUSES LTD,03/01/2020,506.00,52000-WITH DRIVER-HIRE OF VEHICLES,HOME TO SCHOOL TRANSPORT,Transport,Revenue
Walsall Council,http://opendatacommunities.org/id/metropolitan-district-council/walsall,WC112-244,31/01/2020,Childrens,ACE CARS & MINIBUSES LTD,03/01/2020,506.00,52000-WITH DRIVER-HIRE OF VEHICLES,HOME TO SCHOOL TRANSPORT,Transport,Revenue
Walsall Council,http://opendatacommunities.org/id/metropolitan-district-council/walsall,WC112-245,31/01/2020,Childrens,ACE CARS & MINIBUSES LTD,03/01/2020,506.00,52000-WITH DRIVER-HIRE OF VEHICLES,HOME TO SCHOOL TRANSPORT,Transport,Revenue
Walsall Council,http://opendatacommunities.org/id/metropolitan-district-council/walsall,WC112-246,31/01/2020,Childrens,ACE CARS & MINIBUSES LTD,03/01/2020,506.00,52000-WITH DRIVER-HIRE OF VEHICLES,HOME TO SCHOOL TRANSPORT,Transport,Revenue
Walsall Council,http://opendatacommunities.org/id/metropolitan-district-council/walsall,WC112-247,31/01/2020,Childrens,ACE CARS & MINIBUSES LTD,03/01/2020,506.00,52000-WITH DRIVER-HIRE OF VEHICLES,HOME TO SCHOOL TRANSPORT,Transport,Revenue
Walsall Council,http://opendatacommunities.org/id/metropolitan-district-council/walsall,WC112-248,31/01/2020,Childrens,ACE CARS & MINIBUSES LTD,03/01/2020,513.20,52000-WITH DRIVER-HIRE OF VEHICLES,HOME TO SCHOOL TRANSPORT,Transport,Revenue
Walsall Council,http://opendatacommunities.org/id/metropolitan-district-council/walsall,WC112-249,31/01/2020,Childrens,ACE CARS & MINIBUSES LTD,03/01/2020,513.20,52000-WITH DRIVER-HIRE OF VEHICLES,HOME TO SCHOOL TRANSPORT,Transport,Revenue
Walsall Council,http://opendatacommunities.org/id/metropolitan-district-council/walsall,WC112-250,31/01/2020,Childrens,ACE CARS & MINIBUSES LTD,03/01/2020,513.20,52000-WITH DRIVER-HIRE OF VEHICLES,HOME TO SCHOOL TRANSPORT,Transport,Revenue
Walsall Council,http://opendatacommunities.org/id/metropolitan-district-council/walsall,WC112-251,31/01/2020,Childrens,ACE CARS & MINIBUSES LTD,03/01/2020,513.20,52000-WITH DRIVER-HIRE OF VEHICLES,HOME TO SCHOOL TRANSPORT,Transport,Revenue
Walsall Council,http://opendatacommunities.org/id/metropolitan-district-council/walsall,WC112-252,31/01/2020,Childrens,ACE CARS & MINIBUSES LTD,03/01/2020,513.20,52000-WITH DRIVER-HIRE OF VEHICLES,HOME TO SCHOOL TRANSPORT,Transport,Revenue
Walsall Council,http://opendatacommunities.org/id/metropolitan-district-council/walsall,WC112-253,31/01/2020,Childrens,ACE CARS & MINIBUSES LTD,03/01/2020,513.20,52000-WITH DRIVER-HIRE OF VEHICLES,HOME TO SCHOOL TRANSPORT,Transport,Revenue
Walsall Council,http://opendatacommunities.org/id/metropolitan-district-council/walsall,WC112-254,31/01/2020,Childrens,ACE CARS & MINIBUSES LTD,03/01/2020,550.00,52000-WITH DRIVER-HIRE OF VEHICLES,HOME TO SCHOOL TRANSPORT,Transport,Revenue
Walsall Council,http://opendatacommunities.org/id/metropolitan-district-council/walsall,WC112-255,31/01/2020,Childrens,ACE CARS & MINIBUSES LTD,03/01/2020,550.00,52000-WITH DRIVER-HIRE OF VEHICLES,HOME TO SCHOOL TRANSPORT,Transport,Revenue
Walsall Council,http://opendatacommunities.org/id/metropolitan-district-council/walsall,WC112-256,31/01/2020,Childrens,ACE CARS & MINIBUSES LTD,03/01/2020,550.00,52000-WITH DRIVER-HIRE OF VEHICLES,HOME TO SCHOOL TRANSPORT,Transport,Revenue
Walsall Council,http://opendatacommunities.org/id/metropolitan-district-council/walsall,WC112-257,31/01/2020,Childrens,ACE CARS & MINIBUSES LTD,03/01/2020,550.00,52000-WITH DRIVER-HIRE OF VEHICLES,HOME TO SCHOOL TRANSPORT,Transport,Revenue
Walsall Council,http://opendatacommunities.org/id/metropolitan-district-council/walsall,WC112-258,31/01/2020,Childrens,ACE CARS & MINIBUSES LTD,03/01/2020,598.00,52000-WITH DRIVER-HIRE OF VEHICLES,HOME TO SCHOOL TRANSPORT,Transport,Revenue
Walsall Council,http://opendatacommunities.org/id/metropolitan-district-council/walsall,WC112-259,31/01/2020,Childrens,ACE CARS & MINIBUSES LTD,03/01/2020,598.00,52000-WITH DRIVER-HIRE OF VEHICLES,HOME TO SCHOOL TRANSPORT,Transport,Revenue
Walsall Council,http://opendatacommunities.org/id/metropolitan-district-council/walsall,WC112-260,31/01/2020,Childrens,ACE CARS & MINIBUSES LTD,03/01/2020,598.00,52000-WITH DRIVER-HIRE OF VEHICLES,HOME TO SCHOOL TRANSPORT,Transport,Revenue
Walsall Council,http://opendatacommunities.org/id/metropolitan-district-council/walsall,WC112-261,31/01/2020,Childrens,ACE CARS & MINIBUSES LTD,03/01/2020,598.00,52000-WITH DRIVER-HIRE OF VEHICLES,HOME TO SCHOOL TRANSPORT,Transport,Revenue
Walsall Council,http://opendatacommunities.org/id/metropolitan-district-council/walsall,WC112-262,31/01/2020,Childrens,ACE CARS & MINIBUSES LTD,03/01/2020,598.00,52000-WITH DRIVER-HIRE OF VEHICLES,HOME TO SCHOOL TRANSPORT,Transport,Revenue
Walsall Council,http://opendatacommunities.org/id/metropolitan-district-council/walsall,WC112-263,31/01/2020,Childrens,ACE CARS & MINIBUSES LTD,03/01/2020,618.00,52000-WITH DRIVER-HIRE OF VEHICLES,HOME TO SCHOOL TRANSPORT,Transport,Revenue
Walsall Council,http://opendatacommunities.org/id/metropolitan-district-council/walsall,WC112-264,31/01/2020,Childrens,ACE CARS & MINIBUSES LTD,03/01/2020,618.00,52000-WITH DRIVER-HIRE OF VEHICLES,HOME TO SCHOOL TRANSPORT,Transport,Revenue
Walsall Council,http://opendatacommunities.org/id/metropolitan-district-council/walsall,WC112-265,31/01/2020,Childrens,ACE CARS & MINIBUSES LTD,03/01/2020,618.00,52000-WITH DRIVER-HIRE OF VEHICLES,HOME TO SCHOOL TRANSPORT,Transport,Revenue
Walsall Council,http://opendatacommunities.org/id/metropolitan-district-council/walsall,WC112-266,31/01/2020,Childrens,ACE CARS & MINIBUSES LTD,03/01/2020,618.00,52000-WITH DRIVER-HIRE OF VEHICLES,HOME TO SCHOOL TRANSPORT,Transport,Revenue
Walsall Council,http://opendatacommunities.org/id/metropolitan-district-council/walsall,WC112-267,31/01/2020,Childrens,ACE CARS & MINIBUSES LTD,03/01/2020,618.00,52000-WITH DRIVER-HIRE OF VEHICLES,HOME TO SCHOOL TRANSPORT,Transport,Revenue
Walsall Council,http://opendatacommunities.org/id/metropolitan-district-council/walsall,WC112-268,31/01/2020,Childrens,ACE CARS & MINIBUSES LTD,03/01/2020,618.00,52000-WITH DRIVER-HIRE OF VEHICLES,HOME TO SCHOOL TRANSPORT,Transport,Revenue
Walsall Council,http://opendatacommunities.org/id/metropolitan-district-council/walsall,WC112-269,31/01/2020,Childrens,ACE CARS & MINIBUSES LTD,03/01/2020,618.00,52000-WITH DRIVER-HIRE OF VEHICLES,HOME TO SCHOOL TRANSPORT,Transport,Revenue
Walsall Council,http://opendatacommunities.org/id/metropolitan-district-council/walsall,WC112-270,31/01/2020,Childrens,ACE CARS & MINIBUSES LTD,03/01/2020,618.00,52000-WITH DRIVER-HIRE OF VEHICLES,HOME TO SCHOOL TRANSPORT,Transport,Revenue
Walsall Council,http://opendatacommunities.org/id/metropolitan-district-council/walsall,WC112-271,31/01/2020,Childrens,ACE CARS & MINIBUSES LTD,03/01/2020,618.00,52000-WITH DRIVER-HIRE OF VEHICLES,HOME TO SCHOOL TRANSPORT,Transport,Revenue
Walsall Council,http://opendatacommunities.org/id/metropolitan-district-council/walsall,WC112-272,31/01/2020,Childrens,ACE CARS & MINIBUSES LTD,03/01/2020,618.00,52000-WITH DRIVER-HIRE OF VEHICLES,HOME TO SCHOOL TRANSPORT,Transport,Revenue
Walsall Council,http://opendatacommunities.org/id/metropolitan-district-council/walsall,WC112-273,31/01/2020,Childrens,ACE CARS & MINIBUSES LTD,03/01/2020,632.40,52000-WITH DRIVER-HIRE OF VEHICLES,HOME TO SCHOOL TRANSPORT,Transport,Revenue
Walsall Council,http://opendatacommunities.org/id/metropolitan-district-council/walsall,WC112-274,31/01/2020,Childrens,ACE CARS & MINIBUSES LTD,03/01/2020,632.40,52000-WITH DRIVER-HIRE OF VEHICLES,HOME TO SCHOOL TRANSPORT,Transport,Revenue
Walsall Council,http://opendatacommunities.org/id/metropolitan-district-council/walsall,WC112-275,31/01/2020,Childrens,ACE CARS & MINIBUSES LTD,03/01/2020,632.40,52000-WITH DRIVER-HIRE OF VEHICLES,HOME TO SCHOOL TRANSPORT,Transport,Revenue
Walsall Council,http://opendatacommunities.org/id/metropolitan-district-council/walsall,WC112-276,31/01/2020,Childrens,ACE CARS & MINIBUSES LTD,03/01/2020,632.40,52000-WITH DRIVER-HIRE OF VEHICLES,HOME TO SCHOOL TRANSPORT,Transport,Revenue
Walsall Council,http://opendatacommunities.org/id/metropolitan-district-council/walsall,WC112-277,31/01/2020,Childrens,ACE CARS & MINIBUSES LTD,03/01/2020,687.60,52000-WITH DRIVER-HIRE OF VEHICLES,HOME TO SCHOOL TRANSPORT,Transport,Revenue
Walsall Council,http://opendatacommunities.org/id/metropolitan-district-council/walsall,WC112-278,31/01/2020,Childrens,ACE CARS & MINIBUSES LTD,03/01/2020,687.60,52000-WITH DRIVER-HIRE OF VEHICLES,HOME TO SCHOOL TRANSPORT,Transport,Revenue
Walsall Council,http://opendatacommunities.org/id/metropolitan-district-council/walsall,WC112-279,31/01/2020,Childrens,ACE CARS & MINIBUSES LTD,03/01/2020,687.60,52000-WITH DRIVER-HIRE OF VEHICLES,HOME TO SCHOOL TRANSPORT,Transport,Revenue
Walsall Council,http://opendatacommunities.org/id/metropolitan-district-council/walsall,WC112-280,31/01/2020,Childrens,ACE CARS & MINIBUSES LTD,03/01/2020,687.60,52000-WITH DRIVER-HIRE OF VEHICLES,HOME TO SCHOOL TRANSPORT,Transport,Revenue
Walsall Council,http://opendatacommunities.org/id/metropolitan-district-council/walsall,WC112-281,31/01/2020,Childrens,ACE CARS & MINIBUSES LTD,03/01/2020,690.00,52000-WITH DRIVER-HIRE OF VEHICLES,HOME TO SCHOOL TRANSPORT,Transport,Revenue
Walsall Council,http://opendatacommunities.org/id/metropolitan-district-council/walsall,WC112-282,31/01/2020,Childrens,ACE CARS & MINIBUSES LTD,03/01/2020,690.00,52000-WITH DRIVER-HIRE OF VEHICLES,HOME TO SCHOOL TRANSPORT,Transport,Revenue
Walsall Council,http://opendatacommunities.org/id/metropolitan-district-council/walsall,WC112-283,31/01/2020,Childrens,ACE CARS & MINIBUSES LTD,03/01/2020,690.00,52000-WITH DRIVER-HIRE OF VEHICLES,HOME TO SCHOOL TRANSPORT,Transport,Revenue
Walsall Council,http://opendatacommunities.org/id/metropolitan-district-council/walsall,WC112-284,31/01/2020,Childrens,ACE CARS & MINIBUSES LTD,03/01/2020,690.00,52000-WITH DRIVER-HIRE OF VEHICLES,HOME TO SCHOOL TRANSPORT,Transport,Revenue
Walsall Council,http://opendatacommunities.org/id/metropolitan-district-council/walsall,WC112-285,31/01/2020,Childrens,ACE CARS & MINIBUSES LTD,03/01/2020,710.00,52000-WITH DRIVER-HIRE OF VEHICLES,HOME TO SCHOOL TRANSPORT,Transport,Revenue
Walsall Council,http://opendatacommunities.org/id/metropolitan-district-council/walsall,WC112-286,31/01/2020,Childrens,ACE CARS & MINIBUSES LTD,03/01/2020,772.40,52000-WITH DRIVER-HIRE OF VEHICLES,HOME TO SCHOOL TRANSPORT,Transport,Revenue
Walsall Council,http://opendatacommunities.org/id/metropolitan-district-council/walsall,WC112-287,31/01/2020,Childrens,ACE CARS & MINIBUSES LTD,03/01/2020,772.40,52000-WITH DRIVER-HIRE OF VEHICLES,HOME TO SCHOOL TRANSPORT,Transport,Revenue
Walsall Council,http://opendatacommunities.org/id/metropolitan-district-council/walsall,WC112-288,31/01/2020,Childrens,ACE CARS & MINIBUSES LTD,03/01/2020,772.40,52000-WITH DRIVER-HIRE OF VEHICLES,HOME TO SCHOOL TRANSPORT,Transport,Revenue
Walsall Council,http://opendatacommunities.org/id/metropolitan-district-council/walsall,WC112-289,31/01/2020,Childrens,ACE CARS & MINIBUSES LTD,03/01/2020,772.40,52000-WITH DRIVER-HIRE OF VEHICLES,HOME TO SCHOOL TRANSPORT,Transport,Revenue
Walsall Council,http://opendatacommunities.org/id/metropolitan-district-council/walsall,WC112-290,31/01/2020,Childrens,ACE CARS & MINIBUSES LTD,03/01/2020,800.00,52000-WITH DRIVER-HIRE OF VEHICLES,HOME TO SCHOOL TRANSPORT,Transport,Revenue
Walsall Council,http://opendatacommunities.org/id/metropolitan-district-council/walsall,WC112-291,31/01/2020,Childrens,ACE CARS & MINIBUSES LTD,22/01/2020,927.00,52000-WITH DRIVER-HIRE OF VEHICLES,HOME TO SCHOOL TRANSPORT,Transport,Revenue
Walsall Council,http://opendatacommunities.org/id/metropolitan-district-council/walsall,WC112-292,31/01/2020,Childrens,ACE CARS & MINIBUSES LTD,03/01/2020,972.40,52000-WITH DRIVER-HIRE OF VEHICLES,HOME TO SCHOOL TRANSPORT,Transport,Revenue
Walsall Council,http://opendatacommunities.org/id/metropolitan-district-council/walsall,WC112-293,31/01/2020,Childrens,ACE CARS & MINIBUSES LTD,03/01/2020,972.40,52000-WITH DRIVER-HIRE OF VEHICLES,HOME TO SCHOOL TRANSPORT,Transport,Revenue
Walsall Council,http://opendatacommunities.org/id/metropolitan-district-council/walsall,WC112-294,31/01/2020,Childrens,ACE CARS & MINIBUSES LTD,03/01/2020,972.40,52000-WITH DRIVER-HIRE OF VEHICLES,HOME TO SCHOOL TRANSPORT,Transport,Revenue
Walsall Council,http://opendatacommunities.org/id/metropolitan-district-council/walsall,WC112-295,31/01/2020,Childrens,ACE CARS & MINIBUSES LTD,03/01/2020,972.40,52000-WITH DRIVER-HIRE OF VEHICLES,HOME TO SCHOOL TRANSPORT,Transport,Revenue
Walsall Council,http://opendatacommunities.org/id/metropolitan-district-council/walsall,WC112-296,31/01/2020,Childrens,ACE CARS & MINIBUSES LTD,03/01/2020,"1,000.00",52000-WITH DRIVER-HIRE OF VEHICLES,HOME TO SCHOOL TRANSPORT,Transport,Revenue
Walsall Council,http://opendatacommunities.org/id/metropolitan-district-council/walsall,WC112-297,31/01/2020,Childrens,ACE CARS & MINIBUSES LTD,03/01/2020,"1,000.00",52000-WITH DRIVER-HIRE OF VEHICLES,HOME TO SCHOOL TRANSPORT,Transport,Revenue
Walsall Council,http://opendatacommunities.org/id/metropolitan-district-council/walsall,WC112-298,31/01/2020,Childrens,ACE CARS & MINIBUSES LTD,03/01/2020,"1,000.00",52000-WITH DRIVER-HIRE OF VEHICLES,HOME TO SCHOOL TRANSPORT,Transport,Revenue
Walsall Council,http://opendatacommunities.org/id/metropolitan-district-council/walsall,WC112-299,31/01/2020,Childrens,ACE CARS & MINIBUSES LTD,03/01/2020,"1,250.00",52000-WITH DRIVER-HIRE OF VEHICLES,HOME TO SCHOOL TRANSPORT,Transport,Revenue
Walsall Council,http://opendatacommunities.org/id/metropolitan-district-council/walsall,WC112-300,31/01/2020,Childrens,ACE CARS & MINIBUSES LTD,03/01/2020,"1,250.00",52000-WITH DRIVER-HIRE OF VEHICLES,HOME TO SCHOOL TRANSPORT,Transport,Revenue
Walsall Council,http://opendatacommunities.org/id/metropolitan-district-council/walsall,WC112-301,31/01/2020,Childrens,ACE CARS & MINIBUSES LTD,03/01/2020,"1,250.00",52000-WITH DRIVER-HIRE OF VEHICLES,HOME TO SCHOOL TRANSPORT,Transport,Revenue
Walsall Council,http://opendatacommunities.org/id/metropolitan-district-council/walsall,WC112-302,31/01/2020,Childrens,ACE CARS & MINIBUSES LTD,03/01/2020,"1,300.00",52000-WITH DRIVER-HIRE OF VEHICLES,HOME TO SCHOOL TRANSPORT,Transport,Revenue
Walsall Council,http://opendatacommunities.org/id/metropolitan-district-council/walsall,WC112-303,31/01/2020,Childrens,ACE CARS & MINIBUSES LTD,03/01/2020,"1,400.00",52000-WITH DRIVER-HIRE OF VEHICLES,HOME TO SCHOOL TRANSPORT,Transport,Revenue
Walsall Council,http://opendatacommunities.org/id/metropolitan-district-council/walsall,WC112-304,31/01/2020,Childrens,ACE CARS & MINIBUSES LTD,03/01/2020,"1,500.00",52000-WITH DRIVER-HIRE OF VEHICLES,HOME TO SCHOOL TRANSPORT,Transport,Revenue
Walsall Council,http://opendatacommunities.org/id/metropolitan-district-council/walsall,WC112-305,31/01/2020,Childrens,ACE CARS & MINIBUSES LTD,03/01/2020,"1,540.00",52000-WITH DRIVER-HIRE OF VEHICLES,HOME TO SCHOOL TRANSPORT,Transport,Revenue
Walsall Council,http://opendatacommunities.org/id/metropolitan-district-council/walsall,WC112-306,31/01/2020,Childrens,ACE CARS & MINIBUSES LTD,03/01/2020,"1,560.00",52000-WITH DRIVER-HIRE OF VEHICLES,HOME TO SCHOOL TRANSPORT,Transport,Revenue
Walsall Council,http://opendatacommunities.org/id/metropolitan-district-council/walsall,WC112-307,31/01/2020,Childrens,ACE CARS & MINIBUSES LTD,03/01/2020,"1,560.00",52000-WITH DRIVER-HIRE OF VEHICLES,HOME TO SCHOOL TRANSPORT,Transport,Revenue
Walsall Council,http://opendatacommunities.org/id/metropolitan-district-council/walsall,WC112-308,31/01/2020,Childrens,ACE CARS & MINIBUSES LTD,03/01/2020,"1,580.00",52000-WITH DRIVER-HIRE OF VEHICLES,HOME TO SCHOOL TRANSPORT,Transport,Revenue
Walsall Council,http://opendatacommunities.org/id/metropolitan-district-council/walsall,WC112-309,31/01/2020,Childrens,ACE CARS & MINIBUSES LTD,22/01/2020,"1,748.00",52000-WITH DRIVER-HIRE OF VEHICLES,HOME TO SCHOOL TRANSPORT,Transport,Revenue
Walsall Council,http://opendatacommunities.org/id/metropolitan-district-council/walsall,WC112-310,31/01/2020,Childrens,ACE CARS & MINIBUSES LTD,03/01/2020,"1,775.00",52000-WITH DRIVER-HIRE OF VEHICLES,HOME TO SCHOOL TRANSPORT,Transport,Revenue
Walsall Council,http://opendatacommunities.org/id/metropolitan-district-council/walsall,WC112-311,31/01/2020,Childrens,ACE CARS & MINIBUSES LTD,22/01/2020,"2,251.20",52000-WITH DRIVER-HIRE OF VEHICLES,HOME TO SCHOOL TRANSPORT,Transport,Revenue
Walsall Council,http://opendatacommunities.org/id/metropolitan-district-council/walsall,WC112-312,31/01/2020,Childrens,ACE CARS & MINIBUSES LTD,22/01/2020,"3,520.00",52000-WITH DRIVER-HIRE OF VEHICLES,HOME TO SCHOOL TRANSPORT,Transport,Revenue
Walsall Council,http://opendatacommunities.org/id/metropolitan-district-council/walsall,WC112-313,31/01/2020,Childrens,ACE CARS & MINIBUSES LTD,22/01/2020,"4,400.00",52000-WITH DRIVER-HIRE OF VEHICLES,HOME TO SCHOOL TRANSPORT,Transport,Revenue
Walsall Council,http://opendatacommunities.org/id/metropolitan-district-council/walsall,WC112-314,31/01/2020,Childrens,ACE CARS & MINIBUSES LTD,22/01/2020,"4,400.00",52000-WITH DRIVER-HIRE OF VEHICLES,HOME TO SCHOOL TRANSPORT,Transport,Revenue
Walsall Council,http://opendatacommunities.org/id/metropolitan-district-council/walsall,WC112-315,31/01/2020,Adult Social Care,ACEPAY LTD (COTTAGE NUR HOME),02/01/2020,"1,774.96",73500-RESIDENTIAL,PHYSICAL SUPPORT,Third Party Payments,Revenue
Walsall Council,http://opendatacommunities.org/id/metropolitan-district-council/walsall,WC112-316,31/01/2020,Adult Social Care,ACEPAY LTD (COTTAGE NUR HOME),02/01/2020,"1,972.24",73501-RESIDENTIAL EMI,PHYSICAL SUPPORT,Third Party Payments,Revenue
Walsall Council,http://opendatacommunities.org/id/metropolitan-district-council/walsall,WC112-317,31/01/2020,Adult Social Care,ACEPAY LTD (COTTAGE NUR HOME),02/01/2020,"2,143.72",73502-NURSING,SUPPORT WITH MEMORY & COGNITION,Third Party Payments,Revenue
Walsall Council,http://opendatacommunities.org/id/metropolitan-district-council/walsall,WC112-318,31/01/2020,Adult Social Care,ACEPAY LTD (COTTAGE NUR HOME),02/01/2020,"2,143.72",73502-NURSING,PHYSICAL SUPPORT,Third Party Payments,Revenue
Walsall Council,http://opendatacommunities.org/id/metropolitan-district-council/walsall,WC112-319,31/01/2020,Adult Social Care,ACEPAY LTD (COTTAGE NUR HOME),02/01/2020,"2,143.72",73502-NURSING,PHYSICAL SUPPORT,Third Party Payments,Revenue
Walsall Council,http://opendatacommunities.org/id/metropolitan-district-council/walsall,WC112-320,31/01/2020,Adult Social Care,ACEPAY LTD (COTTAGE NUR HOME),02/01/2020,"2,143.72",73502-NURSING,SUPPORT WITH MEMORY & COGNITION,Third Party Payments,Revenue
Walsall Council,http://opendatacommunities.org/id/metropolitan-district-council/walsall,WC112-321,31/01/2020,Adult Social Care,ACEPAY LTD (COTTAGE NUR HOME),02/01/2020,"2,143.72",73502-NURSING,PHYSICAL SUPPORT,Third Party Payments,Revenue
Walsall Council,http://opendatacommunities.org/id/metropolitan-district-council/walsall,WC112-322,31/01/2020,Adult Social Care,ACEPAY LTD (COTTAGE NUR HOME),02/01/2020,"2,143.72",73502-NURSING,PHYSICAL SUPPORT,Third Party Payments,Revenue
Walsall Council,http://opendatacommunities.org/id/metropolitan-district-council/walsall,WC112-323,31/01/2020,Adult Social Care,ACEPAY LTD (COTTAGE NUR HOME),02/01/2020,"2,143.72",73502-NURSING,PHYSICAL SUPPORT,Third Party Payments,Revenue
Walsall Council,http://opendatacommunities.org/id/metropolitan-district-council/walsall,WC112-324,31/01/2020,Adult Social Care,ACEPAY LTD (COTTAGE NUR HOME),02/01/2020,"2,143.72",73502-NURSING,PHYSICAL SUPPORT,Third Party Payments,Revenue
Walsall Council,http://opendatacommunities.org/id/metropolitan-district-council/walsall,WC112-325,31/01/2020,Adult Social Care,ACEPAY LTD (COTTAGE NUR HOME),02/01/2020,"2,143.72",73502-NURSING,PHYSICAL SUPPORT,Third Party Payments,Revenue
Walsall Council,http://opendatacommunities.org/id/metropolitan-district-council/walsall,WC112-326,31/01/2020,Adult Social Care,ACEPAY LTD (COTTAGE NUR HOME),02/01/2020,"2,143.72",73502-NURSING,PHYSICAL SUPPORT,Third Party Payments,Revenue
Walsall Council,http://opendatacommunities.org/id/metropolitan-district-council/walsall,WC112-327,31/01/2020,Adult Social Care,ACEPAY LTD (COTTAGE NUR HOME),02/01/2020,"2,143.72",73502-NURSING,SOCIAL SUPPORT,Third Party Payments,Revenue
Walsall Council,http://opendatacommunities.org/id/metropolitan-district-council/walsall,WC112-328,31/01/2020,Adult Social Care,ACEPAY LTD (COTTAGE NUR HOME),02/01/2020,"2,143.72",73502-NURSING,SOCIAL SUPPORT,Third Party Payments,Revenue
Walsall Council,http://opendatacommunities.org/id/metropolitan-district-council/walsall,WC112-329,31/01/2020,Adult Social Care,ACEPAY LTD (COTTAGE NUR HOME),02/01/2020,"2,143.72",73502-NURSING,SUPPORT WITH MEMORY & COGNITION,Third Party Payments,Revenue
Walsall Council,http://opendatacommunities.org/id/metropolitan-district-council/walsall,WC112-330,31/01/2020,Adult Social Care,ACEPAY LTD (COTTAGE NUR HOME),02/01/2020,"2,343.72",73502-NURSING,PHYSICAL SUPPORT,Third Party Payments,Revenue
Walsall Council,http://opendatacommunities.org/id/metropolitan-district-council/walsall,WC112-331,31/01/2020,Adult Social Care,ACTION ON HEARING LOSS,10/01/2020,"1,008.00",73508-COMMUNITY SUPPORTED LIVING/SUPPORTED ACCOMMODATION,MENTAL HEALTH SUPPORT,Third Party Payments,Revenue
Walsall Council,http://opendatacommunities.org/id/metropolitan-district-council/walsall,WC112-332,31/01/2020,Adult Social Care,ACTION ON HEARING LOSS,10/01/2020,"1,008.00",73508-COMMUNITY SUPPORTED LIVING/SUPPORTED ACCOMMODATION,MENTAL HEALTH SUPPORT,Third Party Payments,Revenue
Walsall Council,http://opendatacommunities.org/id/metropolitan-district-council/walsall,WC112-333,31/01/2020,Adult Social Care,ACTION ON HEARING LOSS,10/01/2020,"1,008.00",73508-COMMUNITY SUPPORTED LIVING/SUPPORTED ACCOMMODATION,MENTAL HEALTH SUPPORT,Third Party Payments,Revenue
Walsall Council,http://opendatacommunities.org/id/metropolitan-district-council/walsall,WC112-334,31/01/2020,Adult Social Care,ACTION ON HEARING LOSS,10/01/2020,"1,008.00",73508-COMMUNITY SUPPORTED LIVING/SUPPORTED ACCOMMODATION,MENTAL HEALTH SUPPORT,Third Party Payments,Revenue
Walsall Council,http://opendatacommunities.org/id/metropolitan-district-council/walsall,WC112-335,31/01/2020,Adult Social Care,ACTION ON HEARING LOSS,10/01/2020,"1,008.00",73508-COMMUNITY SUPPORTED LIVING/SUPPORTED ACCOMMODATION,MENTAL HEALTH SUPPORT,Third Party Payments,Revenue
Walsall Council,http://opendatacommunities.org/id/metropolitan-district-council/walsall,WC112-336,31/01/2020,Adult Social Care,ACTION ON HEARING LOSS,10/01/2020,"1,008.00",73508-COMMUNITY SUPPORTED LIVING/SUPPORTED ACCOMMODATION,MENTAL HEALTH SUPPORT,Third Party Payments,Revenue
Walsall Council,http://opendatacommunities.org/id/metropolitan-district-council/walsall,WC112-337,31/01/2020,Adult Social Care,ACTION ON HEARING LOSS,10/01/2020,"1,008.00",73508-COMMUNITY SUPPORTED LIVING/SUPPORTED ACCOMMODATION,MENTAL HEALTH SUPPORT,Third Party Payments,Revenue
Walsall Council,http://opendatacommunities.org/id/metropolitan-district-council/walsall,WC112-338,31/01/2020,Childrens,ACTIVE CARE SOLUTIONS LTD,24/01/2020,"2,662.80",74037-INDEPENDENT FOSTER CARE-OTH AGENCY PROVISION,EXTERNAL FOSTER CARE PROVISION,Third Party Payments,Revenue
Walsall Council,http://opendatacommunities.org/id/metropolitan-district-council/walsall,WC112-339,31/01/2020,Childrens,ACTIVE CARE SOLUTIONS LTD,24/01/2020,"3,024.00",74037-INDEPENDENT FOSTER CARE-OTH AGENCY PROVISION,EXTERNAL FOSTER CARE PROVISION,Third Party Payments,Revenue
Walsall Council,http://opendatacommunities.org/id/metropolitan-district-council/walsall,WC112-340,31/01/2020,Childrens,ACTIVE CARE SOLUTIONS LTD,24/01/2020,"3,220.00",74037-INDEPENDENT FOSTER CARE-OTH AGENCY PROVISION,EXTERNAL FOSTER CARE PROVISION,Third Party Payments,Revenue
Walsall Council,http://opendatacommunities.org/id/metropolitan-district-council/walsall,WC112-341,31/01/2020,Adult Social Care,REDACTED,03/01/2020,442.52,73506-DIRECT PAYMENT,LEARNING DISABILITY SUPPORT,Third Party Payments,Revenue
Walsall Council,http://opendatacommunities.org/id/metropolitan-district-council/walsall,WC112-342,31/01/2020,Adult Social Care,REDACTED,03/01/2020,"1,033.16",73506-DIRECT PAYMENT,PHYSICAL SUPPORT,Third Party Payments,Revenue
Walsall Council,http://opendatacommunities.org/id/metropolitan-district-council/walsall,WC112-343,31/01/2020,Resources and Transformation,ADLER MANUFACTURING LIMITED,01/01/2020,"1,003.50",64009-MAYORAL COSTS,MAYORS SECRETARIAT,Supplies & Services,Revenue
Walsall Council,http://opendatacommunities.org/id/metropolitan-district-council/walsall,WC112-344,31/01/2020,Childrens,REDACTED,13/01/2020,333.12,74510-RESIDENTS ORDERS,ADOPTION ALLOWANCES,Third Party Payments,Revenue
Walsall Council,http://opendatacommunities.org/id/metropolitan-district-council/walsall,WC112-345,31/01/2020,Childrens,REDACTED,13/01/2020,361.12,74510-RESIDENTS ORDERS,ADOPTION ALLOWANCES,Third Party Payments,Revenue
Walsall Council,http://opendatacommunities.org/id/metropolitan-district-council/walsall,WC112-346,31/01/2020,Adult Social Care,REDACTED,03/01/2020,"2,083.20",73506-DIRECT PAYMENT,LEARNING DISABILITY SUPPORT,Third Party Payments,Revenue
Walsall Council,http://opendatacommunities.org/id/metropolitan-district-council/walsall,WC112-347,31/01/2020,Adult Social Care,ADVANCE HEALTH CARE (UK) LTD,03/01/2020,250.78,73025-PROFESSIONAL SERVICES-PRIV CONTRACTOR & OTHER AGENCIES,INTERMEDIATE CARE SERVICE,Third Party Payments,Revenue
Walsall Council,http://opendatacommunities.org/id/metropolitan-district-council/walsall,WC112-348,31/01/2020,Adult Social Care,ADVANCE HEALTH CARE (UK) LTD,09/01/2020,250.78,73025-PROFESSIONAL SERVICES-PRIV CONTRACTOR & OTHER AGENCIES,INTERMEDIATE CARE SERVICE,Third Party Payments,Revenue
Walsall Council,http://opendatacommunities.org/id/metropolitan-district-council/walsall,WC112-349,31/01/2020,Adult Social Care,ADVANCE HEALTH CARE (UK) LTD,13/01/2020,250.78,73025-PROFESSIONAL SERVICES-PRIV CONTRACTOR & OTHER AGENCIES,INTERMEDIATE CARE SERVICE,Third Party Payments,Revenue
Walsall Council,http://opendatacommunities.org/id/metropolitan-district-council/walsall,WC112-350,31/01/2020,Adult Social Care,ADVANCE HEALTH CARE (UK) LTD,06/01/2020,286.60,73025-PROFESSIONAL SERVICES-PRIV CONTRACTOR & OTHER AGENCIES,RAPID RESPONSE,Third Party Payments,Revenue
Walsall Council,http://opendatacommunities.org/id/metropolitan-district-council/walsall,WC112-351,31/01/2020,Adult Social Care,ADVANCE HEALTH CARE (UK) LTD,14/01/2020,326.01,73025-PROFESSIONAL SERVICES-PRIV CONTRACTOR & OTHER AGENCIES,INTERMEDIATE CARE SERVICE,Third Party Payments,Revenue
Walsall Council,http://opendatacommunities.org/id/metropolitan-district-council/walsall,WC112-352,31/01/2020,Adult Social Care,ADVANCE HEALTH CARE (UK) LTD,14/01/2020,333.17,73025-PROFESSIONAL SERVICES-PRIV CONTRACTOR & OTHER AGENCIES,INTERMEDIATE CARE SERVICE,Third Party Payments,Revenue
Walsall Council,http://opendatacommunities.org/id/metropolitan-district-council/walsall,WC112-353,31/01/2020,Adult Social Care,ADVANCE HEALTH CARE (UK) LTD,08/01/2020,351.09,73025-PROFESSIONAL SERVICES-PRIV CONTRACTOR & OTHER AGENCIES,INTERMEDIATE CARE SERVICE,Third Party Payments,Revenue
Walsall Council,http://opendatacommunities.org/id/metropolitan-district-council/walsall,WC112-354,31/01/2020,Adult Social Care,ADVANCE HEALTH CARE (UK) LTD,22/01/2020,351.09,73019-PSE'S-PRIV CONTRACTOR FEES,INTERMEDIATE CARE SERVICE,Third Party Payments,Revenue
Walsall Council,http://opendatacommunities.org/id/metropolitan-district-council/walsall,WC112-355,31/01/2020,Adult Social Care,ADVANCE HEALTH CARE (UK) LTD,13/01/2020,358.25,73025-PROFESSIONAL SERVICES-PRIV CONTRACTOR & OTHER AGENCIES,INTERMEDIATE CARE SERVICE,Third Party Payments,Revenue
Walsall Council,http://opendatacommunities.org/id/metropolitan-district-council/walsall,WC112-356,31/01/2020,Adult Social Care,ADVANCE HEALTH CARE (UK) LTD,06/01/2020,387.71,73507-DOMICILIARY CARE,PHYSICAL SUPPORT,Third Party Payments,Revenue
Walsall Council,http://opendatacommunities.org/id/metropolitan-district-council/walsall,WC112-357,31/01/2020,Adult Social Care,ADVANCE HEALTH CARE (UK) LTD,31/01/2020,395.51,73507-DOMICILIARY CARE,PHYSICAL SUPPORT,Third Party Payments,Revenue
Walsall Council,http://opendatacommunities.org/id/metropolitan-district-council/walsall,WC112-358,31/01/2020,Adult Social Care,ADVANCE HEALTH CARE (UK) LTD,31/01/2020,405.59,73507-DOMICILIARY CARE,PHYSICAL SUPPORT,Third Party Payments,Revenue
Walsall Council,http://opendatacommunities.org/id/metropolitan-district-council/walsall,WC112-359,31/01/2020,Adult Social Care,ADVANCE HEALTH CARE (UK) LTD,31/01/2020,424.06,73507-DOMICILIARY CARE,PHYSICAL SUPPORT,Third Party Payments,Revenue
Walsall Council,http://opendatacommunities.org/id/metropolitan-district-council/walsall,WC112-360,31/01/2020,Adult Social Care,ADVANCE HEALTH CARE (UK) LTD,31/01/2020,429.51,73507-DOMICILIARY CARE,PHYSICAL SUPPORT,Third Party Payments,Revenue
Walsall Council,http://opendatacommunities.org/id/metropolitan-district-council/walsall,WC112-361,31/01/2020,Adult Social Care,ADVANCE HEALTH CARE (UK) LTD,31/01/2020,436.15,73507-DOMICILIARY CARE,PHYSICAL SUPPORT,Third Party Payments,Revenue
Walsall Council,http://opendatacommunities.org/id/metropolitan-district-council/walsall,WC112-362,31/01/2020,Adult Social Care,ADVANCE HEALTH CARE (UK) LTD,03/01/2020,451.40,73025-PROFESSIONAL SERVICES-PRIV CONTRACTOR & OTHER AGENCIES,INTERMEDIATE CARE SERVICE,Third Party Payments,Revenue
Walsall Council,http://opendatacommunities.org/id/metropolitan-district-council/walsall,WC112-363,31/01/2020,Adult Social Care,ADVANCE HEALTH CARE (UK) LTD,03/01/2020,451.40,73025-PROFESSIONAL SERVICES-PRIV CONTRACTOR & OTHER AGENCIES,INTERMEDIATE CARE SERVICE,Third Party Payments,Revenue
Walsall Council,http://opendatacommunities.org/id/metropolitan-district-council/walsall,WC112-364,31/01/2020,Adult Social Care,ADVANCE HEALTH CARE (UK) LTD,08/01/2020,451.40,73025-PROFESSIONAL SERVICES-PRIV CONTRACTOR & OTHER AGENCIES,INTERMEDIATE CARE SERVICE,Third Party Payments,Revenue
Walsall Council,http://opendatacommunities.org/id/metropolitan-district-council/walsall,WC112-365,31/01/2020,Adult Social Care,ADVANCE HEALTH CARE (UK) LTD,08/01/2020,451.40,73025-PROFESSIONAL SERVICES-PRIV CONTRACTOR & OTHER AGENCIES,INTERMEDIATE CARE SERVICE,Third Party Payments,Revenue
Walsall Council,http://opendatacommunities.org/id/metropolitan-district-council/walsall,WC112-366,31/01/2020,Adult Social Care,ADVANCE HEALTH CARE (UK) LTD,08/01/2020,451.40,73025-PROFESSIONAL SERVICES-PRIV CONTRACTOR & OTHER AGENCIES,INTERMEDIATE CARE SERVICE,Third Party Payments,Revenue
Walsall Council,http://opendatacommunities.org/id/metropolitan-district-council/walsall,WC112-367,31/01/2020,Adult Social Care,ADVANCE HEALTH CARE (UK) LTD,09/01/2020,451.40,73025-PROFESSIONAL SERVICES-PRIV CONTRACTOR & OTHER AGENCIES,INTERMEDIATE CARE SERVICE,Third Party Payments,Revenue
Walsall Council,http://opendatacommunities.org/id/metropolitan-district-council/walsall,WC112-368,31/01/2020,Adult Social Care,ADVANCE HEALTH CARE (UK) LTD,09/01/2020,451.40,73025-PROFESSIONAL SERVICES-PRIV CONTRACTOR & OTHER AGENCIES,INTERMEDIATE CARE SERVICE,Third Party Payments,Revenue
Walsall Council,http://opendatacommunities.org/id/metropolitan-district-council/walsall,WC112-369,31/01/2020,Adult Social Care,ADVANCE HEALTH CARE (UK) LTD,09/01/2020,451.40,73025-PROFESSIONAL SERVICES-PRIV CONTRACTOR & OTHER AGENCIES,INTERMEDIATE CARE SERVICE,Third Party Payments,Revenue
Walsall Council,http://opendatacommunities.org/id/metropolitan-district-council/walsall,WC112-370,31/01/2020,Adult Social Care,ADVANCE HEALTH CARE (UK) LTD,13/01/2020,451.40,73025-PROFESSIONAL SERVICES-PRIV CONTRACTOR & OTHER AGENCIES,INTERMEDIATE CARE SERVICE,Third Party Payments,Revenue
Walsall Council,http://opendatacommunities.org/id/metropolitan-district-council/walsall,WC112-371,31/01/2020,Adult Social Care,ADVANCE HEALTH CARE (UK) LTD,14/01/2020,451.40,73025-PROFESSIONAL SERVICES-PRIV CONTRACTOR & OTHER AGENCIES,INTERMEDIATE CARE SERVICE,Third Party Payments,Revenue
Walsall Council,http://opendatacommunities.org/id/metropolitan-district-council/walsall,WC112-372,31/01/2020,Adult Social Care,ADVANCE HEALTH CARE (UK) LTD,15/01/2020,451.40,73025-PROFESSIONAL SERVICES-PRIV CONTRACTOR & OTHER AGENCIES,INTERMEDIATE CARE SERVICE,Third Party Payments,Revenue
Walsall Council,http://opendatacommunities.org/id/metropolitan-district-council/walsall,WC112-373,31/01/2020,Adult Social Care,ADVANCE HEALTH CARE (UK) LTD,15/01/2020,451.40,73025-PROFESSIONAL SERVICES-PRIV CONTRACTOR & OTHER AGENCIES,INTERMEDIATE CARE SERVICE,Third Party Payments,Revenue
Walsall Council,http://opendatacommunities.org/id/metropolitan-district-council/walsall,WC112-374,31/01/2020,Adult Social Care,ADVANCE HEALTH CARE (UK) LTD,22/01/2020,451.40,73019-PSE'S-PRIV CONTRACTOR FEES,INTERMEDIATE CARE SERVICE,Third Party Payments,Revenue
Walsall Council,http://opendatacommunities.org/id/metropolitan-district-council/walsall,WC112-375,31/01/2020,Adult Social Care,ADVANCE HEALTH CARE (UK) LTD,22/01/2020,451.40,73019-PSE'S-PRIV CONTRACTOR FEES,INTERMEDIATE CARE SERVICE,Third Party Payments,Revenue
Walsall Council,http://opendatacommunities.org/id/metropolitan-district-council/walsall,WC112-376,31/01/2020,Adult Social Care,ADVANCE HEALTH CARE (UK) LTD,22/01/2020,451.40,73019-PSE'S-PRIV CONTRACTOR FEES,INTERMEDIATE CARE SERVICE,Third Party Payments,Revenue
Walsall Council,http://opendatacommunities.org/id/metropolitan-district-council/walsall,WC112-377,31/01/2020,Adult Social Care,ADVANCE HEALTH CARE (UK) LTD,08/01/2020,472.89,73025-PROFESSIONAL SERVICES-PRIV CONTRACTOR & OTHER AGENCIES,INTERMEDIATE CARE SERVICE,Third Party Payments,Revenue
Walsall Council,http://opendatacommunities.org/id/metropolitan-district-council/walsall,WC112-378,31/01/2020,Adult Social Care,ADVANCE HEALTH CARE (UK) LTD,13/01/2020,487.22,73025-PROFESSIONAL SERVICES-PRIV CONTRACTOR & OTHER AGENCIES,INTERMEDIATE CARE SERVICE,Third Party Payments,Revenue
Walsall Council,http://opendatacommunities.org/id/metropolitan-district-council/walsall,WC112-379,31/01/2020,Adult Social Care,ADVANCE HEALTH CARE (UK) LTD,31/01/2020,493.15,73507-DOMICILIARY CARE,PHYSICAL SUPPORT,Third Party Payments,Revenue
Walsall Council,http://opendatacommunities.org/id/metropolitan-district-council/walsall,WC112-380,31/01/2020,Adult Social Care,ADVANCE HEALTH CARE (UK) LTD,01/01/2020,501.55,73025-PROFESSIONAL SERVICES-PRIV CONTRACTOR & OTHER AGENCIES,INTERMEDIATE CARE SERVICE,Third Party Payments,Revenue
Walsall Council,http://opendatacommunities.org/id/metropolitan-district-council/walsall,WC112-381,31/01/2020,Adult Social Care,ADVANCE HEALTH CARE (UK) LTD,06/01/2020,501.95,73507-DOMICILIARY CARE,PHYSICAL SUPPORT,Third Party Payments,Revenue
Walsall Council,http://opendatacommunities.org/id/metropolitan-district-council/walsall,WC112-382,31/01/2020,Adult Social Care,ADVANCE HEALTH CARE (UK) LTD,06/01/2020,502.99,73507-DOMICILIARY CARE,PHYSICAL SUPPORT,Third Party Payments,Revenue
Walsall Council,http://opendatacommunities.org/id/metropolitan-district-council/walsall,WC112-383,31/01/2020,Adult Social Care,ADVANCE HEALTH CARE (UK) LTD,06/01/2020,526.72,73507-DOMICILIARY CARE,PHYSICAL SUPPORT,Third Party Payments,Revenue
Walsall Council,http://opendatacommunities.org/id/metropolitan-district-council/walsall,WC112-384,31/01/2020,Adult Social Care,ADVANCE HEALTH CARE (UK) LTD,13/01/2020,551.71,73025-PROFESSIONAL SERVICES-PRIV CONTRACTOR & OTHER AGENCIES,INTERMEDIATE CARE SERVICE,Third Party Payments,Revenue
Walsall Council,http://opendatacommunities.org/id/metropolitan-district-council/walsall,WC112-385,31/01/2020,Adult Social Care,ADVANCE HEALTH CARE (UK) LTD,14/01/2020,551.71,73025-PROFESSIONAL SERVICES-PRIV CONTRACTOR & OTHER AGENCIES,INTERMEDIATE CARE SERVICE,Third Party Payments,Revenue
Walsall Council,http://opendatacommunities.org/id/metropolitan-district-council/walsall,WC112-386,31/01/2020,Adult Social Care,ADVANCE HEALTH CARE (UK) LTD,06/01/2020,558.96,73507-DOMICILIARY CARE,PHYSICAL SUPPORT,Third Party Payments,Revenue
Walsall Council,http://opendatacommunities.org/id/metropolitan-district-council/walsall,WC112-387,31/01/2020,Adult Social Care,ADVANCE HEALTH CARE (UK) LTD,08/01/2020,580.37,73025-PROFESSIONAL SERVICES-PRIV CONTRACTOR & OTHER AGENCIES,INTERMEDIATE CARE SERVICE,Third Party Payments,Revenue
Walsall Council,http://opendatacommunities.org/id/metropolitan-district-council/walsall,WC112-388,31/01/2020,Adult Social Care,ADVANCE HEALTH CARE (UK) LTD,13/01/2020,580.37,73025-PROFESSIONAL SERVICES-PRIV CONTRACTOR & OTHER AGENCIES,INTERMEDIATE CARE SERVICE,Third Party Payments,Revenue
Walsall Council,http://opendatacommunities.org/id/metropolitan-district-council/walsall,WC112-389,31/01/2020,Adult Social Care,ADVANCE HEALTH CARE (UK) LTD,31/01/2020,606.85,73507-DOMICILIARY CARE,PHYSICAL SUPPORT,Third Party Payments,Revenue
Walsall Council,http://opendatacommunities.org/id/metropolitan-district-council/walsall,WC112-390,31/01/2020,Adult Social Care,ADVANCE HEALTH CARE (UK) LTD,06/01/2020,612.07,73507-DOMICILIARY CARE,PHYSICAL SUPPORT,Third Party Payments,Revenue
Walsall Council,http://opendatacommunities.org/id/metropolitan-district-council/walsall,WC112-391,31/01/2020,Adult Social Care,ADVANCE HEALTH CARE (UK) LTD,15/01/2020,652.02,73025-PROFESSIONAL SERVICES-PRIV CONTRACTOR & OTHER AGENCIES,INTERMEDIATE CARE SERVICE,Third Party Payments,Revenue
Walsall Council,http://opendatacommunities.org/id/metropolitan-district-council/walsall,WC112-392,31/01/2020,Adult Social Care,ADVANCE HEALTH CARE (UK) LTD,31/01/2020,670.00,73507-DOMICILIARY CARE,PHYSICAL SUPPORT,Third Party Payments,Revenue
Walsall Council,http://opendatacommunities.org/id/metropolitan-district-council/walsall,WC112-393,31/01/2020,Adult Social Care,ADVANCE HEALTH CARE (UK) LTD,08/01/2020,689.11,73025-PROFESSIONAL SERVICES-PRIV CONTRACTOR & OTHER AGENCIES,INTERMEDIATE CARE SERVICE,Third Party Payments,Revenue
Walsall Council,http://opendatacommunities.org/id/metropolitan-district-council/walsall,WC112-394,31/01/2020,Adult Social Care,ADVANCE HEALTH CARE (UK) LTD,09/01/2020,689.11,73025-PROFESSIONAL SERVICES-PRIV CONTRACTOR & OTHER AGENCIES,INTERMEDIATE CARE SERVICE,Third Party Payments,Revenue
Walsall Council,http://opendatacommunities.org/id/metropolitan-district-council/walsall,WC112-395,31/01/2020,Adult Social Care,ADVANCE HEALTH CARE (UK) LTD,13/01/2020,689.11,73025-PROFESSIONAL SERVICES-PRIV CONTRACTOR & OTHER AGENCIES,INTERMEDIATE CARE SERVICE,Third Party Payments,Revenue
Walsall Council,http://opendatacommunities.org/id/metropolitan-district-council/walsall,WC112-396,31/01/2020,Adult Social Care,ADVANCE HEALTH CARE (UK) LTD,31/01/2020,727.47,73507-DOMICILIARY CARE,PHYSICAL SUPPORT,Third Party Payments,Revenue
Walsall Council,http://opendatacommunities.org/id/metropolitan-district-council/walsall,WC112-397,31/01/2020,Adult Social Care,ADVANCE HEALTH CARE (UK) LTD,06/01/2020,738.37,73507-DOMICILIARY CARE,PHYSICAL SUPPORT,Third Party Payments,Revenue
Walsall Council,http://opendatacommunities.org/id/metropolitan-district-council/walsall,WC112-398,31/01/2020,Adult Social Care,ADVANCE HEALTH CARE (UK) LTD,31/01/2020,739.55,73507-DOMICILIARY CARE,SUPPORT WITH MEMORY & COGNITION,Third Party Payments,Revenue
Walsall Council,http://opendatacommunities.org/id/metropolitan-district-council/walsall,WC112-399,31/01/2020,Adult Social Care,ADVANCE HEALTH CARE (UK) LTD,31/01/2020,751.29,73507-DOMICILIARY CARE,PHYSICAL SUPPORT,Third Party Payments,Revenue
Walsall Council,http://opendatacommunities.org/id/metropolitan-district-council/walsall,WC112-400,31/01/2020,Adult Social Care,ADVANCE HEALTH CARE (UK) LTD,31/01/2020,760.95,73507-DOMICILIARY CARE,PHYSICAL SUPPORT,Third Party Payments,Revenue
Walsall Council,http://opendatacommunities.org/id/metropolitan-district-council/walsall,WC112-401,31/01/2020,Adult Social Care,ADVANCE HEALTH CARE (UK) LTD,06/01/2020,787.48,73507-DOMICILIARY CARE,PHYSICAL SUPPORT,Third Party Payments,Revenue
Walsall Council,http://opendatacommunities.org/id/metropolitan-district-council/walsall,WC112-402,31/01/2020,Adult Social Care,ADVANCE HEALTH CARE (UK) LTD,31/01/2020,795.47,73507-DOMICILIARY CARE,PHYSICAL SUPPORT,Third Party Payments,Revenue
Walsall Council,http://opendatacommunities.org/id/metropolitan-district-council/walsall,WC112-403,31/01/2020,Adult Social Care,ADVANCE HEALTH CARE (UK) LTD,06/01/2020,796.65,73507-DOMICILIARY CARE,SUPPORT WITH MEMORY & COGNITION,Third Party Payments,Revenue
Walsall Council,http://opendatacommunities.org/id/metropolitan-district-council/walsall,WC112-404,31/01/2020,Adult Social Care,ADVANCE HEALTH CARE (UK) LTD,06/01/2020,797.56,73507-DOMICILIARY CARE,PHYSICAL SUPPORT,Third Party Payments,Revenue
Walsall Council,http://opendatacommunities.org/id/metropolitan-district-council/walsall,WC112-405,31/01/2020,Adult Social Care,ADVANCE HEALTH CARE (UK) LTD,06/01/2020,801.70,73507-DOMICILIARY CARE,PHYSICAL SUPPORT,Third Party Payments,Revenue
Walsall Council,http://opendatacommunities.org/id/metropolitan-district-council/walsall,WC112-406,31/01/2020,Adult Social Care,ADVANCE HEALTH CARE (UK) LTD,06/01/2020,805.91,73507-DOMICILIARY CARE,PHYSICAL SUPPORT,Third Party Payments,Revenue
Walsall Council,http://opendatacommunities.org/id/metropolitan-district-council/walsall,WC112-407,31/01/2020,Adult Social Care,ADVANCE HEALTH CARE (UK) LTD,06/01/2020,818.29,73507-DOMICILIARY CARE,PHYSICAL SUPPORT,Third Party Payments,Revenue
Walsall Council,http://opendatacommunities.org/id/metropolitan-district-council/walsall,WC112-408,31/01/2020,Adult Social Care,ADVANCE HEALTH CARE (UK) LTD,06/01/2020,826.01,73507-DOMICILIARY CARE,PHYSICAL SUPPORT,Third Party Payments,Revenue
Walsall Council,http://opendatacommunities.org/id/metropolitan-district-council/walsall,WC112-409,31/01/2020,Adult Social Care,ADVANCE HEALTH CARE (UK) LTD,06/01/2020,834.11,73507-DOMICILIARY CARE,PHYSICAL SUPPORT,Third Party Payments,Revenue
Walsall Council,http://opendatacommunities.org/id/metropolitan-district-council/walsall,WC112-410,31/01/2020,Adult Social Care,ADVANCE HEALTH CARE (UK) LTD,06/01/2020,838.41,73507-DOMICILIARY CARE,PHYSICAL SUPPORT,Third Party Payments,Revenue
Walsall Council,http://opendatacommunities.org/id/metropolitan-district-council/walsall,WC112-411,31/01/2020,Adult Social Care,ADVANCE HEALTH CARE (UK) LTD,06/01/2020,859.80,73507-DOMICILIARY CARE,PHYSICAL SUPPORT,Third Party Payments,Revenue
Walsall Council,http://opendatacommunities.org/id/metropolitan-district-council/walsall,WC112-412,31/01/2020,Adult Social Care,ADVANCE HEALTH CARE (UK) LTD,31/01/2020,860.38,73507-DOMICILIARY CARE,PHYSICAL SUPPORT,Third Party Payments,Revenue
Walsall Council,http://opendatacommunities.org/id/metropolitan-district-council/walsall,WC112-413,31/01/2020,Adult Social Care,ADVANCE HEALTH CARE (UK) LTD,31/01/2020,889.72,73507-DOMICILIARY CARE,PHYSICAL SUPPORT,Third Party Payments,Revenue
Walsall Council,http://opendatacommunities.org/id/metropolitan-district-council/walsall,WC112-414,31/01/2020,Adult Social Care,ADVANCE HEALTH CARE (UK) LTD,03/01/2020,902.80,73507-DOMICILIARY CARE,PHYSICAL SUPPORT,Third Party Payments,Revenue
Walsall Council,http://opendatacommunities.org/id/metropolitan-district-council/walsall,WC112-415,31/01/2020,Adult Social Care,ADVANCE HEALTH CARE (UK) LTD,06/01/2020,931.52,73507-DOMICILIARY CARE,PHYSICAL SUPPORT,Third Party Payments,Revenue
Walsall Council,http://opendatacommunities.org/id/metropolitan-district-council/walsall,WC112-416,31/01/2020,Adult Social Care,ADVANCE HEALTH CARE (UK) LTD,06/01/2020,985.24,73507-DOMICILIARY CARE,PHYSICAL SUPPORT,Third Party Payments,Revenue
Walsall Council,http://opendatacommunities.org/id/metropolitan-district-council/walsall,WC112-417,31/01/2020,Adult Social Care,ADVANCE HEALTH CARE (UK) LTD,31/01/2020,"1,032.18",73507-DOMICILIARY CARE,PHYSICAL SUPPORT,Third Party Payments,Revenue
Walsall Council,http://opendatacommunities.org/id/metropolitan-district-council/walsall,WC112-418,31/01/2020,Adult Social Care,ADVANCE HEALTH CARE (UK) LTD,06/01/2020,"1,038.39",73507-DOMICILIARY CARE,PHYSICAL SUPPORT,Third Party Payments,Revenue
Walsall Council,http://opendatacommunities.org/id/metropolitan-district-council/walsall,WC112-419,31/01/2020,Adult Social Care,ADVANCE HEALTH CARE (UK) LTD,31/01/2020,"1,060.91",73507-DOMICILIARY CARE,SOCIAL SUPPORT,Third Party Payments,Revenue
Walsall Council,http://opendatacommunities.org/id/metropolitan-district-council/walsall,WC112-420,31/01/2020,Adult Social Care,ADVANCE HEALTH CARE (UK) LTD,06/01/2020,"1,082.38",73507-DOMICILIARY CARE,PHYSICAL SUPPORT,Third Party Payments,Revenue
Walsall Council,http://opendatacommunities.org/id/metropolitan-district-council/walsall,WC112-421,31/01/2020,Adult Social Care,ADVANCE HEALTH CARE (UK) LTD,06/01/2020,"1,156.55",73507-DOMICILIARY CARE,PHYSICAL SUPPORT,Third Party Payments,Revenue
Walsall Council,http://opendatacommunities.org/id/metropolitan-district-council/walsall,WC112-422,31/01/2020,Adult Social Care,ADVANCE HEALTH CARE (UK) LTD,31/01/2020,"1,209.91",73507-DOMICILIARY CARE,PHYSICAL SUPPORT,Third Party Payments,Revenue
Walsall Council,http://opendatacommunities.org/id/metropolitan-district-council/walsall,WC112-423,31/01/2020,Adult Social Care,ADVANCE HEALTH CARE (UK) LTD,06/01/2020,"1,298.36",73507-DOMICILIARY CARE,SOCIAL SUPPORT,Third Party Payments,Revenue
Walsall Council,http://opendatacommunities.org/id/metropolitan-district-council/walsall,WC112-424,31/01/2020,Adult Social Care,ADVANCE HEALTH CARE (UK) LTD,31/01/2020,"1,306.35",73507-DOMICILIARY CARE,PHYSICAL SUPPORT,Third Party Payments,Revenue
Walsall Council,http://opendatacommunities.org/id/metropolitan-district-council/walsall,WC112-425,31/01/2020,Adult Social Care,ADVANCE HEALTH CARE (UK) LTD,06/01/2020,"1,315.86",73507-DOMICILIARY CARE,PHYSICAL SUPPORT,Third Party Payments,Revenue
Walsall Council,http://opendatacommunities.org/id/metropolitan-district-council/walsall,WC112-426,31/01/2020,Adult Social Care,ADVANCE HEALTH CARE (UK) LTD,31/01/2020,"1,328.48",73507-DOMICILIARY CARE,PHYSICAL SUPPORT,Third Party Payments,Revenue
Walsall Council,http://opendatacommunities.org/id/metropolitan-district-council/walsall,WC112-427,31/01/2020,Adult Social Care,ADVANCE HEALTH CARE (UK) LTD,31/01/2020,"1,364.02",73507-DOMICILIARY CARE,PHYSICAL SUPPORT,Third Party Payments,Revenue
Walsall Council,http://opendatacommunities.org/id/metropolitan-district-council/walsall,WC112-428,31/01/2020,Adult Social Care,ADVANCE HEALTH CARE (UK) LTD,31/01/2020,"1,402.00",73507-DOMICILIARY CARE,PHYSICAL SUPPORT,Third Party Payments,Revenue
Walsall Council,http://opendatacommunities.org/id/metropolitan-district-council/walsall,WC112-429,31/01/2020,Adult Social Care,ADVANCE HEALTH CARE (UK) LTD,31/01/2020,"1,423.06",73507-DOMICILIARY CARE,PHYSICAL SUPPORT,Third Party Payments,Revenue
Walsall Council,http://opendatacommunities.org/id/metropolitan-district-council/walsall,WC112-430,31/01/2020,Adult Social Care,ADVANCE HEALTH CARE (UK) LTD,31/01/2020,"1,431.54",73507-DOMICILIARY CARE,PHYSICAL SUPPORT,Third Party Payments,Revenue
Walsall Council,http://opendatacommunities.org/id/metropolitan-district-council/walsall,WC112-431,31/01/2020,Adult Social Care,ADVANCE HEALTH CARE (UK) LTD,31/01/2020,"1,434.47",73507-DOMICILIARY CARE,PHYSICAL SUPPORT,Third Party Payments,Revenue
Walsall Council,http://opendatacommunities.org/id/metropolitan-district-council/walsall,WC112-432,31/01/2020,Adult Social Care,ADVANCE HEALTH CARE (UK) LTD,06/01/2020,"1,451.84",73507-DOMICILIARY CARE,PHYSICAL SUPPORT,Third Party Payments,Revenue
Walsall Council,http://opendatacommunities.org/id/metropolitan-district-council/walsall,WC112-433,31/01/2020,Adult Social Care,ADVANCE HEALTH CARE (UK) LTD,31/01/2020,"1,457.15",73507-DOMICILIARY CARE,PHYSICAL SUPPORT,Third Party Payments,Revenue
Walsall Council,http://opendatacommunities.org/id/metropolitan-district-council/walsall,WC112-434,31/01/2020,Adult Social Care,ADVANCE HEALTH CARE (UK) LTD,31/01/2020,"1,474.07",73507-DOMICILIARY CARE,PHYSICAL SUPPORT,Third Party Payments,Revenue
Walsall Council,http://opendatacommunities.org/id/metropolitan-district-council/walsall,WC112-435,31/01/2020,Adult Social Care,ADVANCE HEALTH CARE (UK) LTD,31/01/2020,"1,474.43",73507-DOMICILIARY CARE,PHYSICAL SUPPORT,Third Party Payments,Revenue
Walsall Council,http://opendatacommunities.org/id/metropolitan-district-council/walsall,WC112-436,31/01/2020,Adult Social Care,ADVANCE HEALTH CARE (UK) LTD,31/01/2020,"1,475.08",73507-DOMICILIARY CARE,PHYSICAL SUPPORT,Third Party Payments,Revenue
Walsall Council,http://opendatacommunities.org/id/metropolitan-district-council/walsall,WC112-437,31/01/2020,Adult Social Care,ADVANCE HEALTH CARE (UK) LTD,31/01/2020,"1,489.63",73507-DOMICILIARY CARE,PHYSICAL SUPPORT,Third Party Payments,Revenue
Walsall Council,http://opendatacommunities.org/id/metropolitan-district-council/walsall,WC112-438,31/01/2020,Adult Social Care,ADVANCE HEALTH CARE (UK) LTD,31/01/2020,"1,502.43",73507-DOMICILIARY CARE,PHYSICAL SUPPORT,Third Party Payments,Revenue
Walsall Council,http://opendatacommunities.org/id/metropolitan-district-council/walsall,WC112-439,31/01/2020,Adult Social Care,ADVANCE HEALTH CARE (UK) LTD,31/01/2020,"1,516.42",73507-DOMICILIARY CARE,SOCIAL SUPPORT,Third Party Payments,Revenue
Walsall Council,http://opendatacommunities.org/id/metropolitan-district-council/walsall,WC112-440,31/01/2020,Adult Social Care,ADVANCE HEALTH CARE (UK) LTD,31/01/2020,"1,522.79",73507-DOMICILIARY CARE,PHYSICAL SUPPORT,Third Party Payments,Revenue
Walsall Council,http://opendatacommunities.org/id/metropolitan-district-council/walsall,WC112-441,31/01/2020,Adult Social Care,ADVANCE HEALTH CARE (UK) LTD,06/01/2020,"1,549.19",73507-DOMICILIARY CARE,PHYSICAL SUPPORT,Third Party Payments,Revenue
Walsall Council,http://opendatacommunities.org/id/metropolitan-district-council/walsall,WC112-442,31/01/2020,Adult Social Care,ADVANCE HEALTH CARE (UK) LTD,06/01/2020,"1,564.93",73507-DOMICILIARY CARE,PHYSICAL SUPPORT,Third Party Payments,Revenue
Walsall Council,http://opendatacommunities.org/id/metropolitan-district-council/walsall,WC112-443,31/01/2020,Adult Social Care,ADVANCE HEALTH CARE (UK) LTD,06/01/2020,"1,568.44",73507-DOMICILIARY CARE,PHYSICAL SUPPORT,Third Party Payments,Revenue
Walsall Council,http://opendatacommunities.org/id/metropolitan-district-council/walsall,WC112-444,31/01/2020,Adult Social Care,ADVANCE HEALTH CARE (UK) LTD,06/01/2020,"1,606.93",73507-DOMICILIARY CARE,SOCIAL SUPPORT,Third Party Payments,Revenue
Walsall Council,http://opendatacommunities.org/id/metropolitan-district-council/walsall,WC112-445,31/01/2020,Adult Social Care,ADVANCE HEALTH CARE (UK) LTD,06/01/2020,"1,614.18",73507-DOMICILIARY CARE,PHYSICAL SUPPORT,Third Party Payments,Revenue
Walsall Council,http://opendatacommunities.org/id/metropolitan-district-council/walsall,WC112-446,31/01/2020,Adult Social Care,ADVANCE HEALTH CARE (UK) LTD,31/01/2020,"1,625.76",73507-DOMICILIARY CARE,PHYSICAL SUPPORT,Third Party Payments,Revenue
Walsall Council,http://opendatacommunities.org/id/metropolitan-district-council/walsall,WC112-447,31/01/2020,Adult Social Care,ADVANCE HEALTH CARE (UK) LTD,31/01/2020,"1,629.82",73507-DOMICILIARY CARE,PHYSICAL SUPPORT,Third Party Payments,Revenue
Walsall Council,http://opendatacommunities.org/id/metropolitan-district-council/walsall,WC112-448,31/01/2020,Adult Social Care,ADVANCE HEALTH CARE (UK) LTD,06/01/2020,"1,641.20",73507-DOMICILIARY CARE,PHYSICAL SUPPORT,Third Party Payments,Revenue
Walsall Council,http://opendatacommunities.org/id/metropolitan-district-council/walsall,WC112-449,31/01/2020,Adult Social Care,ADVANCE HEALTH CARE (UK) LTD,31/01/2020,"1,642.20",73507-DOMICILIARY CARE,PHYSICAL SUPPORT,Third Party Payments,Revenue
Walsall Council,http://opendatacommunities.org/id/metropolitan-district-council/walsall,WC112-450,31/01/2020,Adult Social Care,ADVANCE HEALTH CARE (UK) LTD,06/01/2020,"1,643.71",73507-DOMICILIARY CARE,PHYSICAL SUPPORT,Third Party Payments,Revenue
Walsall Council,http://opendatacommunities.org/id/metropolitan-district-council/walsall,WC112-451,31/01/2020,Adult Social Care,ADVANCE HEALTH CARE (UK) LTD,06/01/2020,"1,676.23",73507-DOMICILIARY CARE,PHYSICAL SUPPORT,Third Party Payments,Revenue
Walsall Council,http://opendatacommunities.org/id/metropolitan-district-council/walsall,WC112-452,31/01/2020,Adult Social Care,ADVANCE HEALTH CARE (UK) LTD,31/01/2020,"1,705.33",73507-DOMICILIARY CARE,PHYSICAL SUPPORT,Third Party Payments,Revenue
Walsall Council,http://opendatacommunities.org/id/metropolitan-district-council/walsall,WC112-453,31/01/2020,Adult Social Care,ADVANCE HEALTH CARE (UK) LTD,31/01/2020,"1,707.41",73507-DOMICILIARY CARE,PHYSICAL SUPPORT,Third Party Payments,Revenue
Walsall Council,http://opendatacommunities.org/id/metropolitan-district-council/walsall,WC112-454,31/01/2020,Adult Social Care,ADVANCE HEALTH CARE (UK) LTD,06/01/2020,"1,717.36",73507-DOMICILIARY CARE,PHYSICAL SUPPORT,Third Party Payments,Revenue
Walsall Council,http://opendatacommunities.org/id/metropolitan-district-council/walsall,WC112-455,31/01/2020,Adult Social Care,ADVANCE HEALTH CARE (UK) LTD,06/01/2020,"1,726.55",73507-DOMICILIARY CARE,SOCIAL SUPPORT,Third Party Payments,Revenue
Walsall Council,http://opendatacommunities.org/id/metropolitan-district-council/walsall,WC112-456,31/01/2020,Adult Social Care,ADVANCE HEALTH CARE (UK) LTD,06/01/2020,"1,754.71",73507-DOMICILIARY CARE,PHYSICAL SUPPORT,Third Party Payments,Revenue
Walsall Council,http://opendatacommunities.org/id/metropolitan-district-council/walsall,WC112-457,31/01/2020,Adult Social Care,ADVANCE HEALTH CARE (UK) LTD,31/01/2020,"1,759.99",73507-DOMICILIARY CARE,PHYSICAL SUPPORT,Third Party Payments,Revenue
Walsall Council,http://opendatacommunities.org/id/metropolitan-district-council/walsall,WC112-458,31/01/2020,Adult Social Care,ADVANCE HEALTH CARE (UK) LTD,31/01/2020,"1,778.69",73507-DOMICILIARY CARE,PHYSICAL SUPPORT,Third Party Payments,Revenue
Walsall Council,http://opendatacommunities.org/id/metropolitan-district-council/walsall,WC112-459,31/01/2020,Adult Social Care,ADVANCE HEALTH CARE (UK) LTD,06/01/2020,"1,794.88",73507-DOMICILIARY CARE,PHYSICAL SUPPORT,Third Party Payments,Revenue
Walsall Council,http://opendatacommunities.org/id/metropolitan-district-council/walsall,WC112-460,31/01/2020,Adult Social Care,ADVANCE HEALTH CARE (UK) LTD,06/01/2020,"1,797.04",73507-DOMICILIARY CARE,PHYSICAL SUPPORT,Third Party Payments,Revenue
Walsall Council,http://opendatacommunities.org/id/metropolitan-district-council/walsall,WC112-461,31/01/2020,Adult Social Care,ADVANCE HEALTH CARE (UK) LTD,06/01/2020,"1,819.27",73507-DOMICILIARY CARE,PHYSICAL SUPPORT,Third Party Payments,Revenue
Walsall Council,http://opendatacommunities.org/id/metropolitan-district-council/walsall,WC112-462,31/01/2020,Adult Social Care,ADVANCE HEALTH CARE (UK) LTD,06/01/2020,"1,834.56",73507-DOMICILIARY CARE,PHYSICAL SUPPORT,Third Party Payments,Revenue
Walsall Council,http://opendatacommunities.org/id/metropolitan-district-council/walsall,WC112-463,31/01/2020,Adult Social Care,ADVANCE HEALTH CARE (UK) LTD,06/01/2020,"1,841.50",73507-DOMICILIARY CARE,PHYSICAL SUPPORT,Third Party Payments,Revenue
Walsall Council,http://opendatacommunities.org/id/metropolitan-district-council/walsall,WC112-464,31/01/2020,Adult Social Care,ADVANCE HEALTH CARE (UK) LTD,31/01/2020,"1,884.10",73507-DOMICILIARY CARE,PHYSICAL SUPPORT,Third Party Payments,Revenue
Walsall Council,http://opendatacommunities.org/id/metropolitan-district-council/walsall,WC112-465,31/01/2020,Adult Social Care,ADVANCE HEALTH CARE (UK) LTD,31/01/2020,"1,897.38",73507-DOMICILIARY CARE,SOCIAL SUPPORT,Third Party Payments,Revenue
Walsall Council,http://opendatacommunities.org/id/metropolitan-district-council/walsall,WC112-466,31/01/2020,Adult Social Care,ADVANCE HEALTH CARE (UK) LTD,06/01/2020,"1,909.72",73507-DOMICILIARY CARE,PHYSICAL SUPPORT,Third Party Payments,Revenue
Walsall Council,http://opendatacommunities.org/id/metropolitan-district-council/walsall,WC112-467,31/01/2020,Adult Social Care,ADVANCE HEALTH CARE (UK) LTD,06/01/2020,"1,918.56",73507-DOMICILIARY CARE,PHYSICAL SUPPORT,Third Party Payments,Revenue
Walsall Council,http://opendatacommunities.org/id/metropolitan-district-council/walsall,WC112-468,31/01/2020,Adult Social Care,ADVANCE HEALTH CARE (UK) LTD,31/01/2020,"1,950.39",73507-DOMICILIARY CARE,PHYSICAL SUPPORT,Third Party Payments,Revenue
Walsall Council,http://opendatacommunities.org/id/metropolitan-district-council/walsall,WC112-469,31/01/2020,Adult Social Care,ADVANCE HEALTH CARE (UK) LTD,06/01/2020,"1,991.16",73507-DOMICILIARY CARE,PHYSICAL SUPPORT,Third Party Payments,Revenue
Walsall Council,http://opendatacommunities.org/id/metropolitan-district-council/walsall,WC112-470,31/01/2020,Adult Social Care,ADVANCE HEALTH CARE (UK) LTD,06/01/2020,"2,068.44",73507-DOMICILIARY CARE,PHYSICAL SUPPORT,Third Party Payments,Revenue
Walsall Council,http://opendatacommunities.org/id/metropolitan-district-council/walsall,WC112-471,31/01/2020,Adult Social Care,ADVANCE HEALTH CARE (UK) LTD,06/01/2020,"2,077.21",73507-DOMICILIARY CARE,PHYSICAL SUPPORT,Third Party Payments,Revenue
Walsall Council,http://opendatacommunities.org/id/metropolitan-district-council/walsall,WC112-472,31/01/2020,Adult Social Care,ADVANCE HEALTH CARE (UK) LTD,06/01/2020,"2,142.96",73507-DOMICILIARY CARE,PHYSICAL SUPPORT,Third Party Payments,Revenue
Walsall Council,http://opendatacommunities.org/id/metropolitan-district-council/walsall,WC112-473,31/01/2020,Adult Social Care,ADVANCE HEALTH CARE (UK) LTD,06/01/2020,"2,207.44",73507-DOMICILIARY CARE,PHYSICAL SUPPORT,Third Party Payments,Revenue
Walsall Council,http://opendatacommunities.org/id/metropolitan-district-council/walsall,WC112-474,31/01/2020,Adult Social Care,ADVANCE HEALTH CARE (UK) LTD,31/01/2020,"2,212.39",73507-DOMICILIARY CARE,PHYSICAL SUPPORT,Third Party Payments,Revenue
Walsall Council,http://opendatacommunities.org/id/metropolitan-district-council/walsall,WC112-475,31/01/2020,Adult Social Care,ADVANCE HEALTH CARE (UK) LTD,06/01/2020,"2,345.65",73507-DOMICILIARY CARE,PHYSICAL SUPPORT,Third Party Payments,Revenue
Walsall Council,http://opendatacommunities.org/id/metropolitan-district-council/walsall,WC112-476,31/01/2020,Adult Social Care,ADVANCE HEALTH CARE (UK) LTD,31/01/2020,"2,374.60",73507-DOMICILIARY CARE,PHYSICAL SUPPORT,Third Party Payments,Revenue
Walsall Council,http://opendatacommunities.org/id/metropolitan-district-council/walsall,WC112-477,31/01/2020,Adult Social Care,ADVANCE HEALTH CARE (UK) LTD,06/01/2020,"2,411.18",73507-DOMICILIARY CARE,PHYSICAL SUPPORT,Third Party Payments,Revenue
Walsall Council,http://opendatacommunities.org/id/metropolitan-district-council/walsall,WC112-478,31/01/2020,Adult Social Care,ADVANCE HEALTH CARE (UK) LTD,31/01/2020,"2,484.45",73507-DOMICILIARY CARE,SOCIAL SUPPORT,Third Party Payments,Revenue
Walsall Council,http://opendatacommunities.org/id/metropolitan-district-council/walsall,WC112-479,31/01/2020,Adult Social Care,ADVANCE HEALTH CARE (UK) LTD,06/01/2020,"2,569.35",73507-DOMICILIARY CARE,SOCIAL SUPPORT,Third Party Payments,Revenue
Walsall Council,http://opendatacommunities.org/id/metropolitan-district-council/walsall,WC112-480,31/01/2020,Adult Social Care,ADVANCE HEALTH CARE (UK) LTD,31/01/2020,"2,934.51",73507-DOMICILIARY CARE,PHYSICAL SUPPORT,Third Party Payments,Revenue
Walsall Council,http://opendatacommunities.org/id/metropolitan-district-council/walsall,WC112-481,31/01/2020,Adult Social Care,ADVANCE HEALTH CARE (UK) LTD,06/01/2020,"3,514.95",73507-DOMICILIARY CARE,PHYSICAL SUPPORT,Third Party Payments,Revenue
Walsall Council,http://opendatacommunities.org/id/metropolitan-district-council/walsall,WC112-482,31/01/2020,Economy & Environment,ADVANCE PHARMA LTD T/A PLECK PHARMACY,31/01/2020,573.10,63253-PAYMENT TO CONTRACTOR,SMOKING CESSATION,Third Party Payments,Revenue
Walsall Council,http://opendatacommunities.org/id/metropolitan-district-council/walsall,WC112-483,31/01/2020,Adult Social Care,ADVANCED HEALTH AND CARE,15/01/2020,"8,907.44",60007-REPAIR OF EQUIPMENT-EQUIPMENT,INTERMEDIATE CARE SERVICE,Supplies & Services,Revenue
Walsall Council,http://opendatacommunities.org/id/metropolitan-district-council/walsall,WC112-484,31/01/2020,Childrens,ADVENTURELAND DAY NURSERY,03/01/2020,786.00,66505-OTHER-GRANTS TO OTHER ORGS,EARLY YEARS - 2 YR OLDS,Third Party Payments,Revenue
Walsall Council,http://opendatacommunities.org/id/metropolitan-district-council/walsall,WC112-485,31/01/2020,Childrens,ADVENTURELAND DAY NURSERY,02/01/2020,"11,023.65",66505-OTHER-GRANTS TO OTHER ORGS,EARLY YEARS - 2 YR OLDS,Third Party Payments,Revenue
Walsall Council,http://opendatacommunities.org/id/metropolitan-district-council/walsall,WC112-486,31/01/2020,Childrens,ADVENTURELAND DAY NURSERY,02/01/2020,"15,611.06",66505-OTHER-GRANTS TO OTHER ORGS,EARLY YEARS - 3 YR OLDS,Third Party Payments,Revenue
Walsall Council,http://opendatacommunities.org/id/metropolitan-district-council/walsall,WC112-487,31/01/2020,Adult Social Care,ADVOCACY MATTERS LIMITED,08/01/2020,"14,482.82",70000-SOCIAL SERVICES-FEES TO VOLUNTARY BODIES,OLDER PEOPLE SLA,Third Party Payments,Revenue
Walsall Council,http://opendatacommunities.org/id/metropolitan-district-council/walsall,WC112-488,31/01/2020,Economy & Environment,AECOM LIMITED,10/01/2020,"1,420.00",01001-OTHER CONSULTANTS FEES,CFR 1248 M6 JUNCTION 10,Capital,Capital
Walsall Council,http://opendatacommunities.org/id/metropolitan-district-council/walsall,WC112-489,31/01/2020,Economy & Environment,AECOM LIMITED,03/01/2020,"2,066.22",73025-PROFESSIONAL SERVICES-PRIV CONTRACTOR & OTHER AGENCIES,DEVELOPERS DEPOSITS HOLDING ACCOUNT,Third Party Payments,Revenue
Walsall Council,http://opendatacommunities.org/id/metropolitan-district-council/walsall,WC112-490,31/01/2020,Economy & Environment,AECOM LIMITED,29/01/2020,"2,911.00",01002-PROJECT FEES,CFR 1280 JUNCTION AND CYCLING IMPROVEMENTS - RING ROAD IMPROVEMENTS Dft FUNDED,Capital,Capital
Walsall Council,http://opendatacommunities.org/id/metropolitan-district-council/walsall,WC112-491,31/01/2020,Economy & Environment,AECOM LIMITED,21/01/2020,"5,270.00",01001-OTHER CONSULTANTS FEES,CFR 1219 DARLASTON MONITORING AND EVALUATION,Capital,Capital
Walsall Council,http://opendatacommunities.org/id/metropolitan-district-council/walsall,WC112-492,31/01/2020,Resources and Transformation,AFFORDABLE WARMTH SOLUTIONS CIC,14/01/2020,"6,744.28",63000-PROFESSIONAL FEES AND SERVICES,HEALTH THROUGH WARMTH,Supplies & Services,Revenue
Walsall Council,http://opendatacommunities.org/id/metropolitan-district-council/walsall,WC112-493,31/01/2020,Adult Social Care,REDACTED,03/01/2020,"2,325.60",73506-DIRECT PAYMENT,LEARNING DISABILITY SUPPORT,Third Party Payments,Revenue
Walsall Council,http://opendatacommunities.org/id/metropolitan-district-council/walsall,WC112-494,31/01/2020,Childrens,ALASDAIR CANT & ASSOCIATES LIMITED,13/01/2020,"2,320.00",30030-EXTERNAL TRAINING,GENERAL MANAGEMENT SUPPORT (INC LEGAL),Employees,Revenue
Walsall Council,http://opendatacommunities.org/id/metropolitan-district-council/walsall,WC112-495,31/01/2020,Childrens,ALBRIGHTON CARE LTD,24/01/2020,"6,059.29",74036-EXTERNAL RESIDENTIAL CARE-OTH AGENCY PROVISION,INDEPENDENT RESIDENTIAL HOMES,Third Party Payments,Revenue
Walsall Council,http://opendatacommunities.org/id/metropolitan-district-council/walsall,WC112-496,31/01/2020,Economy & Environment,ALCIUM SOFTWARE,01/01/2020,"9,843.00",63809-LICENCES-COMPUTER,EMPLOYMENT GROWTH TEAM,Supplies & Services,Revenue
Walsall Council,http://opendatacommunities.org/id/metropolitan-district-council/walsall,WC112-497,31/01/2020,Economy & Environment,ALDERBROOK HEALTHCARE LTD,27/01/2020,"8,313.80",63000-PROFESSIONAL FEES AND SERVICES,CORONERS SERVICE,Supplies & Services,Revenue
Walsall Council,http://opendatacommunities.org/id/metropolitan-district-council/walsall,WC112-498,31/01/2020,Adult Social Care,ALDERGROVE MANOR LTD,02/01/2020,"1,972.24",73501-RESIDENTIAL EMI,MENTAL HEALTH SUPPORT,Third Party Payments,Revenue
Walsall Council,http://opendatacommunities.org/id/metropolitan-district-council/walsall,WC112-499,31/01/2020,Adult Social Care,ALDERGROVE MANOR LTD,02/01/2020,"1,972.24",73501-RESIDENTIAL EMI,PHYSICAL SUPPORT,Third Party Payments,Revenue
Walsall Council,http://opendatacommunities.org/id/metropolitan-district-council/walsall,WC112-500,31/01/2020,Adult Social Care,ALDERGROVE MANOR LTD,02/01/2020,"2,143.72",73502-NURSING,PHYSICAL SUPPORT,Third Party Payments,Revenue
Walsall Council,http://opendatacommunities.org/id/metropolitan-district-council/walsall,WC112-501,31/01/2020,Childrens,ALDRIDGE & BARONS LIMITED,03/01/2020,-482.80,52000-WITH DRIVER-HIRE OF VEHICLES,HOME TO SCHOOL TRANSPORT,Transport,Revenue
Walsall Council,http://opendatacommunities.org/id/metropolitan-district-council/walsall,WC112-502,31/01/2020,Childrens,ALDRIDGE & BARONS LIMITED,03/01/2020,-460.80,52000-WITH DRIVER-HIRE OF VEHICLES,HOME TO SCHOOL TRANSPORT,Transport,Revenue
Walsall Council,http://opendatacommunities.org/id/metropolitan-district-council/walsall,WC112-503,31/01/2020,Childrens,ALDRIDGE & BARONS LIMITED,03/01/2020,-289.56,52000-WITH DRIVER-HIRE OF VEHICLES,HOME TO SCHOOL TRANSPORT,Transport,Revenue
Walsall Council,http://opendatacommunities.org/id/metropolitan-district-council/walsall,WC112-504,31/01/2020,Childrens,ALDRIDGE & BARONS LIMITED,03/01/2020,258.00,52000-WITH DRIVER-HIRE OF VEHICLES,HOME TO SCHOOL TRANSPORT,Transport,Revenue
Walsall Council,http://opendatacommunities.org/id/metropolitan-district-council/walsall,WC112-505,31/01/2020,Childrens,ALDRIDGE & BARONS LIMITED,03/01/2020,270.80,52000-WITH DRIVER-HIRE OF VEHICLES,HOME TO SCHOOL TRANSPORT,Transport,Revenue
Walsall Council,http://opendatacommunities.org/id/metropolitan-district-council/walsall,WC112-506,31/01/2020,Childrens,ALDRIDGE & BARONS LIMITED,03/01/2020,270.80,52000-WITH DRIVER-HIRE OF VEHICLES,HOME TO SCHOOL TRANSPORT,Transport,Revenue
Walsall Council,http://opendatacommunities.org/id/metropolitan-district-council/walsall,WC112-507,31/01/2020,Childrens,ALDRIDGE & BARONS LIMITED,03/01/2020,270.80,52000-WITH DRIVER-HIRE OF VEHICLES,HOME TO SCHOOL TRANSPORT,Transport,Revenue
Walsall Council,http://opendatacommunities.org/id/metropolitan-district-council/walsall,WC112-508,31/01/2020,Childrens,ALDRIDGE & BARONS LIMITED,03/01/2020,297.20,52000-WITH DRIVER-HIRE OF VEHICLES,HOME TO SCHOOL TRANSPORT,Transport,Revenue
Walsall Council,http://opendatacommunities.org/id/metropolitan-district-council/walsall,WC112-509,31/01/2020,Childrens,ALDRIDGE & BARONS LIMITED,03/01/2020,297.20,52000-WITH DRIVER-HIRE OF VEHICLES,HOME TO SCHOOL TRANSPORT,Transport,Revenue
Walsall Council,http://opendatacommunities.org/id/metropolitan-district-council/walsall,WC112-510,31/01/2020,Childrens,ALDRIDGE & BARONS LIMITED,03/01/2020,297.20,52000-WITH DRIVER-HIRE OF VEHICLES,HOME TO SCHOOL TRANSPORT,Transport,Revenue
Walsall Council,http://opendatacommunities.org/id/metropolitan-district-council/walsall,WC112-511,31/01/2020,Childrens,ALDRIDGE & BARONS LIMITED,03/01/2020,297.20,52000-WITH DRIVER-HIRE OF VEHICLES,HOME TO SCHOOL TRANSPORT,Transport,Revenue
Walsall Council,http://opendatacommunities.org/id/metropolitan-district-council/walsall,WC112-512,31/01/2020,Childrens,ALDRIDGE & BARONS LIMITED,03/01/2020,297.20,52000-WITH DRIVER-HIRE OF VEHICLES,HOME TO SCHOOL TRANSPORT,Transport,Revenue
Walsall Council,http://opendatacommunities.org/id/metropolitan-district-council/walsall,WC112-513,31/01/2020,Childrens,ALDRIDGE & BARONS LIMITED,03/01/2020,297.20,52000-WITH DRIVER-HIRE OF VEHICLES,HOME TO SCHOOL TRANSPORT,Transport,Revenue
Walsall Council,http://opendatacommunities.org/id/metropolitan-district-council/walsall,WC112-514,31/01/2020,Childrens,ALDRIDGE & BARONS LIMITED,03/01/2020,297.20,52000-WITH DRIVER-HIRE OF VEHICLES,HOME TO SCHOOL TRANSPORT,Transport,Revenue
Walsall Council,http://opendatacommunities.org/id/metropolitan-district-council/walsall,WC112-515,31/01/2020,Childrens,ALDRIDGE & BARONS LIMITED,03/01/2020,320.00,52000-WITH DRIVER-HIRE OF VEHICLES,HOME TO SCHOOL TRANSPORT,Transport,Revenue
Walsall Council,http://opendatacommunities.org/id/metropolitan-district-council/walsall,WC112-516,31/01/2020,Childrens,ALDRIDGE & BARONS LIMITED,03/01/2020,320.00,52000-WITH DRIVER-HIRE OF VEHICLES,HOME TO SCHOOL TRANSPORT,Transport,Revenue
Walsall Council,http://opendatacommunities.org/id/metropolitan-district-council/walsall,WC112-517,31/01/2020,Childrens,ALDRIDGE & BARONS LIMITED,03/01/2020,320.00,52000-WITH DRIVER-HIRE OF VEHICLES,HOME TO SCHOOL TRANSPORT,Transport,Revenue
Walsall Council,http://opendatacommunities.org/id/metropolitan-district-council/walsall,WC112-518,31/01/2020,Childrens,ALDRIDGE & BARONS LIMITED,03/01/2020,320.00,52000-WITH DRIVER-HIRE OF VEHICLES,HOME TO SCHOOL TRANSPORT,Transport,Revenue
Walsall Council,http://opendatacommunities.org/id/metropolitan-district-council/walsall,WC112-519,31/01/2020,Childrens,ALDRIDGE & BARONS LIMITED,03/01/2020,320.00,52000-WITH DRIVER-HIRE OF VEHICLES,HOME TO SCHOOL TRANSPORT,Transport,Revenue
Walsall Council,http://opendatacommunities.org/id/metropolitan-district-council/walsall,WC112-520,31/01/2020,Childrens,ALDRIDGE & BARONS LIMITED,03/01/2020,320.00,52000-WITH DRIVER-HIRE OF VEHICLES,HOME TO SCHOOL TRANSPORT,Transport,Revenue
Walsall Council,http://opendatacommunities.org/id/metropolitan-district-council/walsall,WC112-521,31/01/2020,Childrens,ALDRIDGE & BARONS LIMITED,03/01/2020,320.00,52000-WITH DRIVER-HIRE OF VEHICLES,HOME TO SCHOOL TRANSPORT,Transport,Revenue
Walsall Council,http://opendatacommunities.org/id/metropolitan-district-council/walsall,WC112-522,31/01/2020,Childrens,ALDRIDGE & BARONS LIMITED,03/01/2020,320.00,52000-WITH DRIVER-HIRE OF VEHICLES,HOME TO SCHOOL TRANSPORT,Transport,Revenue
Walsall Council,http://opendatacommunities.org/id/metropolitan-district-council/walsall,WC112-523,31/01/2020,Childrens,ALDRIDGE & BARONS LIMITED,03/01/2020,320.00,52000-WITH DRIVER-HIRE OF VEHICLES,HOME TO SCHOOL TRANSPORT,Transport,Revenue
Walsall Council,http://opendatacommunities.org/id/metropolitan-district-council/walsall,WC112-524,31/01/2020,Childrens,ALDRIDGE & BARONS LIMITED,03/01/2020,320.00,52000-WITH DRIVER-HIRE OF VEHICLES,HOME TO SCHOOL TRANSPORT,Transport,Revenue
Walsall Council,http://opendatacommunities.org/id/metropolitan-district-council/walsall,WC112-525,31/01/2020,Childrens,ALDRIDGE & BARONS LIMITED,03/01/2020,331.60,52000-WITH DRIVER-HIRE OF VEHICLES,HOME TO SCHOOL TRANSPORT,Transport,Revenue
Walsall Council,http://opendatacommunities.org/id/metropolitan-district-council/walsall,WC112-526,31/01/2020,Childrens,ALDRIDGE & BARONS LIMITED,03/01/2020,331.60,52000-WITH DRIVER-HIRE OF VEHICLES,HOME TO SCHOOL TRANSPORT,Transport,Revenue
Walsall Council,http://opendatacommunities.org/id/metropolitan-district-council/walsall,WC112-527,31/01/2020,Childrens,ALDRIDGE & BARONS LIMITED,03/01/2020,331.60,52000-WITH DRIVER-HIRE OF VEHICLES,HOME TO SCHOOL TRANSPORT,Transport,Revenue
Walsall Council,http://opendatacommunities.org/id/metropolitan-district-council/walsall,WC112-528,31/01/2020,Childrens,ALDRIDGE & BARONS LIMITED,03/01/2020,331.60,52000-WITH DRIVER-HIRE OF VEHICLES,HOME TO SCHOOL TRANSPORT,Transport,Revenue
Walsall Council,http://opendatacommunities.org/id/metropolitan-district-council/walsall,WC112-529,31/01/2020,Childrens,ALDRIDGE & BARONS LIMITED,03/01/2020,344.00,52000-WITH DRIVER-HIRE OF VEHICLES,HOME TO SCHOOL TRANSPORT,Transport,Revenue
Walsall Council,http://opendatacommunities.org/id/metropolitan-district-council/walsall,WC112-530,31/01/2020,Childrens,ALDRIDGE & BARONS LIMITED,03/01/2020,344.00,52000-WITH DRIVER-HIRE OF VEHICLES,HOME TO SCHOOL TRANSPORT,Transport,Revenue
Walsall Council,http://opendatacommunities.org/id/metropolitan-district-council/walsall,WC112-531,31/01/2020,Childrens,ALDRIDGE & BARONS LIMITED,03/01/2020,344.00,52000-WITH DRIVER-HIRE OF VEHICLES,HOME TO SCHOOL TRANSPORT,Transport,Revenue
Walsall Council,http://opendatacommunities.org/id/metropolitan-district-council/walsall,WC112-532,31/01/2020,Childrens,ALDRIDGE & BARONS LIMITED,03/01/2020,344.00,52000-WITH DRIVER-HIRE OF VEHICLES,HOME TO SCHOOL TRANSPORT,Transport,Revenue
Walsall Council,http://opendatacommunities.org/id/metropolitan-district-council/walsall,WC112-533,31/01/2020,Childrens,ALDRIDGE & BARONS LIMITED,03/01/2020,356.00,52000-WITH DRIVER-HIRE OF VEHICLES,HOME TO SCHOOL TRANSPORT,Transport,Revenue
Walsall Council,http://opendatacommunities.org/id/metropolitan-district-council/walsall,WC112-534,31/01/2020,Childrens,ALDRIDGE & BARONS LIMITED,03/01/2020,356.00,52000-WITH DRIVER-HIRE OF VEHICLES,HOME TO SCHOOL TRANSPORT,Transport,Revenue
Walsall Council,http://opendatacommunities.org/id/metropolitan-district-council/walsall,WC112-535,31/01/2020,Childrens,ALDRIDGE & BARONS LIMITED,03/01/2020,356.00,52000-WITH DRIVER-HIRE OF VEHICLES,HOME TO SCHOOL TRANSPORT,Transport,Revenue
Walsall Council,http://opendatacommunities.org/id/metropolitan-district-council/walsall,WC112-536,31/01/2020,Childrens,ALDRIDGE & BARONS LIMITED,03/01/2020,356.00,52000-WITH DRIVER-HIRE OF VEHICLES,HOME TO SCHOOL TRANSPORT,Transport,Revenue
Walsall Council,http://opendatacommunities.org/id/metropolitan-district-council/walsall,WC112-537,31/01/2020,Childrens,ALDRIDGE & BARONS LIMITED,03/01/2020,356.00,52000-WITH DRIVER-HIRE OF VEHICLES,HOME TO SCHOOL TRANSPORT,Transport,Revenue
Walsall Council,http://opendatacommunities.org/id/metropolitan-district-council/walsall,WC112-538,31/01/2020,Childrens,ALDRIDGE & BARONS LIMITED,03/01/2020,362.80,52000-WITH DRIVER-HIRE OF VEHICLES,HOME TO SCHOOL TRANSPORT,Transport,Revenue
Walsall Council,http://opendatacommunities.org/id/metropolitan-district-council/walsall,WC112-539,31/01/2020,Childrens,ALDRIDGE & BARONS LIMITED,03/01/2020,362.80,52000-WITH DRIVER-HIRE OF VEHICLES,HOME TO SCHOOL TRANSPORT,Transport,Revenue
Walsall Council,http://opendatacommunities.org/id/metropolitan-district-council/walsall,WC112-540,31/01/2020,Childrens,ALDRIDGE & BARONS LIMITED,03/01/2020,362.80,52000-WITH DRIVER-HIRE OF VEHICLES,HOME TO SCHOOL TRANSPORT,Transport,Revenue
Walsall Council,http://opendatacommunities.org/id/metropolitan-district-council/walsall,WC112-541,31/01/2020,Childrens,ALDRIDGE & BARONS LIMITED,03/01/2020,372.00,52000-WITH DRIVER-HIRE OF VEHICLES,HOME TO SCHOOL TRANSPORT,Transport,Revenue
Walsall Council,http://opendatacommunities.org/id/metropolitan-district-council/walsall,WC112-542,31/01/2020,Childrens,ALDRIDGE & BARONS LIMITED,03/01/2020,388.80,52000-WITH DRIVER-HIRE OF VEHICLES,HOME TO SCHOOL TRANSPORT,Transport,Revenue
Walsall Council,http://opendatacommunities.org/id/metropolitan-district-council/walsall,WC112-543,31/01/2020,Childrens,ALDRIDGE & BARONS LIMITED,03/01/2020,388.80,52000-WITH DRIVER-HIRE OF VEHICLES,HOME TO SCHOOL TRANSPORT,Transport,Revenue
Walsall Council,http://opendatacommunities.org/id/metropolitan-district-council/walsall,WC112-544,31/01/2020,Childrens,ALDRIDGE & BARONS LIMITED,03/01/2020,388.80,52000-WITH DRIVER-HIRE OF VEHICLES,HOME TO SCHOOL TRANSPORT,Transport,Revenue
Walsall Council,http://opendatacommunities.org/id/metropolitan-district-council/walsall,WC112-545,31/01/2020,Childrens,ALDRIDGE & BARONS LIMITED,03/01/2020,396.00,52000-WITH DRIVER-HIRE OF VEHICLES,HOME TO SCHOOL TRANSPORT,Transport,Revenue
Walsall Council,http://opendatacommunities.org/id/metropolitan-district-council/walsall,WC112-546,31/01/2020,Childrens,ALDRIDGE & BARONS LIMITED,03/01/2020,396.00,52000-WITH DRIVER-HIRE OF VEHICLES,HOME TO SCHOOL TRANSPORT,Transport,Revenue
Walsall Council,http://opendatacommunities.org/id/metropolitan-district-council/walsall,WC112-547,31/01/2020,Childrens,ALDRIDGE & BARONS LIMITED,03/01/2020,400.00,52000-WITH DRIVER-HIRE OF VEHICLES,HOME TO SCHOOL TRANSPORT,Transport,Revenue
Walsall Council,http://opendatacommunities.org/id/metropolitan-district-council/walsall,WC112-548,31/01/2020,Childrens,ALDRIDGE & BARONS LIMITED,03/01/2020,400.00,52000-WITH DRIVER-HIRE OF VEHICLES,HOME TO SCHOOL TRANSPORT,Transport,Revenue
Walsall Council,http://opendatacommunities.org/id/metropolitan-district-council/walsall,WC112-549,31/01/2020,Childrens,ALDRIDGE & BARONS LIMITED,03/01/2020,400.00,52000-WITH DRIVER-HIRE OF VEHICLES,HOME TO SCHOOL TRANSPORT,Transport,Revenue
Walsall Council,http://opendatacommunities.org/id/metropolitan-district-council/walsall,WC112-550,31/01/2020,Childrens,ALDRIDGE & BARONS LIMITED,03/01/2020,400.32,52000-WITH DRIVER-HIRE OF VEHICLES,HOME TO SCHOOL TRANSPORT,Transport,Revenue
Walsall Council,http://opendatacommunities.org/id/metropolitan-district-council/walsall,WC112-551,31/01/2020,Childrens,ALDRIDGE & BARONS LIMITED,03/01/2020,435.00,52000-WITH DRIVER-HIRE OF VEHICLES,HOME TO SCHOOL TRANSPORT,Transport,Revenue
Walsall Council,http://opendatacommunities.org/id/metropolitan-district-council/walsall,WC112-552,31/01/2020,Childrens,ALDRIDGE & BARONS LIMITED,03/01/2020,436.40,52000-WITH DRIVER-HIRE OF VEHICLES,HOME TO SCHOOL TRANSPORT,Transport,Revenue
Walsall Council,http://opendatacommunities.org/id/metropolitan-district-council/walsall,WC112-553,31/01/2020,Childrens,ALDRIDGE & BARONS LIMITED,03/01/2020,436.40,52000-WITH DRIVER-HIRE OF VEHICLES,HOME TO SCHOOL TRANSPORT,Transport,Revenue
Walsall Council,http://opendatacommunities.org/id/metropolitan-district-council/walsall,WC112-554,31/01/2020,Childrens,ALDRIDGE & BARONS LIMITED,03/01/2020,436.40,52000-WITH DRIVER-HIRE OF VEHICLES,HOME TO SCHOOL TRANSPORT,Transport,Revenue
Walsall Council,http://opendatacommunities.org/id/metropolitan-district-council/walsall,WC112-555,31/01/2020,Childrens,ALDRIDGE & BARONS LIMITED,03/01/2020,436.40,52000-WITH DRIVER-HIRE OF VEHICLES,HOME TO SCHOOL TRANSPORT,Transport,Revenue
Walsall Council,http://opendatacommunities.org/id/metropolitan-district-council/walsall,WC112-556,31/01/2020,Childrens,ALDRIDGE & BARONS LIMITED,03/01/2020,440.00,52000-WITH DRIVER-HIRE OF VEHICLES,HOME TO SCHOOL TRANSPORT,Transport,Revenue
Walsall Council,http://opendatacommunities.org/id/metropolitan-district-council/walsall,WC112-557,31/01/2020,Childrens,ALDRIDGE & BARONS LIMITED,03/01/2020,440.00,52000-WITH DRIVER-HIRE OF VEHICLES,HOME TO SCHOOL TRANSPORT,Transport,Revenue
Walsall Council,http://opendatacommunities.org/id/metropolitan-district-council/walsall,WC112-558,31/01/2020,Childrens,ALDRIDGE & BARONS LIMITED,03/01/2020,440.00,52000-WITH DRIVER-HIRE OF VEHICLES,HOME TO SCHOOL TRANSPORT,Transport,Revenue
Walsall Council,http://opendatacommunities.org/id/metropolitan-district-council/walsall,WC112-559,31/01/2020,Childrens,ALDRIDGE & BARONS LIMITED,03/01/2020,440.00,52000-WITH DRIVER-HIRE OF VEHICLES,HOME TO SCHOOL TRANSPORT,Transport,Revenue
Walsall Council,http://opendatacommunities.org/id/metropolitan-district-council/walsall,WC112-560,31/01/2020,Childrens,ALDRIDGE & BARONS LIMITED,03/01/2020,440.64,52000-WITH DRIVER-HIRE OF VEHICLES,HOME TO SCHOOL TRANSPORT,Transport,Revenue
Walsall Council,http://opendatacommunities.org/id/metropolitan-district-council/walsall,WC112-561,31/01/2020,Childrens,ALDRIDGE & BARONS LIMITED,03/01/2020,450.00,52000-WITH DRIVER-HIRE OF VEHICLES,HOME TO SCHOOL TRANSPORT,Transport,Revenue
Walsall Council,http://opendatacommunities.org/id/metropolitan-district-council/walsall,WC112-562,31/01/2020,Childrens,ALDRIDGE & BARONS LIMITED,03/01/2020,450.00,52000-WITH DRIVER-HIRE OF VEHICLES,HOME TO SCHOOL TRANSPORT,Transport,Revenue
Walsall Council,http://opendatacommunities.org/id/metropolitan-district-council/walsall,WC112-563,31/01/2020,Childrens,ALDRIDGE & BARONS LIMITED,03/01/2020,450.00,52000-WITH DRIVER-HIRE OF VEHICLES,HOME TO SCHOOL TRANSPORT,Transport,Revenue
Walsall Council,http://opendatacommunities.org/id/metropolitan-district-council/walsall,WC112-564,31/01/2020,Childrens,ALDRIDGE & BARONS LIMITED,03/01/2020,450.00,52000-WITH DRIVER-HIRE OF VEHICLES,HOME TO SCHOOL TRANSPORT,Transport,Revenue
Walsall Council,http://opendatacommunities.org/id/metropolitan-district-council/walsall,WC112-565,31/01/2020,Childrens,ALDRIDGE & BARONS LIMITED,03/01/2020,470.00,52000-WITH DRIVER-HIRE OF VEHICLES,HOME TO SCHOOL TRANSPORT,Transport,Revenue
Walsall Council,http://opendatacommunities.org/id/metropolitan-district-council/walsall,WC112-566,31/01/2020,Childrens,ALDRIDGE & BARONS LIMITED,03/01/2020,470.00,52000-WITH DRIVER-HIRE OF VEHICLES,HOME TO SCHOOL TRANSPORT,Transport,Revenue
Walsall Council,http://opendatacommunities.org/id/metropolitan-district-council/walsall,WC112-567,31/01/2020,Childrens,ALDRIDGE & BARONS LIMITED,03/01/2020,470.00,52000-WITH DRIVER-HIRE OF VEHICLES,HOME TO SCHOOL TRANSPORT,Transport,Revenue
Walsall Council,http://opendatacommunities.org/id/metropolitan-district-council/walsall,WC112-568,31/01/2020,Childrens,ALDRIDGE & BARONS LIMITED,03/01/2020,470.00,52000-WITH DRIVER-HIRE OF VEHICLES,HOME TO SCHOOL TRANSPORT,Transport,Revenue
Walsall Council,http://opendatacommunities.org/id/metropolitan-district-council/walsall,WC112-569,31/01/2020,Childrens,ALDRIDGE & BARONS LIMITED,03/01/2020,470.40,52000-WITH DRIVER-HIRE OF VEHICLES,HOME TO SCHOOL TRANSPORT,Transport,Revenue
Walsall Council,http://opendatacommunities.org/id/metropolitan-district-council/walsall,WC112-570,31/01/2020,Childrens,ALDRIDGE & BARONS LIMITED,03/01/2020,470.40,52000-WITH DRIVER-HIRE OF VEHICLES,HOME TO SCHOOL TRANSPORT,Transport,Revenue
Walsall Council,http://opendatacommunities.org/id/metropolitan-district-council/walsall,WC112-571,31/01/2020,Childrens,ALDRIDGE & BARONS LIMITED,03/01/2020,470.40,52000-WITH DRIVER-HIRE OF VEHICLES,HOME TO SCHOOL TRANSPORT,Transport,Revenue
Walsall Council,http://opendatacommunities.org/id/metropolitan-district-council/walsall,WC112-572,31/01/2020,Childrens,ALDRIDGE & BARONS LIMITED,03/01/2020,478.80,52000-WITH DRIVER-HIRE OF VEHICLES,HOME TO SCHOOL TRANSPORT,Transport,Revenue
Walsall Council,http://opendatacommunities.org/id/metropolitan-district-council/walsall,WC112-573,31/01/2020,Childrens,ALDRIDGE & BARONS LIMITED,03/01/2020,478.80,52000-WITH DRIVER-HIRE OF VEHICLES,HOME TO SCHOOL TRANSPORT,Transport,Revenue
Walsall Council,http://opendatacommunities.org/id/metropolitan-district-council/walsall,WC112-574,31/01/2020,Childrens,ALDRIDGE & BARONS LIMITED,03/01/2020,478.80,52000-WITH DRIVER-HIRE OF VEHICLES,HOME TO SCHOOL TRANSPORT,Transport,Revenue
Walsall Council,http://opendatacommunities.org/id/metropolitan-district-council/walsall,WC112-575,31/01/2020,Childrens,ALDRIDGE & BARONS LIMITED,03/01/2020,478.80,52000-WITH DRIVER-HIRE OF VEHICLES,HOME TO SCHOOL TRANSPORT,Transport,Revenue
Walsall Council,http://opendatacommunities.org/id/metropolitan-district-council/walsall,WC112-576,31/01/2020,Childrens,ALDRIDGE & BARONS LIMITED,03/01/2020,525.56,52000-WITH DRIVER-HIRE OF VEHICLES,HOME TO SCHOOL TRANSPORT,Transport,Revenue
Walsall Council,http://opendatacommunities.org/id/metropolitan-district-council/walsall,WC112-577,31/01/2020,Childrens,ALDRIDGE & BARONS LIMITED,03/01/2020,532.80,52000-WITH DRIVER-HIRE OF VEHICLES,HOME TO SCHOOL TRANSPORT,Transport,Revenue
Walsall Council,http://opendatacommunities.org/id/metropolitan-district-council/walsall,WC112-578,31/01/2020,Childrens,ALDRIDGE & BARONS LIMITED,03/01/2020,532.80,52000-WITH DRIVER-HIRE OF VEHICLES,HOME TO SCHOOL TRANSPORT,Transport,Revenue
Walsall Council,http://opendatacommunities.org/id/metropolitan-district-council/walsall,WC112-579,31/01/2020,Childrens,ALDRIDGE & BARONS LIMITED,03/01/2020,533.60,52000-WITH DRIVER-HIRE OF VEHICLES,HOME TO SCHOOL TRANSPORT,Transport,Revenue
Walsall Council,http://opendatacommunities.org/id/metropolitan-district-council/walsall,WC112-580,31/01/2020,Childrens,ALDRIDGE & BARONS LIMITED,03/01/2020,533.60,52000-WITH DRIVER-HIRE OF VEHICLES,HOME TO SCHOOL TRANSPORT,Transport,Revenue
Walsall Council,http://opendatacommunities.org/id/metropolitan-district-council/walsall,WC112-581,31/01/2020,Childrens,ALDRIDGE & BARONS LIMITED,03/01/2020,533.60,52000-WITH DRIVER-HIRE OF VEHICLES,HOME TO SCHOOL TRANSPORT,Transport,Revenue
Walsall Council,http://opendatacommunities.org/id/metropolitan-district-council/walsall,WC112-582,31/01/2020,Childrens,ALDRIDGE & BARONS LIMITED,03/01/2020,533.60,52000-WITH DRIVER-HIRE OF VEHICLES,HOME TO SCHOOL TRANSPORT,Transport,Revenue
Walsall Council,http://opendatacommunities.org/id/metropolitan-district-council/walsall,WC112-583,31/01/2020,Childrens,ALDRIDGE & BARONS LIMITED,03/01/2020,661.60,52000-WITH DRIVER-HIRE OF VEHICLES,HOME TO SCHOOL TRANSPORT,Transport,Revenue
Walsall Council,http://opendatacommunities.org/id/metropolitan-district-council/walsall,WC112-584,31/01/2020,Childrens,ALDRIDGE & BARONS LIMITED,03/01/2020,744.00,52000-WITH DRIVER-HIRE OF VEHICLES,HOME TO SCHOOL TRANSPORT,Transport,Revenue
Walsall Council,http://opendatacommunities.org/id/metropolitan-district-council/walsall,WC112-585,31/01/2020,Childrens,ALDRIDGE & BARONS LIMITED,03/01/2020,777.60,52000-WITH DRIVER-HIRE OF VEHICLES,HOME TO SCHOOL TRANSPORT,Transport,Revenue
Walsall Council,http://opendatacommunities.org/id/metropolitan-district-council/walsall,WC112-586,31/01/2020,Childrens,ALDRIDGE & BARONS LIMITED,03/01/2020,792.00,52000-WITH DRIVER-HIRE OF VEHICLES,HOME TO SCHOOL TRANSPORT,Transport,Revenue
Walsall Council,http://opendatacommunities.org/id/metropolitan-district-council/walsall,WC112-587,31/01/2020,Childrens,ALDRIDGE & BARONS LIMITED,03/01/2020,830.96,52000-WITH DRIVER-HIRE OF VEHICLES,HOME TO SCHOOL TRANSPORT,Transport,Revenue
Walsall Council,http://opendatacommunities.org/id/metropolitan-district-council/walsall,WC112-588,31/01/2020,Childrens,ALDRIDGE & BARONS LIMITED,03/01/2020,869.60,52000-WITH DRIVER-HIRE OF VEHICLES,HOME TO SCHOOL TRANSPORT,Transport,Revenue
Walsall Council,http://opendatacommunities.org/id/metropolitan-district-council/walsall,WC112-589,31/01/2020,Childrens,ALDRIDGE & BARONS LIMITED,03/01/2020,891.20,52000-WITH DRIVER-HIRE OF VEHICLES,HOME TO SCHOOL TRANSPORT,Transport,Revenue
Walsall Council,http://opendatacommunities.org/id/metropolitan-district-council/walsall,WC112-590,31/01/2020,Childrens,ALDRIDGE & BARONS LIMITED,03/01/2020,891.20,52000-WITH DRIVER-HIRE OF VEHICLES,HOME TO SCHOOL TRANSPORT,Transport,Revenue
Walsall Council,http://opendatacommunities.org/id/metropolitan-district-council/walsall,WC112-591,31/01/2020,Childrens,ALDRIDGE & BARONS LIMITED,03/01/2020,965.20,52000-WITH DRIVER-HIRE OF VEHICLES,HOME TO SCHOOL TRANSPORT,Transport,Revenue
Walsall Council,http://opendatacommunities.org/id/metropolitan-district-council/walsall,WC112-592,31/01/2020,Childrens,ALDRIDGE & BARONS LIMITED,03/01/2020,"1,264.00",52000-WITH DRIVER-HIRE OF VEHICLES,HOME TO SCHOOL TRANSPORT,Transport,Revenue
Walsall Council,http://opendatacommunities.org/id/metropolitan-district-council/walsall,WC112-593,31/01/2020,Childrens,ALDRIDGE & BARONS LIMITED,03/01/2020,"1,264.00",52000-WITH DRIVER-HIRE OF VEHICLES,HOME TO SCHOOL TRANSPORT,Transport,Revenue
Walsall Council,http://opendatacommunities.org/id/metropolitan-district-council/walsall,WC112-594,31/01/2020,Childrens,ALDRIDGE & BARONS LIMITED,03/01/2020,"1,770.80",52000-WITH DRIVER-HIRE OF VEHICLES,HOME TO SCHOOL TRANSPORT,Transport,Revenue
Walsall Council,http://opendatacommunities.org/id/metropolitan-district-council/walsall,WC112-595,31/01/2020,Childrens,ALDRIDGE & BARONS LIMITED,03/01/2020,"1,786.00",52000-WITH DRIVER-HIRE OF VEHICLES,HOME TO SCHOOL TRANSPORT,Transport,Revenue
Walsall Council,http://opendatacommunities.org/id/metropolitan-district-council/walsall,WC112-596,31/01/2020,Childrens,ALDRIDGE & BARONS LIMITED,03/01/2020,"1,885.20",52000-WITH DRIVER-HIRE OF VEHICLES,HOME TO SCHOOL TRANSPORT,Transport,Revenue
Walsall Council,http://opendatacommunities.org/id/metropolitan-district-council/walsall,WC112-597,31/01/2020,Economy & Environment,ALDRIDGE PAINTING & DECORATING LTD,14/01/2020,360.00,60008-REPAIR & MAINTENANCE OF FURNITURE & EQUIPMENT,BLOXWICH LEISURE CENTRE,Supplies & Services,Revenue
Walsall Council,http://opendatacommunities.org/id/metropolitan-district-council/walsall,WC112-598,31/01/2020,Adult Social Care,REDACTED,03/01/2020,"1,348.80",73506-DIRECT PAYMENT,PHYSICAL SUPPORT,Third Party Payments,Revenue
Walsall Council,http://opendatacommunities.org/id/metropolitan-district-council/walsall,WC112-599,31/01/2020,Adult Social Care,ALEXANDRA HOUSE CARE SERVICES LTD T/A STONEBRIDGE NURSING HOME,02/01/2020,"7,188.60",73500-RESIDENTIAL,LEARNING DISABILITY SUPPORT,Third Party Payments,Revenue
Walsall Council,http://opendatacommunities.org/id/metropolitan-district-council/walsall,WC112-600,31/01/2020,Adult Social Care,REDACTED,03/01/2020,"1,806.56",73506-DIRECT PAYMENT,PHYSICAL SUPPORT,Third Party Payments,Revenue
Walsall Council,http://opendatacommunities.org/id/metropolitan-district-council/walsall,WC112-601,31/01/2020,Adult Social Care,REDACTED,03/01/2020,897.60,73506-DIRECT PAYMENT,PHYSICAL SUPPORT,Third Party Payments,Revenue
Walsall Council,http://opendatacommunities.org/id/metropolitan-district-council/walsall,WC112-602,31/01/2020,Adult Social Care,REDACTED,03/01/2020,"4,740.24",73506-DIRECT PAYMENT,LEARNING DISABILITY SUPPORT,Third Party Payments,Revenue
Walsall Council,http://opendatacommunities.org/id/metropolitan-district-council/walsall,WC112-603,31/01/2020,Resources and Transformation,ALIGNED ASSETS LTD,15/01/2020,"3,928.86",63820-RECHARGE FOR MAINTENANCE/APPLICATION COSTS-COMPUTER,APPLICATIONS,Supplies & Services,Revenue
Walsall Council,http://opendatacommunities.org/id/metropolitan-district-council/walsall,WC112-604,31/01/2020,Adult Social Care,REDACTED,07/01/2020,"1,301.64",73510-SHARED LIVES,LEARNING DISABILITY SUPPORT,Third Party Payments,Revenue
Walsall Council,http://opendatacommunities.org/id/metropolitan-district-council/walsall,WC112-605,31/01/2020,Adult Social Care,REDACTED,31/01/2020,"1,301.64",73510-SHARED LIVES,LEARNING DISABILITY SUPPORT,Third Party Payments,Revenue
Walsall Council,http://opendatacommunities.org/id/metropolitan-district-council/walsall,WC112-606,31/01/2020,Childrens,REDACTED,13/01/2020,312.24,74509-SPECIAL GUARDIANSHIP ORDERS,ADOPTION ALLOWANCES,Transfer Payments,Revenue
Walsall Council,http://opendatacommunities.org/id/metropolitan-district-council/walsall,WC112-607,31/01/2020,Economy & Environment,REDACTED,01/01/2020,"1,224.23",63253-PAYMENT TO CONTRACTOR,GENERAL HEALTH PROTECTION,Third Party Payments,Revenue
Walsall Council,http://opendatacommunities.org/id/metropolitan-district-council/walsall,WC112-608,31/01/2020,Resources and Transformation,ALL SAINTS CHURCH,03/01/2020,"4,995.24",66500-GRANTS TO OTHER ORGS,LET'S TALK ABOUT IT PROJECT,Third Party Payments,Revenue
Walsall Council,http://opendatacommunities.org/id/metropolitan-district-council/walsall,WC112-609,31/01/2020,Adult Social Care,REDACTED,03/01/2020,"1,606.08",73506-DIRECT PAYMENT,SOCIAL SUPPORT,Third Party Payments,Revenue
Walsall Council,http://opendatacommunities.org/id/metropolitan-district-council/walsall,WC112-610,31/01/2020,Economy & Environment,ALLAN HADDOW LTD,07/01/2020,"1,720.00",30030-EXTERNAL TRAINING,FLEET,Employees,Revenue
Walsall Council,http://opendatacommunities.org/id/metropolitan-district-council/walsall,WC112-611,31/01/2020,Economy & Environment,ALLGOOD PLC,14/01/2020,8.20,63500-POSTAGES AND COURIER SERVICES,NAG - MAINTENANCE,Supplies & Services,Revenue
Walsall Council,http://opendatacommunities.org/id/metropolitan-district-council/walsall,WC112-612,31/01/2020,Economy & Environment,ALLGOOD PLC,14/01/2020,307.52,40024-IRONMONGERY & SIGNS-OP MTCE,NAG - MAINTENANCE,Premises,Revenue
Walsall Council,http://opendatacommunities.org/id/metropolitan-district-council/walsall,WC112-613,31/01/2020,Economy & Environment,ALLIANCE LEISURE SERVICES LTD,01/01/2020,662.50,60000-FURNITURE & EQUIPMENT,DARLASTON LEISURE CENTRE,Supplies & Services,Revenue
Walsall Council,http://opendatacommunities.org/id/metropolitan-district-council/walsall,WC112-614,31/01/2020,Economy & Environment,ALLIANCE LEISURE SERVICES LTD,01/01/2020,662.50,60000-FURNITURE & EQUIPMENT,OAK PARK,Supplies & Services,Revenue
Walsall Council,http://opendatacommunities.org/id/metropolitan-district-council/walsall,WC112-615,31/01/2020,Economy & Environment,ALLIANCE LEISURE SERVICES LTD,01/01/2020,662.50,60000-FURNITURE & EQUIPMENT,BLOXWICH LEISURE CENTRE,Supplies & Services,Revenue
Walsall Council,http://opendatacommunities.org/id/metropolitan-district-council/walsall,WC112-616,31/01/2020,Economy & Environment,ALLIANCE LEISURE SERVICES LTD,01/01/2020,662.50,60000-FURNITURE & EQUIPMENT,WALSALL GALA CENTRE,Supplies & Services,Revenue
Walsall Council,http://opendatacommunities.org/id/metropolitan-district-council/walsall,WC112-617,31/01/2020,Economy & Environment,ALLIED PUBLICITY SERVICES (MANCHESTER) LIMITED T/A APS GROUP,22/01/2020,"1,231.40",63000-PROFESSIONAL FEES AND SERVICES,BLUE BADGES,Supplies & Services,Revenue
Walsall Council,http://opendatacommunities.org/id/metropolitan-district-council/walsall,WC112-618,31/01/2020,Economy & Environment,ALLIED PUBLICITY SERVICES (MANCHESTER) LIMITED T/A APS GROUP,16/01/2020,"1,320.50",63000-PROFESSIONAL FEES AND SERVICES,BLUE BADGES,Supplies & Services,Revenue
Walsall Council,http://opendatacommunities.org/id/metropolitan-district-council/walsall,WC112-619,31/01/2020,Adult Social Care,ALLSORTS OFFICE SUPPLIES LTD,09/01/2020,426.40,60006-NEW-FURNITURE & EQUIPMENT,WEST LOCALITY TEAM,Supplies & Services,Revenue
Walsall Council,http://opendatacommunities.org/id/metropolitan-district-council/walsall,WC112-620,31/01/2020,Resources and Transformation,ALLSORTS OFFICE SUPPLIES LTD,09/01/2020,528.00,60006-NEW-FURNITURE & EQUIPMENT,CUSTOMER SERVICES,Supplies & Services,Revenue
Walsall Council,http://opendatacommunities.org/id/metropolitan-district-council/walsall,WC112-621,31/01/2020,Resources and Transformation,ALLSORTS OFFICE SUPPLIES LTD,09/01/2020,704.00,63800-COMPUTER EQUIPMENT AND SUPPLIES,ICT INCOME,Supplies & Services,Revenue
Walsall Council,http://opendatacommunities.org/id/metropolitan-district-council/walsall,WC112-622,31/01/2020,Childrens,ALLSORTS OFFICE SUPPLIES LTD,09/01/2020,783.60,60006-NEW-FURNITURE & EQUIPMENT,SAFEGUARDING BOARD,Supplies & Services,Revenue
Walsall Council,http://opendatacommunities.org/id/metropolitan-district-council/walsall,WC112-623,31/01/2020,Adult Social Care,ALMA COURT,02/01/2020,"5,939.20",73503-NURSING EMI,PHYSICAL SUPPORT,Third Party Payments,Revenue
Walsall Council,http://opendatacommunities.org/id/metropolitan-district-council/walsall,WC112-624,31/01/2020,Adult Social Care,ALMA COURT,02/01/2020,"6,400.00",73500-RESIDENTIAL,MENTAL HEALTH SUPPORT,Third Party Payments,Revenue
Walsall Council,http://opendatacommunities.org/id/metropolitan-district-council/walsall,WC112-625,31/01/2020,Adult Social Care,ALMA COURT,17/01/2020,"8,228.57",73500-RESIDENTIAL,MENTAL HEALTH SUPPORT,Third Party Payments,Revenue
Walsall Council,http://opendatacommunities.org/id/metropolitan-district-council/walsall,WC112-626,31/01/2020,Childrens,ALMOZENE NURSERY & CHILDRENS CENTRE,02/01/2020,"2,593.80",66505-OTHER-GRANTS TO OTHER ORGS,EARLY YEARS - 2 YR OLDS,Third Party Payments,Revenue
Walsall Council,http://opendatacommunities.org/id/metropolitan-district-council/walsall,WC112-627,31/01/2020,Childrens,ALMOZENE NURSERY & CHILDRENS CENTRE,02/01/2020,"8,613.00",66505-OTHER-GRANTS TO OTHER ORGS,EARLY YEARS - 3 YR OLDS,Third Party Payments,Revenue
Walsall Council,http://opendatacommunities.org/id/metropolitan-district-council/walsall,WC112-628,31/01/2020,Adult Social Care,ALPHA HEALTH CARE LTD,31/01/2020,563.50,73501-RESIDENTIAL EMI,PHYSICAL SUPPORT,Third Party Payments,Revenue
Walsall Council,http://opendatacommunities.org/id/metropolitan-district-council/walsall,WC112-629,31/01/2020,Adult Social Care,ALPHA HEALTH CARE LTD,02/01/2020,"1,774.96",73500-RESIDENTIAL,MENTAL HEALTH SUPPORT,Third Party Payments,Revenue
Walsall Council,http://opendatacommunities.org/id/metropolitan-district-council/walsall,WC112-630,31/01/2020,Adult Social Care,ALPHA HEALTH CARE LTD,02/01/2020,"1,972.24",73501-RESIDENTIAL EMI,PHYSICAL SUPPORT,Third Party Payments,Revenue
Walsall Council,http://opendatacommunities.org/id/metropolitan-district-council/walsall,WC112-631,31/01/2020,Adult Social Care,ALPHA HEALTH CARE LTD,02/01/2020,"2,143.72",73502-NURSING,PHYSICAL SUPPORT,Third Party Payments,Revenue
Walsall Council,http://opendatacommunities.org/id/metropolitan-district-council/walsall,WC112-632,31/01/2020,Adult Social Care,ALPHA HEALTH CARE LTD,02/01/2020,"2,255.72",73501-RESIDENTIAL EMI,SUPPORT WITH MEMORY & COGNITION,Third Party Payments,Revenue
Walsall Council,http://opendatacommunities.org/id/metropolitan-district-council/walsall,WC112-633,31/01/2020,Adult Social Care,ALPHA HEALTH CARE LTD,15/01/2020,"2,310.00",73025-PROFESSIONAL SERVICES-PRIV CONTRACTOR & OTHER AGENCIES,TRANSITIONAL CARE SUPPORT TEAM,Third Party Payments,Revenue
Walsall Council,http://opendatacommunities.org/id/metropolitan-district-council/walsall,WC112-634,31/01/2020,Adult Social Care,ALPHA HEALTH CARE LTD,02/01/2020,"2,358.08",73503-NURSING EMI,MENTAL HEALTH SUPPORT,Third Party Payments,Revenue
Walsall Council,http://opendatacommunities.org/id/metropolitan-district-council/walsall,WC112-635,31/01/2020,Adult Social Care,ALPHA HEALTH CARE LTD,02/01/2020,"2,358.08",73503-NURSING EMI,MENTAL HEALTH SUPPORT,Third Party Payments,Revenue
Walsall Council,http://opendatacommunities.org/id/metropolitan-district-council/walsall,WC112-636,31/01/2020,Adult Social Care,ALPHA HEALTH CARE LTD,02/01/2020,"2,358.08",73503-NURSING EMI,PHYSICAL SUPPORT,Third Party Payments,Revenue
Walsall Council,http://opendatacommunities.org/id/metropolitan-district-council/walsall,WC112-637,31/01/2020,Adult Social Care,ALPHA HEALTH CARE LTD,02/01/2020,"2,495.72",73501-RESIDENTIAL EMI,MENTAL HEALTH SUPPORT,Third Party Payments,Revenue
Walsall Council,http://opendatacommunities.org/id/metropolitan-district-council/walsall,WC112-638,31/01/2020,Adult Social Care,ALPHA HEALTH CARE LTD,02/01/2020,"2,558.08",73503-NURSING EMI,PHYSICAL SUPPORT,Third Party Payments,Revenue
Walsall Council,http://opendatacommunities.org/id/metropolitan-district-council/walsall,WC112-639,31/01/2020,Adult Social Care,ALPHA HEALTH CARE LTD,02/01/2020,"2,737.76",73503-NURSING EMI,SUPPORT WITH MEMORY & COGNITION,Third Party Payments,Revenue
Walsall Council,http://opendatacommunities.org/id/metropolitan-district-council/walsall,WC112-640,31/01/2020,Adult Social Care,ALPHA HEALTH CARE LTD,02/01/2020,"2,837.76",73503-NURSING EMI,SUPPORT WITH MEMORY & COGNITION,Third Party Payments,Revenue
Walsall Council,http://opendatacommunities.org/id/metropolitan-district-council/walsall,WC112-641,31/01/2020,Adult Social Care,ALPHA HEALTH CARE LTD,02/01/2020,"2,881.80",73503-NURSING EMI,MENTAL HEALTH SUPPORT,Third Party Payments,Revenue
Walsall Council,http://opendatacommunities.org/id/metropolitan-district-council/walsall,WC112-642,31/01/2020,Adult Social Care,ALPHA HEALTH CARE LTD,02/01/2020,"2,881.80",73503-NURSING EMI,MENTAL HEALTH SUPPORT,Third Party Payments,Revenue
Walsall Council,http://opendatacommunities.org/id/metropolitan-district-council/walsall,WC112-643,31/01/2020,Adult Social Care,ALPHA HEALTH CARE LTD,02/01/2020,"2,881.80",73503-NURSING EMI,PHYSICAL SUPPORT,Third Party Payments,Revenue
Walsall Council,http://opendatacommunities.org/id/metropolitan-district-council/walsall,WC112-644,31/01/2020,Adult Social Care,ALPHA HEALTH CARE LTD,02/01/2020,"2,881.80",73503-NURSING EMI,PHYSICAL SUPPORT,Third Party Payments,Revenue
Walsall Council,http://opendatacommunities.org/id/metropolitan-district-council/walsall,WC112-645,31/01/2020,Adult Social Care,ALPHA HEALTH CARE LTD,02/01/2020,"2,881.84",73503-NURSING EMI,PHYSICAL SUPPORT,Third Party Payments,Revenue
Walsall Council,http://opendatacommunities.org/id/metropolitan-district-council/walsall,WC112-646,31/01/2020,Adult Social Care,ALPHA HEALTH CARE LTD,02/01/2020,"2,937.88",73503-NURSING EMI,PHYSICAL SUPPORT,Third Party Payments,Revenue
Walsall Council,http://opendatacommunities.org/id/metropolitan-district-council/walsall,WC112-647,31/01/2020,Adult Social Care,ALPHA HEALTH CARE LTD,02/01/2020,"3,035.72",73501-RESIDENTIAL EMI,PHYSICAL SUPPORT,Third Party Payments,Revenue
Walsall Council,http://opendatacommunities.org/id/metropolitan-district-council/walsall,WC112-648,31/01/2020,Adult Social Care,ALPHA HEALTH CARE LTD,02/01/2020,"3,035.72",73501-RESIDENTIAL EMI,PHYSICAL SUPPORT,Third Party Payments,Revenue
Walsall Council,http://opendatacommunities.org/id/metropolitan-district-council/walsall,WC112-649,31/01/2020,Adult Social Care,ALPHA HEALTH CARE LTD,02/01/2020,"3,290.36",73503-NURSING EMI,PHYSICAL SUPPORT,Third Party Payments,Revenue
Walsall Council,http://opendatacommunities.org/id/metropolitan-district-council/walsall,WC112-650,31/01/2020,Adult Social Care,ALPHA HEALTH CARE LTD,15/01/2020,"3,321.43",73025-PROFESSIONAL SERVICES-PRIV CONTRACTOR & OTHER AGENCIES,TRANSITIONAL CARE SUPPORT TEAM,Third Party Payments,Revenue
Walsall Council,http://opendatacommunities.org/id/metropolitan-district-council/walsall,WC112-651,31/01/2020,Adult Social Care,ALPHA HEALTH CARE LTD,02/01/2020,"3,400.00",73503-NURSING EMI,MENTAL HEALTH SUPPORT,Third Party Payments,Revenue
Walsall Council,http://opendatacommunities.org/id/metropolitan-district-council/walsall,WC112-652,31/01/2020,Adult Social Care,ALPHA HEALTH CARE LTD,15/01/2020,"7,750.00",73025-PROFESSIONAL SERVICES-PRIV CONTRACTOR & OTHER AGENCIES,TRANSITIONAL CARE SUPPORT TEAM,Third Party Payments,Revenue
Walsall Council,http://opendatacommunities.org/id/metropolitan-district-council/walsall,WC112-653,31/01/2020,Childrens,ALPHA TRAINING ACADEMY UK LTD,14/01/2020,"1,000.00",60500-GENERAL MATERIALS,PUPIL REFERAL UNIT EXCLUSIONS,Supplies & Services,Revenue
Walsall Council,http://opendatacommunities.org/id/metropolitan-district-council/walsall,WC112-654,31/01/2020,Childrens,ALPHA TRAINING ACADEMY UK LTD,16/01/2020,"1,120.00",63000-PROFESSIONAL FEES AND SERVICES,VIRTUAL SCHOOL CENTRAL PUPIL PREMIUM,Supplies & Services,Revenue
Walsall Council,http://opendatacommunities.org/id/metropolitan-district-council/walsall,WC112-655,31/01/2020,Childrens,ALPHA TRAINING ACADEMY UK LTD,22/01/2020,"2,414.00",66502-TOP UP FUNDING -GRANTS TO SCHOOLS,INDEPENDENT PROVIDERS - POST SCHOOL,Third Party Payments,Revenue
Walsall Council,http://opendatacommunities.org/id/metropolitan-district-council/walsall,WC112-656,31/01/2020,Childrens,ALPHABIOLABS,13/01/2020,488.00,63000-PROFESSIONAL FEES AND SERVICES,SAFEGUARDING & FAMILY SUPPORT,Supplies & Services,Revenue
Walsall Council,http://opendatacommunities.org/id/metropolitan-district-council/walsall,WC112-657,31/01/2020,Childrens,ALPHABIOLABS,16/01/2020,"1,109.00",63000-PROFESSIONAL FEES AND SERVICES,SAFEGUARDING & FAMILY SUPPORT,Supplies & Services,Revenue
Walsall Council,http://opendatacommunities.org/id/metropolitan-district-council/walsall,WC112-658,31/01/2020,Childrens,AMAH NURSERIES LIMITED T/A BANANA MOON WALSALL,02/01/2020,"10,375.20",66505-OTHER-GRANTS TO OTHER ORGS,EARLY YEARS - 2 YR OLDS,Third Party Payments,Revenue
Walsall Council,http://opendatacommunities.org/id/metropolitan-district-council/walsall,WC112-659,31/01/2020,Childrens,AMAH NURSERIES LIMITED T/A BANANA MOON WALSALL,02/01/2020,"14,534.44",66505-OTHER-GRANTS TO OTHER ORGS,EARLY YEARS - 3 YR OLDS,Third Party Payments,Revenue
Walsall Council,http://opendatacommunities.org/id/metropolitan-district-council/walsall,WC112-660,31/01/2020,Childrens,REDACTED,13/01/2020,318.08,74510-RESIDENTS ORDERS,ADOPTION ALLOWANCES,Third Party Payments,Revenue
Walsall Council,http://opendatacommunities.org/id/metropolitan-district-council/walsall,WC112-661,31/01/2020,Childrens,REDACTED,13/01/2020,370.28,74510-RESIDENTS ORDERS,ADOPTION ALLOWANCES,Third Party Payments,Revenue
Walsall Council,http://opendatacommunities.org/id/metropolitan-district-council/walsall,WC112-662,31/01/2020,Adult Social Care,REDACTED,03/01/2020,"1,515.00",73506-DIRECT PAYMENT,LEARNING DISABILITY SUPPORT,Third Party Payments,Revenue
Walsall Council,http://opendatacommunities.org/id/metropolitan-district-council/walsall,WC112-663,31/01/2020,Childrens,REDACTED,13/01/2020,808.04,74009-ADOPTION ALLOWANCE,ADOPTION ALLOWANCES,Transfer Payments,Revenue
Walsall Council,http://opendatacommunities.org/id/metropolitan-district-council/walsall,WC112-664,31/01/2020,Childrens,REDACTED,24/01/2020,600.00,74501-MAINTENANCE ALLOWANCE-FOSTER CARERS,INTERNAL FOSTER CARE PROVISION,Transfer Payments,Revenue
Walsall Council,http://opendatacommunities.org/id/metropolitan-district-council/walsall,WC112-665,31/01/2020,Childrens,REDACTED,24/01/2020,"1,000.00",74508-INTERNAL FOSTER CARERS-CARER FEES,INTERNAL FOSTER CARE PROVISION,Transfer Payments,Revenue
Walsall Council,http://opendatacommunities.org/id/metropolitan-district-council/walsall,WC112-666,31/01/2020,Adult Social Care,REDACTED,03/01/2020,"1,014.48",73506-DIRECT PAYMENT,LEARNING DISABILITY SUPPORT,Third Party Payments,Revenue
Walsall Council,http://opendatacommunities.org/id/metropolitan-district-council/walsall,WC112-667,31/01/2020,Economy & Environment,AMEY LG LIMITED,01/01/2020,327.96,73025-PROFESSIONAL SERVICES-PRIV CONTRACTOR & OTHER AGENCIES,SECTION 38 OF HIGHWAYS ACT - SUPERVISION,Third Party Payments,Revenue
Walsall Council,http://opendatacommunities.org/id/metropolitan-district-council/walsall,WC112-668,31/01/2020,Economy & Environment,AMEY LG LIMITED,01/01/2020,579.61,73025-PROFESSIONAL SERVICES-PRIV CONTRACTOR & OTHER AGENCIES,SECTION 38 OF HIGHWAYS ACT - SUPERVISION,Third Party Payments,Revenue
Walsall Council,http://opendatacommunities.org/id/metropolitan-district-council/walsall,WC112-669,31/01/2020,Economy & Environment,AMEY LG LIMITED,16/01/2020,754.04,60500-GENERAL MATERIALS,VASS IMPLEMENTATION,Supplies & Services,Revenue
Walsall Council,http://opendatacommunities.org/id/metropolitan-district-council/walsall,WC112-670,31/01/2020,Economy & Environment,AMEY LG LIMITED,13/01/2020,851.86,60008-REPAIR & MAINTENANCE OF FURNITURE & EQUIPMENT,PARKING SERVICES,Supplies & Services,Revenue
Walsall Council,http://opendatacommunities.org/id/metropolitan-district-council/walsall,WC112-671,31/01/2020,Economy & Environment,AMEY LG LIMITED,23/01/2020,851.86,73025-PROFESSIONAL SERVICES-PRIV CONTRACTOR & OTHER AGENCIES,TRAFFIC CONTROL,Third Party Payments,Revenue
Walsall Council,http://opendatacommunities.org/id/metropolitan-district-council/walsall,WC112-672,31/01/2020,Resources and Transformation,AMEY LG LIMITED,20/01/2020,"1,242.45",60008-REPAIR & MAINTENANCE OF FURNITURE & EQUIPMENT,CCTV,Supplies & Services,Revenue
Walsall Council,http://opendatacommunities.org/id/metropolitan-district-council/walsall,WC112-673,31/01/2020,Economy & Environment,AMEY LG LIMITED,13/01/2020,"1,703.72",60008-REPAIR & MAINTENANCE OF FURNITURE & EQUIPMENT,PARKING SERVICES,Supplies & Services,Revenue
Walsall Council,http://opendatacommunities.org/id/metropolitan-district-council/walsall,WC112-674,31/01/2020,Economy & Environment,AMEY LG LIMITED,01/01/2020,"1,859.53",01009-SITE WORKS - OTHER CONTRACTORS,CFR 819 LTP-YORKS BRIDGE,Capital,Capital
Walsall Council,http://opendatacommunities.org/id/metropolitan-district-council/walsall,WC112-675,31/01/2020,Economy & Environment,AMEY LG LIMITED,01/01/2020,"4,483.52",73025-PROFESSIONAL SERVICES-PRIV CONTRACTOR & OTHER AGENCIES,TRAFFIC MANAGEMENT,Third Party Payments,Revenue
Walsall Council,http://opendatacommunities.org/id/metropolitan-district-council/walsall,WC112-676,31/01/2020,Economy & Environment,AMEY LG LIMITED,03/01/2020,"4,875.30",01006-SITE WORKS MAIN CONTRACTORS,CFR 1280 M6 J10 RESILIENCE PACKAGE NPIF Dft FUNDED,Capital,Capital
Walsall Council,http://opendatacommunities.org/id/metropolitan-district-council/walsall,WC112-677,31/01/2020,Economy & Environment,AMEY LG LIMITED,17/01/2020,"7,588.21",73025-PROFESSIONAL SERVICES-PRIV CONTRACTOR & OTHER AGENCIES,TRAFFIC MANAGEMENT,Third Party Payments,Revenue
Walsall Council,http://opendatacommunities.org/id/metropolitan-district-council/walsall,WC112-678,31/01/2020,Economy & Environment,AMEY LG LIMITED,03/01/2020,"14,526.38",01002-PROJECT FEES,CFR 1280 JUNCTION AND CYCLING IMPROVEMENTS - RING ROAD IMPROVEMENTS Dft FUNDED,Capital,Capital
Walsall Council,http://opendatacommunities.org/id/metropolitan-district-council/walsall,WC112-679,31/01/2020,Economy & Environment,AMEY LG LIMITED,01/01/2020,"46,580.59",01002-PROJECT FEES,CFR 1280 JUNCTION AND CYCLING IMPROVEMENTS - RING ROAD IMPROVEMENTS Dft FUNDED,Capital,Capital
Walsall Council,http://opendatacommunities.org/id/metropolitan-district-council/walsall,WC112-680,31/01/2020,Economy & Environment,AMEY OW LTD,29/01/2020,"1,503.53",01002-PROJECT FEES,CFR 1280 M6 J10 RESILIENCE PACKAGE NPIF Dft FUNDED,Capital,Capital
Walsall Council,http://opendatacommunities.org/id/metropolitan-district-council/walsall,WC112-681,31/01/2020,Economy & Environment,AMEY OW LTD,29/01/2020,"1,628.82",01002-PROJECT FEES,CFR 1280 JUNCTION AND CYCLING IMPROVEMENTS - RING ROAD IMPROVEMENTS Dft FUNDED,Capital,Capital
Walsall Council,http://opendatacommunities.org/id/metropolitan-district-council/walsall,WC112-682,31/01/2020,Childrens,AMG NURSING CARE SERVICES,21/01/2020,370.24,63000-PROFESSIONAL FEES AND SERVICES,DIRECTLY COMMISSIONED NURSING SERVICES,Supplies & Services,Revenue
Walsall Council,http://opendatacommunities.org/id/metropolitan-district-council/walsall,WC112-683,31/01/2020,Childrens,AMG NURSING CARE SERVICES,10/01/2020,"1,480.96",63000-PROFESSIONAL FEES AND SERVICES,DIRECTLY COMMISSIONED NURSING SERVICES,Supplies & Services,Revenue
Walsall Council,http://opendatacommunities.org/id/metropolitan-district-council/walsall,WC112-684,31/01/2020,Childrens,AMG NURSING CARE SERVICES,08/01/2020,"1,883.17",63000-PROFESSIONAL FEES AND SERVICES,DIRECTLY COMMISSIONED NURSING SERVICES,Supplies & Services,Revenue
Walsall Council,http://opendatacommunities.org/id/metropolitan-district-council/walsall,WC112-685,31/01/2020,Adult Social Care,AMG NURSING CARE SERVICES,03/01/2020,"3,640.00",73508-COMMUNITY SUPPORTED LIVING/SUPPORTED ACCOMMODATION,PHYSICAL SUPPORT,Third Party Payments,Revenue
Walsall Council,http://opendatacommunities.org/id/metropolitan-district-council/walsall,WC112-686,31/01/2020,Adult Social Care,AMG NURSING CARE SERVICES,20/01/2020,"10,711.67",73508-COMMUNITY SUPPORTED LIVING/SUPPORTED ACCOMMODATION,PHYSICAL SUPPORT,Third Party Payments,Revenue
Walsall Council,http://opendatacommunities.org/id/metropolitan-district-council/walsall,WC112-687,31/01/2020,Childrens,REDACTED,13/01/2020,300.00,60006-NEW-FURNITURE & EQUIPMENT,FAMILY & FRIENDS FOSTER CARE PROVISION,Supplies & Services,Revenue
Walsall Council,http://opendatacommunities.org/id/metropolitan-district-council/walsall,WC112-688,31/01/2020,Childrens,REDACTED,13/01/2020,350.00,74505-SCHOOL UNIFORM/INITIAL TRAINING ALLOWANCE-FOSTER CARERS,FAMILY & FRIENDS FOSTER CARE PROVISION,Transfer Payments,Revenue
Walsall Council,http://opendatacommunities.org/id/metropolitan-district-council/walsall,WC112-689,31/01/2020,Childrens,REDACTED,13/01/2020,720.00,74501-MAINTENANCE ALLOWANCE-FOSTER CARERS,FAMILY & FRIENDS FOSTER CARE PROVISION,Transfer Payments,Revenue
Walsall Council,http://opendatacommunities.org/id/metropolitan-district-council/walsall,WC112-690,31/01/2020,Adult Social Care,REDACTED,24/01/2020,"5,340.21",73506-DIRECT PAYMENT,PHYSICAL SUPPORT,Third Party Payments,Revenue
Walsall Council,http://opendatacommunities.org/id/metropolitan-district-council/walsall,WC112-691,31/01/2020,Childrens,REDACTED,13/01/2020,340.00,74508-INTERNAL FOSTER CARERS-CARER FEES,FAMILY & FRIENDS FOSTER CARE PROVISION,Transfer Payments,Revenue
Walsall Council,http://opendatacommunities.org/id/metropolitan-district-council/walsall,WC112-692,31/01/2020,Childrens,REDACTED,13/01/2020,600.00,74501-MAINTENANCE ALLOWANCE-FOSTER CARERS,FAMILY & FRIENDS FOSTER CARE PROVISION,Transfer Payments,Revenue
Walsall Council,http://opendatacommunities.org/id/metropolitan-district-council/walsall,WC112-693,31/01/2020,Childrens,REDACTED,13/01/2020,425.08,74510-RESIDENTS ORDERS,ADOPTION ALLOWANCES,Third Party Payments,Revenue
Walsall Council,http://opendatacommunities.org/id/metropolitan-district-council/walsall,WC112-694,31/01/2020,Adult Social Care,ANCHOR,31/01/2020,469.13,73501-RESIDENTIAL EMI,PHYSICAL SUPPORT,Third Party Payments,Revenue
Walsall Council,http://opendatacommunities.org/id/metropolitan-district-council/walsall,WC112-695,31/01/2020,Adult Social Care,ANCHOR,31/01/2020,493.06,73501-RESIDENTIAL EMI,PHYSICAL SUPPORT,Third Party Payments,Revenue
Walsall Council,http://opendatacommunities.org/id/metropolitan-district-council/walsall,WC112-696,31/01/2020,Adult Social Care,ANCHOR,31/01/2020,657.14,73501-RESIDENTIAL EMI,PHYSICAL SUPPORT,Third Party Payments,Revenue
Walsall Council,http://opendatacommunities.org/id/metropolitan-district-council/walsall,WC112-697,31/01/2020,Adult Social Care,ANCHOR,08/01/2020,871.24,73501-RESIDENTIAL EMI,SENSORY SUPPORT,Third Party Payments,Revenue
Walsall Council,http://opendatacommunities.org/id/metropolitan-district-council/walsall,WC112-698,31/01/2020,Adult Social Care,ANCHOR,31/01/2020,"1,677.39",73500-RESIDENTIAL,SOCIAL SUPPORT,Third Party Payments,Revenue
Walsall Council,http://opendatacommunities.org/id/metropolitan-district-council/walsall,WC112-699,31/01/2020,Adult Social Care,ANCHOR,02/01/2020,"1,774.96",73500-RESIDENTIAL,PHYSICAL SUPPORT,Third Party Payments,Revenue
Walsall Council,http://opendatacommunities.org/id/metropolitan-district-council/walsall,WC112-700,31/01/2020,Adult Social Care,ANCHOR,02/01/2020,"1,774.96",73500-RESIDENTIAL,SUPPORT WITH MEMORY & COGNITION,Third Party Payments,Revenue
Walsall Council,http://opendatacommunities.org/id/metropolitan-district-council/walsall,WC112-701,31/01/2020,Adult Social Care,ANCHOR,02/01/2020,"1,774.96",73500-RESIDENTIAL,PHYSICAL SUPPORT,Third Party Payments,Revenue
Walsall Council,http://opendatacommunities.org/id/metropolitan-district-council/walsall,WC112-702,31/01/2020,Adult Social Care,ANCHOR,02/01/2020,"1,774.96",73500-RESIDENTIAL,SUPPORT WITH MEMORY & COGNITION,Third Party Payments,Revenue
Walsall Council,http://opendatacommunities.org/id/metropolitan-district-council/walsall,WC112-703,31/01/2020,Adult Social Care,ANCHOR,02/01/2020,"1,834.96",73500-RESIDENTIAL,PHYSICAL SUPPORT,Third Party Payments,Revenue
Walsall Council,http://opendatacommunities.org/id/metropolitan-district-council/walsall,WC112-704,31/01/2020,Adult Social Care,ANCHOR,02/01/2020,"1,926.12",73500-RESIDENTIAL,PHYSICAL SUPPORT,Third Party Payments,Revenue
Walsall Council,http://opendatacommunities.org/id/metropolitan-district-council/walsall,WC112-705,31/01/2020,Adult Social Care,ANCHOR,02/01/2020,"1,934.96",73500-RESIDENTIAL,PHYSICAL SUPPORT,Third Party Payments,Revenue
Walsall Council,http://opendatacommunities.org/id/metropolitan-district-council/walsall,WC112-706,31/01/2020,Adult Social Care,ANCHOR,02/01/2020,"1,935.72",73501-RESIDENTIAL EMI,PHYSICAL SUPPORT,Third Party Payments,Revenue
Walsall Council,http://opendatacommunities.org/id/metropolitan-district-council/walsall,WC112-707,31/01/2020,Adult Social Care,ANCHOR,02/01/2020,"1,972.24",73501-RESIDENTIAL EMI,PHYSICAL SUPPORT,Third Party Payments,Revenue
Walsall Council,http://opendatacommunities.org/id/metropolitan-district-council/walsall,WC112-708,31/01/2020,Adult Social Care,ANCHOR,02/01/2020,"1,972.24",73501-RESIDENTIAL EMI,SUPPORT WITH MEMORY & COGNITION,Third Party Payments,Revenue
Walsall Council,http://opendatacommunities.org/id/metropolitan-district-council/walsall,WC112-709,31/01/2020,Adult Social Care,ANCHOR,02/01/2020,"1,972.24",73501-RESIDENTIAL EMI,MENTAL HEALTH SUPPORT,Third Party Payments,Revenue
Walsall Council,http://opendatacommunities.org/id/metropolitan-district-council/walsall,WC112-710,31/01/2020,Adult Social Care,ANCHOR,02/01/2020,"1,972.24",73501-RESIDENTIAL EMI,MENTAL HEALTH SUPPORT,Third Party Payments,Revenue
Walsall Council,http://opendatacommunities.org/id/metropolitan-district-council/walsall,WC112-711,31/01/2020,Adult Social Care,ANCHOR,02/01/2020,"1,972.24",73501-RESIDENTIAL EMI,MENTAL HEALTH SUPPORT,Third Party Payments,Revenue
Walsall Council,http://opendatacommunities.org/id/metropolitan-district-council/walsall,WC112-712,31/01/2020,Adult Social Care,ANCHOR,02/01/2020,"1,972.24",73501-RESIDENTIAL EMI,PHYSICAL SUPPORT,Third Party Payments,Revenue
Walsall Council,http://opendatacommunities.org/id/metropolitan-district-council/walsall,WC112-713,31/01/2020,Adult Social Care,ANCHOR,02/01/2020,"1,972.24",73501-RESIDENTIAL EMI,MENTAL HEALTH SUPPORT,Third Party Payments,Revenue
Walsall Council,http://opendatacommunities.org/id/metropolitan-district-council/walsall,WC112-714,31/01/2020,Adult Social Care,ANCHOR,02/01/2020,"1,972.24",73501-RESIDENTIAL EMI,PHYSICAL SUPPORT,Third Party Payments,Revenue
Walsall Council,http://opendatacommunities.org/id/metropolitan-district-council/walsall,WC112-715,31/01/2020,Adult Social Care,ANCHOR,02/01/2020,"1,972.24",73501-RESIDENTIAL EMI,PHYSICAL SUPPORT,Third Party Payments,Revenue
Walsall Council,http://opendatacommunities.org/id/metropolitan-district-council/walsall,WC112-716,31/01/2020,Adult Social Care,ANCHOR,02/01/2020,"1,972.24",73501-RESIDENTIAL EMI,PHYSICAL SUPPORT,Third Party Payments,Revenue
Walsall Council,http://opendatacommunities.org/id/metropolitan-district-council/walsall,WC112-717,31/01/2020,Adult Social Care,ANCHOR,02/01/2020,"1,972.24",73501-RESIDENTIAL EMI,PHYSICAL SUPPORT,Third Party Payments,Revenue
Walsall Council,http://opendatacommunities.org/id/metropolitan-district-council/walsall,WC112-718,31/01/2020,Adult Social Care,ANCHOR,02/01/2020,"1,972.24",73501-RESIDENTIAL EMI,PHYSICAL SUPPORT,Third Party Payments,Revenue
Walsall Council,http://opendatacommunities.org/id/metropolitan-district-council/walsall,WC112-719,31/01/2020,Adult Social Care,ANCHOR,02/01/2020,"2,000.00",73501-RESIDENTIAL EMI,PHYSICAL SUPPORT,Third Party Payments,Revenue
Walsall Council,http://opendatacommunities.org/id/metropolitan-district-council/walsall,WC112-720,31/01/2020,Adult Social Care,ANCHOR,02/01/2020,"2,054.96",73500-RESIDENTIAL,SENSORY SUPPORT,Third Party Payments,Revenue
Walsall Council,http://opendatacommunities.org/id/metropolitan-district-council/walsall,WC112-721,31/01/2020,Adult Social Care,ANCHOR,02/01/2020,"2,094.96",73500-RESIDENTIAL,SOCIAL SUPPORT,Third Party Payments,Revenue
Walsall Council,http://opendatacommunities.org/id/metropolitan-district-council/walsall,WC112-722,31/01/2020,Adult Social Care,ANCHOR,02/01/2020,"2,094.96",73500-RESIDENTIAL,PHYSICAL SUPPORT,Third Party Payments,Revenue
Walsall Council,http://opendatacommunities.org/id/metropolitan-district-council/walsall,WC112-723,31/01/2020,Adult Social Care,ANCHOR,02/01/2020,"2,114.96",73500-RESIDENTIAL,PHYSICAL SUPPORT,Third Party Payments,Revenue
Walsall Council,http://opendatacommunities.org/id/metropolitan-district-council/walsall,WC112-724,31/01/2020,Adult Social Care,ANCHOR,02/01/2020,"2,144.56",73501-RESIDENTIAL EMI,SENSORY SUPPORT,Third Party Payments,Revenue
Walsall Council,http://opendatacommunities.org/id/metropolitan-district-council/walsall,WC112-725,31/01/2020,Adult Social Care,ANCHOR,02/01/2020,"2,175.72",73501-RESIDENTIAL EMI,MENTAL HEALTH SUPPORT,Third Party Payments,Revenue
Walsall Council,http://opendatacommunities.org/id/metropolitan-district-council/walsall,WC112-726,31/01/2020,Adult Social Care,ANCHOR,02/01/2020,"2,266.12",73500-RESIDENTIAL,PHYSICAL SUPPORT,Third Party Payments,Revenue
Walsall Council,http://opendatacommunities.org/id/metropolitan-district-council/walsall,WC112-727,31/01/2020,Adult Social Care,ANCHOR,02/01/2020,"2,292.24",73501-RESIDENTIAL EMI,SUPPORT WITH MEMORY & COGNITION,Third Party Payments,Revenue
Walsall Council,http://opendatacommunities.org/id/metropolitan-district-council/walsall,WC112-728,31/01/2020,Adult Social Care,ANCHOR,02/01/2020,"2,292.24",73501-RESIDENTIAL EMI,SUPPORT WITH MEMORY & COGNITION,Third Party Payments,Revenue
Walsall Council,http://opendatacommunities.org/id/metropolitan-district-council/walsall,WC112-729,31/01/2020,Adult Social Care,ANCHOR,02/01/2020,"2,312.24",73501-RESIDENTIAL EMI,PHYSICAL SUPPORT,Third Party Payments,Revenue
Walsall Council,http://opendatacommunities.org/id/metropolitan-district-council/walsall,WC112-730,31/01/2020,Adult Social Care,ANCHOR,02/01/2020,"2,312.24",73501-RESIDENTIAL EMI,SUPPORT WITH MEMORY & COGNITION,Third Party Payments,Revenue
Walsall Council,http://opendatacommunities.org/id/metropolitan-district-council/walsall,WC112-731,31/01/2020,Adult Social Care,ANCHOR,02/01/2020,"2,312.24",73501-RESIDENTIAL EMI,PHYSICAL SUPPORT,Third Party Payments,Revenue
Walsall Council,http://opendatacommunities.org/id/metropolitan-district-council/walsall,WC112-732,31/01/2020,Adult Social Care,ANCHOR,02/01/2020,"2,312.24",73501-RESIDENTIAL EMI,PHYSICAL SUPPORT,Third Party Payments,Revenue
Walsall Council,http://opendatacommunities.org/id/metropolitan-district-council/walsall,WC112-733,31/01/2020,Adult Social Care,ANCHOR,02/01/2020,"2,332.24",73501-RESIDENTIAL EMI,PHYSICAL SUPPORT,Third Party Payments,Revenue
Walsall Council,http://opendatacommunities.org/id/metropolitan-district-council/walsall,WC112-734,31/01/2020,Adult Social Care,ANCHOR,02/01/2020,"2,332.24",73501-RESIDENTIAL EMI,PHYSICAL SUPPORT,Third Party Payments,Revenue
Walsall Council,http://opendatacommunities.org/id/metropolitan-district-council/walsall,WC112-735,31/01/2020,Adult Social Care,ANCHOR,02/01/2020,"2,332.24",73501-RESIDENTIAL EMI,PHYSICAL SUPPORT,Third Party Payments,Revenue
Walsall Council,http://opendatacommunities.org/id/metropolitan-district-council/walsall,WC112-736,31/01/2020,Adult Social Care,ANCHOR,02/01/2020,"2,332.24",73501-RESIDENTIAL EMI,SOCIAL SUPPORT,Third Party Payments,Revenue
Walsall Council,http://opendatacommunities.org/id/metropolitan-district-council/walsall,WC112-737,31/01/2020,Adult Social Care,ANCHOR,02/01/2020,"4,581.18",73501-RESIDENTIAL EMI,PHYSICAL SUPPORT,Third Party Payments,Revenue
Walsall Council,http://opendatacommunities.org/id/metropolitan-district-council/walsall,WC112-738,31/01/2020,Adult Social Care,ANCHOR,02/01/2020,"6,366.76",73501-RESIDENTIAL EMI,PHYSICAL SUPPORT,Third Party Payments,Revenue
Walsall Council,http://opendatacommunities.org/id/metropolitan-district-council/walsall,WC112-739,31/01/2020,Adult Social Care,ANCHOR CAREHOMES LTD - HARDEN HALL,01/01/2020,387.90,73025-PROFESSIONAL SERVICES-PRIV CONTRACTOR & OTHER AGENCIES,TRANSITIONAL CARE SUPPORT TEAM,Third Party Payments,Revenue
Walsall Council,http://opendatacommunities.org/id/metropolitan-district-council/walsall,WC112-740,31/01/2020,Adult Social Care,ANCHOR CAREHOMES LTD - HARDEN HALL,01/01/2020,"1,086.12",73025-PROFESSIONAL SERVICES-PRIV CONTRACTOR & OTHER AGENCIES,TRANSITIONAL CARE SUPPORT TEAM,Third Party Payments,Revenue
Walsall Council,http://opendatacommunities.org/id/metropolitan-district-council/walsall,WC112-741,31/01/2020,Adult Social Care,ANCHOR CAREHOMES LTD - HARDEN HALL,13/01/2020,"1,253.89",73025-PROFESSIONAL SERVICES-PRIV CONTRACTOR & OTHER AGENCIES,TRANSITIONAL CARE SUPPORT TEAM,Third Party Payments,Revenue
Walsall Council,http://opendatacommunities.org/id/metropolitan-district-council/walsall,WC112-742,31/01/2020,Adult Social Care,ANCHOR CAREHOMES LTD - HARDEN HALL,15/01/2020,"1,358.11",73025-PROFESSIONAL SERVICES-PRIV CONTRACTOR & OTHER AGENCIES,TRANSITIONAL CARE SUPPORT TEAM,Third Party Payments,Revenue
Walsall Council,http://opendatacommunities.org/id/metropolitan-district-council/walsall,WC112-743,31/01/2020,Adult Social Care,ANCHOR CAREHOMES LTD - HARDEN HALL,13/01/2020,"1,647.39",73025-PROFESSIONAL SERVICES-PRIV CONTRACTOR & OTHER AGENCIES,TRANSITIONAL CARE SUPPORT TEAM,Third Party Payments,Revenue
Walsall Council,http://opendatacommunities.org/id/metropolitan-district-council/walsall,WC112-744,31/01/2020,Adult Social Care,ANCHOR CAREHOMES LTD - HARDEN HALL,15/01/2020,"1,975.67",73025-PROFESSIONAL SERVICES-PRIV CONTRACTOR & OTHER AGENCIES,TRANSITIONAL CARE SUPPORT TEAM,Third Party Payments,Revenue
Walsall Council,http://opendatacommunities.org/id/metropolitan-district-council/walsall,WC112-745,31/01/2020,Adult Social Care,ANCHOR CAREHOMES LTD - HARDEN HALL,13/01/2020,"2,035.57",73025-PROFESSIONAL SERVICES-PRIV CONTRACTOR & OTHER AGENCIES,TRANSITIONAL CARE SUPPORT TEAM,Third Party Payments,Revenue
Walsall Council,http://opendatacommunities.org/id/metropolitan-district-council/walsall,WC112-746,31/01/2020,Adult Social Care,ANCHOR CAREHOMES LTD - HARDEN HALL,27/01/2020,"2,274.96",73025-PROFESSIONAL SERVICES-PRIV CONTRACTOR & OTHER AGENCIES,TRANSITIONAL CARE SUPPORT TEAM,Third Party Payments,Revenue
Walsall Council,http://opendatacommunities.org/id/metropolitan-district-council/walsall,WC112-747,31/01/2020,Adult Social Care,ANCHOR CAREHOMES LTD - HARDEN HALL,15/01/2020,"2,824.10",73025-PROFESSIONAL SERVICES-PRIV CONTRACTOR & OTHER AGENCIES,TRANSITIONAL CARE SUPPORT TEAM,Third Party Payments,Revenue
Walsall Council,http://opendatacommunities.org/id/metropolitan-district-council/walsall,WC112-748,31/01/2020,Adult Social Care,ANCHOR CAREHOMES LTD - HARDEN HALL,13/01/2020,"2,902.54",73025-PROFESSIONAL SERVICES-PRIV CONTRACTOR & OTHER AGENCIES,TRANSITIONAL CARE SUPPORT TEAM,Third Party Payments,Revenue
Walsall Council,http://opendatacommunities.org/id/metropolitan-district-council/walsall,WC112-749,31/01/2020,Adult Social Care,ANCHOR CAREHOMES LTD - HARDEN HALL,15/01/2020,"3,945.93",73025-PROFESSIONAL SERVICES-PRIV CONTRACTOR & OTHER AGENCIES,TRANSITIONAL CARE SUPPORT TEAM,Third Party Payments,Revenue
Walsall Council,http://opendatacommunities.org/id/metropolitan-district-council/walsall,WC112-750,31/01/2020,Adult Social Care,ANCHOR CAREHOMES LTD - HARDEN HALL,15/01/2020,"4,536.72",73025-PROFESSIONAL SERVICES-PRIV CONTRACTOR & OTHER AGENCIES,TRANSITIONAL CARE SUPPORT TEAM,Third Party Payments,Revenue
Walsall Council,http://opendatacommunities.org/id/metropolitan-district-council/walsall,WC112-751,31/01/2020,Adult Social Care,ANCHOR CAREHOMES LTD - HARDEN HALL,27/01/2020,"5,093.85",73025-PROFESSIONAL SERVICES-PRIV CONTRACTOR & OTHER AGENCIES,TRANSITIONAL CARE SUPPORT TEAM,Third Party Payments,Revenue
Walsall Council,http://opendatacommunities.org/id/metropolitan-district-council/walsall,WC112-752,31/01/2020,Adult Social Care,ANCHOR CAREHOMES LTD - HARDEN HALL,15/01/2020,"5,569.75",73025-PROFESSIONAL SERVICES-PRIV CONTRACTOR & OTHER AGENCIES,TRANSITIONAL CARE SUPPORT TEAM,Third Party Payments,Revenue
Walsall Council,http://opendatacommunities.org/id/metropolitan-district-council/walsall,WC112-753,31/01/2020,Adult Social Care,ANCHOR CAREHOMES LTD - HARDEN HALL,27/01/2020,"9,482.11",73025-PROFESSIONAL SERVICES-PRIV CONTRACTOR & OTHER AGENCIES,TRANSITIONAL CARE SUPPORT TEAM,Third Party Payments,Revenue
Walsall Council,http://opendatacommunities.org/id/metropolitan-district-council/walsall,WC112-754,31/01/2020,Childrens,REDACTED,13/01/2020,312.24,74509-SPECIAL GUARDIANSHIP ORDERS,ADOPTION ALLOWANCES,Transfer Payments,Revenue
Walsall Council,http://opendatacommunities.org/id/metropolitan-district-council/walsall,WC112-755,31/01/2020,Childrens,REDACTED,24/01/2020,720.00,74501-MAINTENANCE ALLOWANCE-FOSTER CARERS,INTERNAL FOSTER CARE PROVISION,Transfer Payments,Revenue
Walsall Council,http://opendatacommunities.org/id/metropolitan-district-council/walsall,WC112-756,31/01/2020,Childrens,REDACTED,24/01/2020,"2,400.00",74508-INTERNAL FOSTER CARERS-CARER FEES,INTERNAL FOSTER CARE PROVISION,Transfer Payments,Revenue
Walsall Council,http://opendatacommunities.org/id/metropolitan-district-council/walsall,WC112-757,31/01/2020,Adult Social Care,REDACTED,03/01/2020,619.24,73506-DIRECT PAYMENT,LEARNING DISABILITY SUPPORT,Third Party Payments,Revenue
Walsall Council,http://opendatacommunities.org/id/metropolitan-district-council/walsall,WC112-758,31/01/2020,Adult Social Care,REDACTED,03/01/2020,"2,494.40",73506-DIRECT PAYMENT,PHYSICAL SUPPORT,Third Party Payments,Revenue
Walsall Council,http://opendatacommunities.org/id/metropolitan-district-council/walsall,WC112-759,31/01/2020,Childrens,ANDREWS ELECTRICAL LTD,13/01/2020,800.00,01006-SITE WORKS MAIN CONTRACTORS,CFR 1297 CASTLE BUSINESS & ENTERPRISE COLLEGE EXPANSION,Capital,Capital
Walsall Council,http://opendatacommunities.org/id/metropolitan-district-council/walsall,WC112-760,31/01/2020,Childrens,ANDREWS ELECTRICAL LTD,08/01/2020,"1,758.00",01006-SITE WORKS MAIN CONTRACTORS,CFR 1348 ST GILES STRUCTURAL WORKS,Capital,Capital
Walsall Council,http://opendatacommunities.org/id/metropolitan-district-council/walsall,WC112-761,31/01/2020,Childrens,ANDREWS ELECTRICAL LTD,29/01/2020,"3,880.00",01006-SITE WORKS MAIN CONTRACTORS,CFR 1348 LEAMORE LIGHTING UPGRADE,Capital,Capital
Walsall Council,http://opendatacommunities.org/id/metropolitan-district-council/walsall,WC112-762,31/01/2020,Resources and Transformation,ANDY GALE HOUSING CONSULTANCY,21/01/2020,620.10,30030-EXTERNAL TRAINING,ADVICE & GUIDANCE SERVICE,Employees,Revenue
Walsall Council,http://opendatacommunities.org/id/metropolitan-district-council/walsall,WC112-763,31/01/2020,Childrens,REDACTED,13/01/2020,368.76,74509-SPECIAL GUARDIANSHIP ORDERS,ADOPTION ALLOWANCES,Transfer Payments,Revenue
Walsall Council,http://opendatacommunities.org/id/metropolitan-district-council/walsall,WC112-764,31/01/2020,Childrens,REDACTED,13/01/2020,368.76,74509-SPECIAL GUARDIANSHIP ORDERS,ADOPTION ALLOWANCES,Transfer Payments,Revenue
Walsall Council,http://opendatacommunities.org/id/metropolitan-district-council/walsall,WC112-765,31/01/2020,Childrens,REDACTED,13/01/2020,500.16,74509-SPECIAL GUARDIANSHIP ORDERS,ADOPTION ALLOWANCES,Transfer Payments,Revenue
Walsall Council,http://opendatacommunities.org/id/metropolitan-district-council/walsall,WC112-766,31/01/2020,Childrens,REDACTED,13/01/2020,312.04,74509-SPECIAL GUARDIANSHIP ORDERS,ADOPTION ALLOWANCES,Transfer Payments,Revenue
Walsall Council,http://opendatacommunities.org/id/metropolitan-district-council/walsall,WC112-767,31/01/2020,Childrens,ANGELS AND BUTTERFLIES CHILDMINDING,03/01/2020,550.20,66505-OTHER-GRANTS TO OTHER ORGS,EARLY YEARS - 2 YR OLDS,Third Party Payments,Revenue
Walsall Council,http://opendatacommunities.org/id/metropolitan-district-council/walsall,WC112-768,31/01/2020,Childrens,ANGELS AND BUTTERFLIES CHILDMINDING,10/01/2020,"2,593.80",66505-OTHER-GRANTS TO OTHER ORGS,EARLY YEARS - 2 YR OLDS,Third Party Payments,Revenue
Walsall Council,http://opendatacommunities.org/id/metropolitan-district-council/walsall,WC112-769,31/01/2020,Childrens,ANGELS AND BUTTERFLIES CHILDMINDING,10/01/2020,"3,301.65",66505-OTHER-GRANTS TO OTHER ORGS,EARLY YEARS - 3 YR OLDS,Third Party Payments,Revenue
Walsall Council,http://opendatacommunities.org/id/metropolitan-district-council/walsall,WC112-770,31/01/2020,Childrens,ANGELS WITHOUT WINGS,07/01/2020,"4,948.75",63000-PROFESSIONAL FEES AND SERVICES,ADOPTION TEAM,Supplies & Services,Revenue
Walsall Council,http://opendatacommunities.org/id/metropolitan-district-council/walsall,WC112-771,31/01/2020,Adult Social Care,REDACTED,07/01/2020,653.85,73510-SHARED LIVES,LEARNING DISABILITY SUPPORT,Third Party Payments,Revenue
Walsall Council,http://opendatacommunities.org/id/metropolitan-district-council/walsall,WC112-772,31/01/2020,Adult Social Care,REDACTED,03/01/2020,"1,175.20",73506-DIRECT PAYMENT,PHYSICAL SUPPORT,Third Party Payments,Revenue
Walsall Council,http://opendatacommunities.org/id/metropolitan-district-council/walsall,WC112-773,31/01/2020,Adult Social Care,ANSON COURT RESIDENTIAL HOME,20/01/2020,387.90,73025-PROFESSIONAL SERVICES-PRIV CONTRACTOR & OTHER AGENCIES,TRANSITIONAL CARE SUPPORT TEAM,Third Party Payments,Revenue
Walsall Council,http://opendatacommunities.org/id/metropolitan-district-council/walsall,WC112-774,31/01/2020,Adult Social Care,ANSON COURT RESIDENTIAL HOME,21/01/2020,465.48,73025-PROFESSIONAL SERVICES-PRIV CONTRACTOR & OTHER AGENCIES,TRANSITIONAL CARE SUPPORT TEAM,Third Party Payments,Revenue
Walsall Council,http://opendatacommunities.org/id/metropolitan-district-council/walsall,WC112-775,31/01/2020,Adult Social Care,ANSON COURT RESIDENTIAL HOME,20/01/2020,775.80,73025-PROFESSIONAL SERVICES-PRIV CONTRACTOR & OTHER AGENCIES,TRANSITIONAL CARE SUPPORT TEAM,Third Party Payments,Revenue
Walsall Council,http://opendatacommunities.org/id/metropolitan-district-council/walsall,WC112-776,31/01/2020,Adult Social Care,ANSON COURT RESIDENTIAL HOME,31/01/2020,998.26,73501-RESIDENTIAL EMI,SOCIAL SUPPORT,Third Party Payments,Revenue
Walsall Council,http://opendatacommunities.org/id/metropolitan-district-council/walsall,WC112-777,31/01/2020,Adult Social Care,ANSON COURT RESIDENTIAL HOME,31/01/2020,"1,069.56",73500-RESIDENTIAL,SOCIAL SUPPORT,Third Party Payments,Revenue
Walsall Council,http://opendatacommunities.org/id/metropolitan-district-council/walsall,WC112-778,31/01/2020,Adult Social Care,ANSON COURT RESIDENTIAL HOME,01/01/2020,"1,086.12",73025-PROFESSIONAL SERVICES-PRIV CONTRACTOR & OTHER AGENCIES,TRANSITIONAL CARE SUPPORT TEAM,Third Party Payments,Revenue
Walsall Council,http://opendatacommunities.org/id/metropolitan-district-council/walsall,WC112-779,31/01/2020,Adult Social Care,ANSON COURT RESIDENTIAL HOME,14/01/2020,"1,086.12",73025-PROFESSIONAL SERVICES-PRIV CONTRACTOR & OTHER AGENCIES,TRANSITIONAL CARE SUPPORT TEAM,Third Party Payments,Revenue
Walsall Council,http://opendatacommunities.org/id/metropolitan-district-council/walsall,WC112-780,31/01/2020,Adult Social Care,ANSON COURT RESIDENTIAL HOME,21/01/2020,"1,086.12",73025-PROFESSIONAL SERVICES-PRIV CONTRACTOR & OTHER AGENCIES,TRANSITIONAL CARE SUPPORT TEAM,Third Party Payments,Revenue
Walsall Council,http://opendatacommunities.org/id/metropolitan-district-council/walsall,WC112-781,31/01/2020,Adult Social Care,ANSON COURT RESIDENTIAL HOME,02/01/2020,"1,199.08",73504-SHORT STAY RESIDENTIAL,PHYSICAL SUPPORT,Third Party Payments,Revenue
Walsall Council,http://opendatacommunities.org/id/metropolitan-district-council/walsall,WC112-782,31/01/2020,Adult Social Care,ANSON COURT RESIDENTIAL HOME,08/01/2020,"1,784.34",73025-PROFESSIONAL SERVICES-PRIV CONTRACTOR & OTHER AGENCIES,TRANSITIONAL CARE SUPPORT TEAM,Third Party Payments,Revenue
Walsall Council,http://opendatacommunities.org/id/metropolitan-district-council/walsall,WC112-783,31/01/2020,Adult Social Care,ANSON COURT RESIDENTIAL HOME,02/01/2020,"1,972.24",73501-RESIDENTIAL EMI,PHYSICAL SUPPORT,Third Party Payments,Revenue
Walsall Council,http://opendatacommunities.org/id/metropolitan-district-council/walsall,WC112-784,31/01/2020,Adult Social Care,ANSON COURT RESIDENTIAL HOME,02/01/2020,"1,972.24",73501-RESIDENTIAL EMI,PHYSICAL SUPPORT,Third Party Payments,Revenue
Walsall Council,http://opendatacommunities.org/id/metropolitan-district-council/walsall,WC112-785,31/01/2020,Adult Social Care,ANSON COURT RESIDENTIAL HOME,02/01/2020,"1,972.24",73501-RESIDENTIAL EMI,SOCIAL SUPPORT,Third Party Payments,Revenue
Walsall Council,http://opendatacommunities.org/id/metropolitan-district-council/walsall,WC112-786,31/01/2020,Adult Social Care,ANSON COURT RESIDENTIAL HOME,02/01/2020,"1,972.24",73501-RESIDENTIAL EMI,SUPPORT WITH MEMORY & COGNITION,Third Party Payments,Revenue
Walsall Council,http://opendatacommunities.org/id/metropolitan-district-council/walsall,WC112-787,31/01/2020,Adult Social Care,ANSON COURT RESIDENTIAL HOME,02/01/2020,"1,972.24",73501-RESIDENTIAL EMI,MENTAL HEALTH SUPPORT,Third Party Payments,Revenue
Walsall Council,http://opendatacommunities.org/id/metropolitan-district-council/walsall,WC112-788,31/01/2020,Adult Social Care,ANSON COURT RESIDENTIAL HOME,02/01/2020,"1,972.24",73501-RESIDENTIAL EMI,MENTAL HEALTH SUPPORT,Third Party Payments,Revenue
Walsall Council,http://opendatacommunities.org/id/metropolitan-district-council/walsall,WC112-789,31/01/2020,Adult Social Care,ANSON COURT RESIDENTIAL HOME,02/01/2020,"1,972.24",73501-RESIDENTIAL EMI,SUPPORT WITH MEMORY & COGNITION,Third Party Payments,Revenue
Walsall Council,http://opendatacommunities.org/id/metropolitan-district-council/walsall,WC112-790,31/01/2020,Adult Social Care,ANSON COURT RESIDENTIAL HOME,02/01/2020,"1,972.24",73501-RESIDENTIAL EMI,SUPPORT WITH MEMORY & COGNITION,Third Party Payments,Revenue
Walsall Council,http://opendatacommunities.org/id/metropolitan-district-council/walsall,WC112-791,31/01/2020,Adult Social Care,ANSON COURT RESIDENTIAL HOME,02/01/2020,"1,972.24",73501-RESIDENTIAL EMI,SOCIAL SUPPORT,Third Party Payments,Revenue
Walsall Council,http://opendatacommunities.org/id/metropolitan-district-council/walsall,WC112-792,31/01/2020,Adult Social Care,ANSON COURT RESIDENTIAL HOME,02/01/2020,"1,972.24",73501-RESIDENTIAL EMI,PHYSICAL SUPPORT,Third Party Payments,Revenue
Walsall Council,http://opendatacommunities.org/id/metropolitan-district-council/walsall,WC112-793,31/01/2020,Adult Social Care,ANSON COURT RESIDENTIAL HOME,02/01/2020,"2,052.24",73501-RESIDENTIAL EMI,MENTAL HEALTH SUPPORT,Third Party Payments,Revenue
Walsall Council,http://opendatacommunities.org/id/metropolitan-district-council/walsall,WC112-794,31/01/2020,Adult Social Care,ANSON COURT RESIDENTIAL HOME,02/01/2020,"2,092.24",73501-RESIDENTIAL EMI,PHYSICAL SUPPORT,Third Party Payments,Revenue
Walsall Council,http://opendatacommunities.org/id/metropolitan-district-council/walsall,WC112-795,31/01/2020,Adult Social Care,ANSON COURT RESIDENTIAL HOME,02/01/2020,"2,092.24",73501-RESIDENTIAL EMI,MENTAL HEALTH SUPPORT,Third Party Payments,Revenue
Walsall Council,http://opendatacommunities.org/id/metropolitan-district-council/walsall,WC112-796,31/01/2020,Adult Social Care,ANSON COURT RESIDENTIAL HOME,02/01/2020,"2,092.24",73501-RESIDENTIAL EMI,MENTAL HEALTH SUPPORT,Third Party Payments,Revenue
Walsall Council,http://opendatacommunities.org/id/metropolitan-district-council/walsall,WC112-797,31/01/2020,Adult Social Care,ANSON COURT RESIDENTIAL HOME,02/01/2020,"2,172.24",73501-RESIDENTIAL EMI,PHYSICAL SUPPORT,Third Party Payments,Revenue
Walsall Council,http://opendatacommunities.org/id/metropolitan-district-council/walsall,WC112-798,31/01/2020,Adult Social Care,ANSON COURT RESIDENTIAL HOME,02/01/2020,"2,172.24",73501-RESIDENTIAL EMI,SOCIAL SUPPORT,Third Party Payments,Revenue
Walsall Council,http://opendatacommunities.org/id/metropolitan-district-council/walsall,WC112-799,31/01/2020,Adult Social Care,ANSON COURT RESIDENTIAL HOME,02/01/2020,"2,172.24",73501-RESIDENTIAL EMI,PHYSICAL SUPPORT,Third Party Payments,Revenue
Walsall Council,http://opendatacommunities.org/id/metropolitan-district-council/walsall,WC112-800,31/01/2020,Adult Social Care,ANSON COURT RESIDENTIAL HOME,02/01/2020,"2,172.24",73501-RESIDENTIAL EMI,PHYSICAL SUPPORT,Third Party Payments,Revenue
Walsall Council,http://opendatacommunities.org/id/metropolitan-district-council/walsall,WC112-801,31/01/2020,Adult Social Care,ANSON COURT RESIDENTIAL HOME,30/01/2020,"2,327.40",73025-PROFESSIONAL SERVICES-PRIV CONTRACTOR & OTHER AGENCIES,TRANSITIONAL CARE SUPPORT TEAM,Third Party Payments,Revenue
Walsall Council,http://opendatacommunities.org/id/metropolitan-district-council/walsall,WC112-802,31/01/2020,Economy & Environment,ANSONS SOLICITORS,02/01/2020,250.00,73014-LEGAL FEES-PRIV CONTRACTOR FEES,REGENERATION MANAGEMENT,Third Party Payments,Revenue
